Workbook

Sheet Title Page
A1: U.S. EPA Office of Ground Water and Drinking Water
A2: Work Breakdown Structure (WBS) Model for Cation Exchange Treatment
A3: Release Date: December 30, 2017
A4: · This model is designed to assist EPA in estimating national compliance costs for drinking water regulations.
A5: · As such, the costs are intended to be representative of typical facilities.
A6: · The costs, however, do not account for all of the site-specific factors that could affect the cost of any given individual facility.
A7: · Use of this model requires Excel 2007 or later.
A8: · The model should be opened as Read-only, so that any changes you make are saved under a new file name.
A9: · To function properly, macros ("active content") must be enabled. If a security warning appears, click "options" and "enable this content."
A10: · For further information see the following document distributed with this file:
A11: USEPA. 2017. Work Breakdown Structure-Based Cost Model for Cation Exchange Drinking Water Treatment. Office of Water.
A12: · To begin using the model, go to the INPUT sheet.

Sheet Index
A1: INDEX
A2: This page provides an index to all user-adjustable inputs and assumptions. Click on a variable name to go directly to the adjustable cells.
A4: User-adjustable Input or Assumption | B4: Variable Name and Link
A5: Access space per pump for custom designed systems | B5: space_pumps_cust
A6: Access space per pump for pre-engineered packages | B6: space_pumps_pre
A7: Add a redundant unit per x parallel lines | B7: redund_freq
A8: Add coagulant to holding tank/basin? | B8: coag_res
A9: Additional building after… | B9: add_2nd_building
A10: Additional conductivity meters | B10: add_cond
A11: Additional sampling ports | B11: add_ports
A12: Additional turbididy meters | B12: add_turb
A13: Additional turbididy meters for small systems | B13: add_turb_small
A14: Administrative LOE as a percent of average technical labor | B14: Clerical_percent
A15: Air conditioning EER | B15: EER
A16: Always include NEPA compliance costs? | B16: include_NEPA
A17: Annual cooling degree days | B17: cool_DD
A18: Annual heating degree days | B18: heat_DD
A19: Annual resin loss | B19: resin_loss_annual
A20: Apply POTW discharge base charge (i.e., $/month) | B20: POTW_base_fee
A21: Apply POTW discharge TSS charge (i.e., $/lb of TSS over limit below) | B21: POTW_TSS_fee
A22: Apply POTW discharge volume charge (i.e., $/1000 gallons) | B22: POTW_volume_fee
A23: Average annual pan evaporation rate | B23: pan_evap
A24: Average annual precipitation | B24: precip
A25: Average Flow (including bypass) | B25: average_flow_I
A26: Backwash frequency outside of regeneration/initial rinse | B26: add_backwash_freq
A27: Backwash loading rate | B27: h2oflush_backwash_rate
A28: Backwash pumping | B28: no_backwash_I
A29: Backwash Storage | B29: no_back_tank_I
A30: Backwash time | B30: backwash_time
A31: Basin excavation depth above which deeper boreholes are needed | B31: deep_bore_need
A32: Bed depth | B32: bed_depth
A33: Bedding depth below pipe | B33: bedding_depth
A34: Bedding depth surrounding the pipe | B34: bedding_pct
A35: Borehole depth for deep basins | B35: bore_depth_max
A36: Borehole depth for shallow basins | B36: bore_depth_min
A37: Borehole depth without basins | B37: bore_depth_nobasin
A38: Borehole needed every x square feet | B38: hole_per_sf
A39: Boreholes per job | B39: hole_per_job
A40: Brine delivery method | B40: brine_method_I
A41: Builder's risk insurance percentage | B41: br_ins_pct
A42: Bypass percentage | B42: bp_pct
A43: cation resin type | B43: resin_type_I
A44: Characteristics of holding tank solids | B44: solids_haz_I
A45: Characteristics of spent resin | B45: media_haz_I
A46: Chemical tank mixer horsepower | B46: cmix_hp_per
A47: City Index | B47: city_index
A48: Clean holding tank/basins when solids accumulation =x% of capacity | B48: htank_clean_pct
A49: Clearance space beneath the ceiling | B49: ceiling_clearance
A50: Climate for estimating evaporation pond greenhouse gas emissions | B50: GHG_pond_climate
A51: Coefficient of passive pressure | B51: Coeff_Kp
A52: Component level | B52: component_level_I
A53: Computer workstations per x operators | B53: workstation_ratio
A54: Concrete pad thickness | B54: pad_thick
A55: Concrete pad thickness for small systems | B55: pad_thick_small
A56: Concrete thickness for holding basins | B56: conc_thick
A57: Conductivity meters per vessel | B57: cond_tank
A58: Cooling table for buildings 500 square feet or greater | B58: cooling_table
A59: Cooling table for buildings less than 500 ft2 | B59: cooling_table_shed
A60: Cooling ventilation/infiltration load | B60: cool_viload
A61: Cost estimating method | B61: curve
A62: Cost for parts & maintenance for pumps | B62: booster_pump_maintenance
A63: Days of chemical storage | B63: cstore_days
A64: Days of winter (i.e., days of storage during periods with no net evaporation) | B64: winter_days
A65: Default number of residuals basins | B65: hbasins_default
A66: Design Flow (including bypass) | B66: design_flow_I
A67: Design safety factor for standby power | B67: std_safety_factor
A68: Diameter | B68: comm_diam
A69: Dilute brine concentration | B69: brine_conc
A70: Discharge option for spent brine | B70: res_s2_opt_I
A71: Disposal method for non-hazardous secondary solids | B71: solids_method
A72: Distance between drain field trenches | B72: sept_trench_dist
A73: Distance to discharge point or evaporation pond | B73: add_res_pipe_length
A74: Drive controllers per backwash pump | B74: S_back_pump
A75: Drive controllers per booster pump | B75: S_booster_pump
A76: Drive controllers per coagulant feeder | B76: S_feeder
A77: Drive controllers per eductor | B77: S_eductor
A78: Drive controllers per mixer | B78: S_mixer
A79: Drive controllers per residuals pump | B79: S_res_pump
A80: Electric resistance heating efficiency | B80: resist_eff
A81: Electrical percentage | B81: elect_pct
A82: Engineering percentage for large systems | B82: eng_pct_large
A83: Engineering percentage for medium systems | B83: eng_pct_medium
A84: Engineering percentage for small systems | B84: eng_pct_small
A85: Ethernet modules | B85: plc_ethernet
A86: Evaporation pond dike cross-sectional area | B86: dike_xsection
A87: Evaporation pond freeboard | B87: ep_freeboard
A88: Evaporation pond safety factor | B88: ep_safety_factor
A89: Evaporation pond solids density | B89: ep_solids_density
A90: Evaporation pond solids removal frequency | B90: dredging_freq
A91: Evaporation ratio | B91: evap_ratio
A92: Fast final rinse volume | B92: f_rinse_bv
A93: Fast rinse loading rate | B93: f_rinse_rate
A94: Ferric chloride bulk density | B94: coag_density
A95: Ferric chloride dosage | B95: coag_dose
A96: Ferric chloride sludge production factor | B96: coag_spf
A97: Financing percentage | B97: finance_pct
A98: Financing percentage for small systems | B98: finance_pct_small
A99: Fire Buffer for Buildings | B99: fire_buffer
A100: Flow meters for backwash line | B100: tot_fm_back
A101: Flow meters for influent and effluent line | B101: tot_fm_in
A102: Flow meters for process line per vessel | B102: fm_proc
A103: Flow meters for residuals line | B103: tot_fm_res
A104: Free board above media at full expansion | B104: free_board
A105: Frost depth | B105: frost
A106: Head loss sensors per vessel | B106: head_tank
A107: Head loss sensors per vessel for small systems | B107: head_tank_small
A108: Heat pump cooling mode EER | B108: hp_EER
A109: Heat pump heating coefficient of performance | B109: COP
A110: Heating oil heat Content | B110: diesel_heat_content
A111: Heating table for buildings 500 square feet or greater | B111: heating_table
A112: Heating table for buildings less than 500 ft2 | B112: heating_table_shed
A113: Heating ventilation/infiltration load | B113: heat_viload
A114: High/Low alarm for backwash tank | B114: alarm_back
A115: High/Low alarms for brine tank | B115: alarm_brine
A116: High/Low alarms per holding tank/basin | B116: alarm_res
A117: Holding basin depth to volume ratio | B117: holding_ratio
A118: Holding basin freeboard | B118: holding_freeboard
A119: Holding tank for spent brine | B119: res_s1_opt_I
A120: Holding tank/basin capacity safety factor | B120: res_cap_factor
A121: Holding tank/basin mixer horsepower (if coagulant is used) | B121: hmix_hp_per
A122: Holding tank/basin solids density | B122: ht_solids_density
A123: Holding tank/basin solids transfer method | B123: res_transfer_method
A124: Holding tank/basin suspended solids removal efficiency with coagulant | B124: coag_TSSrem
A125: Holding tank/basin suspended solids removal efficiency without coagulant | B125: htank_TSSrem
A126: Hours per resin changeout | B126: uloe_throwaway
A127: I/O port table | B127: port_table
A128: Include architectural fee for small systems? | B128: include_arch_small
A129: Include architectural fee? | B129: include_arch
A130: Include buildings in total capital cost? | B130: include_buildings
A131: Include concrete pad in total capital cost? | B131: include_pad
A132: Include construction management cost for pre-engineered packages? | B132: include_cm_pre
A133: Include construction management cost? | B133: include_cm
A134: Include contingency costs for high cost systems? | B134: include_conting_high
A135: Include contingency costs for low cost systems? | B135: include_conting_low
A136: Include contingency costs for medium cost systems? | B136: include_conting_medium
A137: Include cooling in standby power | B137: need_cool
A138: Include geotechnical costs for high cost systems? | B138: include_geo_high
A139: Include geotechnical costs for low cost systems? | B139: include_geo_low
A140: Include geotechnical costs for medium cost systems? | B140: include_geo_medium
A141: Include heating in standby power | B141: need_heat
A142: Include land costs? | B142: include_land
A143: Include performance bond cost? | B143: include_bond
A144: Include permit costs? | B144: include_permits
A145: Include pilot study costs? | B145: include_pilot
A146: Include sitework costs? | B146: include_sitework
A147: Include standby power costs for small systems? | B147: include_standby_small
A148: Include standby power costs? | B148: include_standby
A149: Include yard piping costs? | B149: include_yardpipe
A150: Influent hardness concentration | B150: CaCO3_in
A151: Installation, Transportatation, and O&P percentage | B151: inst_pct
A152: Instrumentation and control percentage | B152: i_c_pct
A153: Legal percentage | B153: legal_pct
A154: Length (straight) | B154: comm_height_length
A155: Level switch/ alarm to PLC | B155: level_switch
A156: Level switch/ alarm to PLC for small systems | B156: level_switch_small
A157: Lighting power per sf, high-quality buildings | B157: lighting_power_high
A158: Lighting power per sf, low-quality buildings and sheds | B158: lighting_power_low
A159: Lighting power per sf, mid-quality buildings | B159: lighting_power_mid
A160: Linear feet bored per day | B160: hole_per_day
A161: Loading rate maximum | B161: load_max
A162: Loading rate minimum | B162: load_min
A163: Long term acceptance rate | B163: sept_LTAR
A164: Maintenance for chemical supply systems | B164: uloe_chem_maint
A165: Maintenance for instruments (includes calibration) | B165: uloe_inst_maint
A166: Maintenance for pumps | B166: uloe_pump_maint
A167: Maintenance for valves | B167: uloe_valve_maint
A168: Mangerial LOE as a percent of average technical labor | B168: Manager_percent
A169: Maximum access space per vessel or tank for custom designed systems | B169: max_space_vessels_cust
A170: Maximum access space per vessel or tank for pre-engineered systems | B170: max_space_vessels_pre
A171: Maximum bed depth | B171: max_bed_depth
A172: Maximum distribution pipe connections per distribution box | B172: sept_dist_connections
A173: Maximum evaporation pond cell area | B173: max_ep_cell_area
A174: Maximum hazardous waste shipment size | B174: max_haz_ship
A175: Maximum liquid hazardous waste shipment size | B175: max_lhaz_ship
A176: Maximum radioactive (non-hazardous) waste shipment size | B176: max_rad_ship
A177: Maximum radioactive hazardous waste shipment size | B177: max_hazrad_ship
A178: Maximum septic drain field trench length | B178: sept_max_trench_l
A179: Maximum vessel diameter | B179: max_diam_override
A180: Maximum vessel height (circular vessels) | B180: max_height
A181: Maximum vessel length (longitudinal vessels) | B181: max_length
A182: Method For Determining Number of Bed Volumes Before Regeneration | B182: regen_calc_type
A183: Mid-efficiency oil furnace efficiency | B183: diesel_eff
A184: Miles to hazardous solid waste disposal site | B184: haz_miles
A185: Miles to non-hazardous solid waste disposal site | B185: non_haz_miles
A186: Miles to radioactive (non-hazardous) waste disposal site | B186: rad_miles
A187: Miles to radioactive hazardous waste disposal site | B187: hazrad_miles
A188: Minimum average flow as percentage of design | B188: min_avg_flow
A189: Minimum bed depth | B189: min_bed_depth
A190: Minimum number of boreholes | B190: min_holes
A191: Minimum number of pond cells | B191: min_ep_cells
A192: Minimum number of septic drain field trenches | B192: sept_min_trenches
A193: Minimum number of vessels in series (i.e., parallel or series operation) | B193: num_tanks_I
A194: Minimum residuals pipe diameter | B194: min_res_pipe_size
A195: Minimum septic tank discharge time | B195: min_sept_disch_time
A196: Minimum septic tank volume | B196: min_sept_tank_vol
A197: Minimum settling time when coagulant is used | B197: res_coag_settle_time
A198: Minimum standby power generator size | B198: min_standby
A199: Minimum trench depth to top of pipe | B199: min_trench_depth
A200: Minutes per 100 sf per day | B200: uloe_fp
A201: Minutes per instrument per day | B201: uloe_inst
... 118 more rows

Sheet INPUT
A1: CATION EXCHANGE SYSTEM DESIGN AND COSTS
E3: STEP 1 | H3: =IF('Standard Inputs'!AC8,"<- Using this design",IF('Standard Inputs'!AD8,"<- You modified this design","")) -> 
E4: Select one of the eight standard designs at right | H4: =IF('Standard Inputs'!AC9,"<- Using this design",IF('Standard Inputs'!AD9,"<- You modified this design","")) -> 
H5: =IF('Standard Inputs'!AC10,"<- Using this design",IF('Standard Inputs'!AD10,"<- You modified this design","")) -> 
E6: OR | H6: =IF('Standard Inputs'!AC11,"<- Using this design",IF('Standard Inputs'!AD11,"<- You modified this design","")) -> 
H7: =IF('Standard Inputs'!AC12,"<- Using this design",IF('Standard Inputs'!AD12,"<- You modified this design","")) -> 
E8: Select "CLEAR FOR MANUAL ENTRY" | H8: =IF('Standard Inputs'!AC13,"<- Using this design",IF('Standard Inputs'!AD13,"<- You modified this design","")) -> 
H9: =IF('Standard Inputs'!AC14,"<- Using this design",IF('Standard Inputs'!AD14,"<- You modified this design","")) -> 
H10: =IF('Standard Inputs'!AC15,"<- Using this design",IF('Standard Inputs'!AD15,"<- You modified this design","")) -> <- Using this design
H11: =IF(COUNTIF(H3:H10,"")=8,"Using a manual design","") ->  | I11: =IF(COUNTIF(H3:H10,"")=8,"Fill in all gold cells below, then consider using AutoSize button","") -> 
E13: STEP 2: | G13: =IF(C14,IF('Standard Inputs'!AC18,"Input Complete -- Results Ready","Input Complete--Press 'Generate Results'"),"Input Incomplete--Check for Error Messages Below") -> Input Complete -- Results Ready | I13: =IF(C14,"","Fill in all gold cells below. If errors persist, consider using AutoSize button.") -> 
C14: =AND(C29,C38,C52:C58,C65,C79) -> TRUE | E14: (Optional for standard designs)
E15: Enter or change values in the gold and blue cells below, under "Manual Inputs."
E17: STEP 3: | I17: Results summary (see OUTPUT sheet for details)
E18: =IF(G13="input complete -- results ready","Results are ready (no need to click button)","Click here to generate results -->") -> Results are ready (no need to click button) | I18: ="Direct Capital Cost: " & IF(input_status<>"Input Complete -- Results Ready","Input incomplete",IF(Missing_Cost,"Missing cost!",IF(cost_buildup_error,"Cost buildup error!",IF(ISERROR(direct_cost),"Calculation error!",TEXT(direct_cost,"$0,0"))))) -> Direct Capital Cost: $10,513,123
I19: ="Total Capital Cost: " & IF(input_status<>"Input Complete -- Results Ready","Input incomplete",IF(Missing_Cost,"Missing cost!",IF(cost_buildup_error,"Cost buildup error!",IF(ISERROR(system_cost),"Calculation error!",TEXT(system_cost,"$0,0"))))) -> Total Capital Cost: $15,580,274
I20: ="Annual O&M Cost: "&IF(G13="input complete -- results ready",IF(ISERROR(om_cost),"Calculation error!",TEXT(om_cost,"$0,0")),"Input incomplete") -> Annual O&M Cost: $16,514,278
E21: MANUAL INPUTS | I21: ="Annualized Cost: "&IF(input_status<>"Input Complete -- Results Ready","Input incomplete",IF(Missing_Cost,"Missing Price!",IF(cost_buildup_error,"Cost buildup error!",IF(ISERROR(Annualized_Cost),"Calculation error!",TEXT(Annualized_Cost,"$0,0")&" ("&useful_life&" years at "&Discount_rate*100&"%)")))) -> Annualized Cost: $17,734,909 (33.1 years at 7%)
E22: Cells in gold are required; cells in blue are optional | I22: =IF(input_status="Input Incomplete -- check for error messages below","",IF(Missing_Cost,"A price is not available for at least one required component. See Use? column on OUTPUT sheet.",IF(cost_buildup_error,"There is an Excel error in the price for at least one component. Please see the Use? column on OUTPUT sheet.",""))) -> 
B23: Used? | C23: Valid input? | D23: Invalid reason? | H23: Select units
E24: Design Flow (including bypass) | F24: design_flow_I | G24: 75.072 | H24: MGD
E25: Average Flow (including bypass) | F25: average_flow_I | G25: 37.536 | H25: MGD
E26: For information:
E27: Treatment system design flow | G27: =IF(ISERROR(design_flow),"",IF(df_units="gpm",design_flow_rate, design_flow)) -> 75.072 | H27: =df_units -> MGD
E28: Bypass design flow | G28: =IF(ISERROR(design_flow),"",IF(df_units="gpm",bp_flow_rate, bp_flow_rate*60*24/10^6)) -> 0 | H28: =df_units -> MGD | I28: ="Current bypass percentage is "&TEXT(bp_pct,"0%")&". Go to Critical Design Assumptions (link below) to change this value." -> Current bypass percentage is 0%. Go to Critical Design Assumptions (link below) to change this value.
C29: =IF(OR(df_units="",af_units=""),FALSE,IF(average_flow>design_flow,FALSE,IF(OR(design_flow_I=0,average_flow_I=0),FALSE,IF(average_flow<design_flow*min_avg_flow,FALSE,TRUE)))) -> TRUE | D29: =IF(OR(df_units="",af_units=""),"Choose units for design and average flow",IF(average_flow>design_flow,"The average flow should not be greater than the design flow",IF(OR(design_flow_I=0,average_flow_I=0),"Input incomplete",IF(average_flow<design_flow*min_avg_flow,"The average flow must be at least " & min_avg_flow & " times design flow","OK")))) -> OK | H29: =IF(C29,"System size inputs OK",D29) -> System size inputs OK | I29: Adjust bypass percentage
C31: =NOT(CaCO3_in="") -> TRUE | E31: Influent hardness concentration | F31: CaCO3_in | G31: 200 | H31: mg/L as CaCO3 | I31: See Reference Data sheet (link below) for guidance on alternate values.
C32: =NOT(resin_type_I="") -> TRUE | E32: Select cation resin type | F32: resin_type_I | G32: Strong acid polystyrenic macroporous | H32: <-- pick one | I32: Gel Type resins have capacities higher and better operating efficiency than Macroporous resins. Macroporous resins have better physical stability, better organic fouling and oxidation resistance than Gel-Type resins (AWWA/ASCE 1998)
C33: =NOT(regen_calc_type="") -> TRUE | E33: Select Method For Determining Number of Bed Volumes Before Regeneration | F33: regen_calc_type | G33: calculate based on hardenss and resin capacity | H33: <-- pick one | I33: Use manual entry if significant interfering ions are present or a contaminant other than hardness is targeted
C34: =NOT(bv_regen_I="") -> TRUE | E34: =IF(regen_calc_type="manual entry"," Number of bed volumes before regeneration"," Resin useable capacity") -> Resin useable capacity | F34: BV_regen_I | G34: 27 | H34: =IF(regen_calc_type="manual entry","bed volumes","kilograins/cubic foot") -> kilograins/cubic foot | I34: Regenerant dose determines resin exchange capacity and the run length to hardness breakthrough. Make sure the two values are consistent with one another and the resin type selected. See Reference Data sheet (link below) for alternate values.
C35: =NOT(salt_dose_I="") -> TRUE | E35: Regenerant dose level | F35: salt_dose_I | G35: 15 | H35: lbs/cubic foot of resin
E36: For information: | I36: Reference Data sheet
E37: Number of bed volumes before regeneration | G37: =IF(ISERROR(BV_regen),"",BV_regen) -> 308.9570987 | H37: bed volumes
C38: =IF(NOT(AND(C31:C34)),FALSE,TRUE) -> TRUE | D38: =IF(C38,"OK","removal inputs incomplete") -> OK | H38: =IF(C38,"Removal inputs OK",D38) -> Removal inputs OK
E40: Minimum number of vessels in series (i.e., parallel or series operation) | F40: num_tanks_I | G40: 1 | H40: <-- enter 1 for parallel, 2 or more for series
E41: Theoretical total empty bed contact time (EBCT) | F41: ebct_I | G41: 2.5 | H41: minutes | I41: Guidance: EBCT is between 1.5 minutes and 7.5 minutes. Appropriate value will vary based on water quality and resin selected. Select data for input carefully, based on the scenario being modeled.
E42: For information: EBCT per Vessel | G42: =IF(ISERROR(EBCT_tank),"",EBCT_tank) -> 2.5 | H42: minutes
E43: The next four inputs may be entered manually, or calculated with AutoSize button. All other gold inputs must be complete before AutoSizing.
E44: Bed depth | F44: bed_depth | G44: 4.9 | H44: feet | I44: Guidance: between 2.5 and 6 ft
E45: Vessel geometry | F45: tank_geom_I | G45: horizontal | H45: <-- pick one
E46: =IF(tank_geom=1,"Height (straight)",IF(tank_geom=2,"Length (straight)","")) -> Length (straight) | F46: comm_height_length | G46: 26 | H46: =IF(tank_geom<>"","feet","") -> feet | I46: =IF(tank_geom=1,"Guidance: commercial tanks are between 5 and 10 ft","") -> 
E47: Diameter | F47: comm_diam | G47: 12.5 | H47: =IF(tank_geom<>"","feet","") -> feet | I47: =IF(tank_geom=1,"Guidance: commercial tank diameters are between 3 and 12 ft","") -> 
E48: For information:
E49: Number of treatment trains | G49: =IF(ISERROR(num_treat_lines),"",num_treat_lines) -> 13 | H49: trains
E50: Number of operating vessels | G50: =IF(ISERROR(op_num_tanks),"",op_num_tanks) -> 13 | H50: vessels
E51: Total vessels (incl. redundancy, below) | G51: =IF(ISERROR(final_num_tanks),"",final_num_tanks) -> 17 | H51: vessels
C52: =IF(OR(num_tanks_I="",ebct_I="",bed_depth="",comm_height_length="",comm_diam="",tank_geom_I=""),FALSE,IF(bed_depth>max_bed_depth,FALSE,IF(bed_depth>2*comm_diam,FALSE,IF(bed_depth<min_bed_depth,FALSE,TRUE)))) -> TRUE | D52: =IF(OR(num_tanks_I="",ebct_I="",bed_depth="",comm_height_length="",comm_diam="",tank_geom_I=""),"Input incomplete",IF(bed_depth>max_bed_depth,"Warning: bed depth too great",IF(bed_depth>2*comm_diam,"Warning: bed depth should be less than twice the vessel diameter",IF(bed_depth<min_bed_depth,"Warning: bed depth too shallow","OK")))) -> OK | H52: =IF(C52,"Bed Depth OK",D52) -> Bed Depth OK | I52: Adjust bed depth constraints
C53: =IF(H52="Input incomplete",FALSE,IF(tank_geom=1,IF(IF(AND(comm_diam>=min_diam,comm_diam<=max_diam_std_size),(OR(comm_height_length>=max_comm_height,comm_height_length>max_height)),comm_height_length>max_height),FALSE,IF(IF(AND(comm_diam>=min_diam,comm_diam<=max_diam_std_size),(AND(comm_height_length>=min_comm_height,comm_height_length>=height)),comm_height_length>=height),TRUE,FALSE)),IF(tank_geom=2,IF(comm_height_length>max_length,FALSE,TRUE),FALSE))) -> TRUE | D53: =IF(H52="Input incomplete","",IF(tank_geom=1,IF(IF(AND(comm_diam>=min_diam,comm_diam<=max_diam_std_size),(OR(comm_height_length>=max_comm_height,comm_height_length>max_height)),comm_height_length>max_height),"Warning: vessel too high",IF(IF(AND(comm_diam>=min_diam,comm_diam<=max_diam_std_size),(AND(comm_height_length>=min_comm_height,comm_height_length>=height)),comm_height_length>=height),"OK","Warning: vessel not high enough")),IF(tank_geom=2,IF(comm_height_length>max_length,"Warning: vessel too long","OK"),"Invalid tank geometry input"))) -> OK | H53: =IF(C53,"Height OK",D53) -> Height OK | I53: Adjust vessel size constraints
C54: =IF(ISERROR(op_num_tanks),"",IF(H52=FALSE,"",IF(tank_geom=1,IF(comm_diam>max_diam,FALSE,IF(comm_diam<diameter,FALSE,TRUE)),IF(tank_geom=2,IF(comm_diam>max_diam,FALSE,IF(comm_diam>max_height,FALSE,IF(comm_SA<SA,FALSE,IF(comm_diam<height,FALSE,TRUE)))),FALSE)))) -> TRUE | D54: =IF(H52="Input incomplete","",IF(tank_geom=1,IF(comm_diam>max_diam,"Warning: vessel diameter too great",IF(comm_diam<diameter,"Warning: vessel diameter too small","OK")),IF(tank_geom=2,IF(comm_diam>max_diam,"Warning: vessel diameter too great",IF(comm_diam>max_height,"Warning: vessel diameter too great",IF(comm_SA<SA,"Warning: vessel surface area too small",IF(comm_diam<height,"Warning: vessel diameter too small","OK")))),""))) -> OK | H54: =IF(ISERROR(op_num_tanks),"",IF(C54,"Diameter OK",D54)) -> Diameter OK
C55: =IF(H52="Input incomplete",FALSE,IF(input_vol_vess<media_volume_expanded,FALSE,TRUE)) -> TRUE | D55: =IF(H52="Input incomplete","",IF(input_vol_vess<media_volume_expanded,"Warning: vessel too small for this bed depth","OK")) -> OK | H55: =IF(C55,"Volume OK",D55) -> Volume OK
C56: =IF(H52="Input incomplete","",IF(input_vol_vess<media_volume_expanded,CHOOSE(tank_geom,FALSE,FALSE),TRUE)) -> TRUE | D56: =IF(H52="Input incomplete","",IF(input_vol_vess<media_volume_expanded,CHOOSE(tank_geom,"Hint: reduce bed depth or increase diameter or height","Hint: reduce bed depth or increase diameter"),"OK")) -> OK | H56: =IF(ISERROR(op_num_tanks),"",IF(C56,"",D56)) -> 
C57: =IF(H52="Input incomplete",FALSE,IF(tank_geom=1,IF(comm_load_rate>load_max,FALSE,IF(comm_load_rate<load_min,FALSE,TRUE)),IF(comm_load_rate>load_max,FALSE,IF(comm_load_rate<load_min,FALSE,TRUE)))) -> TRUE | D57: =IF(H52="Input incomplete","",IF(tank_geom=1,IF(comm_load_rate>load_max,"Warning: design exceeds maximum loading",IF(comm_load_rate<load_min,"Warning: design below minimum loading","OK")),IF(comm_load_rate>load_max,"Warning: design exceeds maximum loading",IF(comm_load_rate<load_min,"Warning: design below minimum loading","OK")))) -> OK | H57: =IF(C57,"Loading OK",D57) -> Loading OK | I57: Adjust loading constraints
C58: =IF(ISERROR(op_num_tanks),"",IF(F57="Input incomplete",FALSE,IF(tank_geom=1,IF(comm_load_rate>load_max,FALSE,IF(comm_load_rate<load_min,FALSE,TRUE)),IF(comm_load_rate>load_max,FALSE,IF(comm_load_rate<load_min,FALSE,TRUE))))) -> TRUE | D58: =IF(ISERROR(op_num_tanks),"",IF(F57="Input incomplete","",IF(tank_geom=1,IF(comm_load_rate>load_max,"Hint: increase vessel diameter or decrease bed depth",IF(comm_load_rate<load_min,"Hint: reduce vessel diameter or increase bed depth","OK")),IF(comm_load_rate>load_max,"Hint: increase vessel length and diameter or decrease bed depth",IF(comm_load_rate<load_min,"Hint: reduce vessel length and diameter or increase bed depth","OK"))))) -> OK | H58: =IF(ISERROR(op_num_tanks),"",IF(C58,"",D58)) -> 
C60: =NOT(brine_method_I="") -> TRUE | E60: Brine delivery method | F60: brine_method_I | G60: brine mixing tanks | H60: <-- pick one
C61: =NOT(res_s2_opt_I="") -> TRUE | E61: Discharge option for spent brine | F61: res_s2_opt_I | G61: POTW | H61: <-- pick one
B62: =IF(res_s2_opt=5,FALSE,IF(res_s2_opt>2,FALSE,TRUE)) -> TRUE | C62: =IF(B62,NOT(res_s1_opt_I=""),TRUE) -> TRUE | E62: Holding tank for spent brine | F62: res_s1_opt_I | G62: no holding tank | H62: =IF(res_s2_opt=5,"always included",IF(res_s2_opt>2,"not required","<--pick one")) -> <--pick one | I62: =IF(res_s1_opt_I="Holding tank","Model selects between holding tank or basin based upon coagulant use and priority lookups on the Output sheet","") -> 
C63: =NOT(media_haz_I="") -> TRUE | E63: Characteristics of spent resin | F63: media_haz_I | G63: non-hazardous | H63: <-- pick one
B64: =IF(res_s2_opt=4,FALSE,IF(res_s2_opt=3,TRUE,IF(res_s1_opt=1,TRUE,FALSE))) -> FALSE | C64: =IF(B64,NOT(solids_haz_I=""),TRUE) -> TRUE | E64: =IF(res_s2_opt=3,"Characteristics of evaporation pond solids","Characteristics of holding tank solids") -> Characteristics of holding tank solids | F64: solids_haz_I | G64: non-hazardous | H64: =IF(NOT(B64),"not required","<-- pick one") -> not required
C65: =IF(ISERROR(regen_redun),FALSE,IF(AND(res_s2_opt=5,regen_redun>1),FALSE,AND(C60:C64))) -> TRUE | D65: =IF(ISERROR(regen_redun),"Complete Regeneration Inputs Above",IF(AND(res_s2_opt=5,regen_redun>1),"Liquid hazardous waste disposal is not feasible with continuous regeneration",IF(NOT(C65),"Input incomplete","OK"))) -> OK | H65: =IF(C65,"Residuals Input OK",D65) -> Residuals Input OK
E67: Number of booster pumps | F67: lines_pump_I | H67: pumps | I67: Enter 0 to exclude booster pumps (i.e., use existing pumps). Leave blank to accept model defaults (no pumps for systems <1 MGD, otherwise sized per average and design flows)
E68: For information: # of booster pumps | G68: =IF(ISERROR(booster_pumps),"",booster_pumps) -> 7 | H68: pumps
E69: Number of redundant vessels to be added | F69: NRD_I | H69: units
E70: For information: Redundant vessels | G70: =IF(ISERROR(NRD),"",NRD) -> 4 | H70: units
E71: Backwash pumping | F71: no_backwash_I | H71: <-- pick or leave blank | I71: Leave blank to accept model defaults (systems <1 MGD backwash using existing supply or treated water pumps, other systems add new backwash pumps)
E72: Backwash Storage | F72: no_back_tank_I | H72: <-- pick or leave blank | I72: Leave blank to accept model defaults (only systems between 1 and 10 MGD require separate backwash tanks)
E73: For information: # of backwash pumps | G73: =IF(ISERROR(backwash_pumps),"",backwash_pumps) -> 2 | H73: units
E74: # of backwash tanks | G74: =IF(ISERROR(back_tanks),"",back_tanks) -> 0 | H74: units
E75: Component level | F75: component_level_I | H75: <-- pick or leave blank | I75: Leave blank to use low cost components
E76: System automation | F76: manual_I | H76: <-- pick or leave blank | I76: Leave blank to allow model to pick based on component level
E77: For information: Component | G77: =IF(component_level=2, "high cost",IF(component_level=1,"mid cost","low cost")) -> low cost
E78: Automation | G78: =IF(manual=1,"manual",IF(manual=2,"semi-automated",IF(manual=3,"fully automated"))) -> manual
C79: =IF(ISERROR(pump_rating),FALSE,IF(pump_rating>max_pump_size,FALSE,TRUE)) -> TRUE | D79: =IF(ISERROR(pump_rating),"Input incomplete",IF(pump_rating>max_pump_size,"Warning: insufficent number of pumps.","OK")) -> OK | H79: =IF(C79,"Optional Inputs OK",D79) -> Optional Inputs OK
H80: =IF(OR(H79="input incomplete",H79="Optional Inputs OK"),"",IF(pump_rating>max_pump_size,"Hint: increase number of pumps or leave that input blank","")) -> 

Sheet OUTPUT
A1: OUTPUT SUMMARY
B2: Parameter | C2: Value | D2: Units
B3: Technology | C3: CX
B4: System Size Category | C4: =IF(design_flow<1,"small","large") -> large
B5: Design Flow | C5: =design_flow -> 75.072 | D5: MGD (excludes bypass flow)
B6: Average Flow | C6: =average_flow -> 37.536 | D6: MGD (excludes bypass flow)
B7: # of treatment trains | C7: =num_treat_lines -> 13
B8: # of vessels in series | C8: =Num_tanks -> 1 | D8: (i.e., parallel or series operation)
B9: Total EBCT | C9: =EBCT -> 2.5 | D9: minutes
B10: EBCT per vessel | C10: =EBCT_tank -> 2.5 | D10: minutes
B11: Bed depth | C11: =bed_depth -> 4.9 | D11: feet
B12: Vessel geometry | C12: =tank_geom_I -> horizontal
B13: =IF(tank_geom=1,"Height (straight)",IF(tank_geom=2,"Length (straight)","")) -> Length (straight) | C13: =comm_height_length -> 26 | D13: feet
B14: Diameter | C14: =comm_diam -> 12.5 | D14: feet
B15: ="Resulting Costs (in year "&TEXT(current_year_cl,0)&" dollars)" -> Resulting Costs (in year 2016 dollars)
B16: Direct Capital Cost | C16: =IF(input_status<>"input complete -- results ready","Input incomplete",IF(Missing_Cost,"Missing cost!",IF(cost_buildup_error,"Error in buildup!",direct_cost))) -> 10513123.38 | D16: Details
B17: Add-on Cost | C17: =IF(input_status<>"input complete -- results ready","Input incomplete",addon_cost) -> 113224.3247 | D17: Details
B18: Indirect Capital Cost | C18: =IF(input_status<>"input complete -- results ready","Input incomplete",C307) -> 4953926.115 | D18: Details
B19: Total Capital Cost | C19: =IF(input_status<>"input complete -- results ready","Input incomplete",IF(Missing_Cost,"Missing cost!",IF(cost_buildup_error,"Error in buildup!",system_cost))) -> 15580273.82 | D19: Details
B20: Annual O&M Cost | C20: =IF(input_status<>"input complete -- results ready","Input incomplete",om_cost) -> 16514278.41 | D20: Details
B21: ="Annualized Cost "&IF(OR(input_status<>"input complete -- results ready",Missing_Cost,cost_buildup_error),"","("&useful_life&" years at "&Discount_rate*100&"%)") -> Annualized Cost (33.1 years at 7%) | C21: =IF(input_status<>"input complete -- results ready","Input incomplete",IF(Missing_Cost,"Missing cost!",IF(cost_buildup_error,"Error in buildup!",Annualized_Cost))) -> 17734908.5 | D21: Details
B22: Per 1,000 gallons average flow | C22: =IF(input_status<>"input complete -- results ready","Input incomplete",IF(Missing_Cost,"Missing cost!",IF(cost_buildup_error,"Error in buildup!",C372))) -> 1.294458398
B23: Per household per year | C23: =IF(input_status<>"input complete -- results ready","Input incomplete",IF(Missing_Cost,"Missing cost!",IF(cost_buildup_error,"Error in buildup!",C373))) -> 215.299459
A25: Direct Capital Cost Details (items in italics, without a 1 in the "Use?" column, represent alternate costs and are excluded from total)
A26: WBS # | B26: Item | C26: Design Quantity | E26: Design Size | G26: Size used in estimate | I26: Unit Cost | J26: Total Cost | K26: Useful Life | L26: Use? | M26: Full Line Item Name | N26: Priority selection | W26: Useful Life
N27: Small (<1 mgd) | Q27: Medium (1-10 mgd) | T27: Large (>10 mgd)
N28: Low | O28: Mid | P28: High | Q28: Low | R28: Mid | S28: High | T28: Low | U28: Mid | V28: High | W28: Count? | X28: Depreciation
A29: 1 | B29: Pressure Vessels | W29: =IF(ISERROR(K29*L29),0,IF(K29<1,0,L29)) -> 0 | X29: =IF(W29,J29/K29,0) -> 0
A30: 1.1 | B30: Stainless Steel | C30: =final_num_tanks -> 17 | D30: units | E30: =comm_vol_gal -> 23866.28669 | F30: gal | G30: =IF(curve=1,comm_vol_gal,VLOOKUP(comm_vol_gal,ss_pv_cost_cl,2)) -> 23866.28669 | H30: gal | I30: =IF(curve=1,ss_pv_eq,VLOOKUP(comm_vol_gal,ss_pv_cost_cl,3)) -> 340485.9189 | J30: =IF(I30="contact vendor","--",C30*I30) -> 5788260.621 | K30: =VLOOKUP(comm_vol_gal,ss_pv_cost_cl,IF(ss_cat="large",4,5)) -> 35 | L30: 0 | M30: =$B$29&" - "&B30 -> Pressure Vessels - Stainless Steel | N30: 4 | O30: 4 | P30: 1 | Q30: 4 | R30: 4 | S30: 1 | T30: 4 | U30: 4 | V30: 1 | W30: 0 | X30: 0
A31: 1.1 | B31: Carbon Steel - Stainless Internals | C31: =final_num_tanks -> 17 | D31: units | E31: =comm_vol_gal -> 23866.28669 | F31: gal | G31: =IF(curve=1,comm_vol_gal,VLOOKUP(comm_vol_gal,cs_pv_cost_cl,2)) -> 23866.28669 | H31: gal | I31: =IF(curve=1,cs_pv_eq,VLOOKUP(comm_vol_gal,cs_pv_cost_cl,3)) -> 232136.865 | J31: =IF(I31="contact vendor","--",C31*I31) -> 3946326.705 | K31: =VLOOKUP(comm_vol_gal,cs_pv_cost_cl,IF(ss_cat="large",4,5)) -> 35 | L31: 0 | M31: =$B$29&" - "&B31 -> Pressure Vessels - Carbon Steel - Stainless Internals | N31: 3 | O31: 3 | P31: 2 | Q31: 3 | R31: 3 | S31: 2 | T31: 3 | U31: 3 | V31: 2 | W31: 0 | X31: 0
A32: 1.1 | B32: Carbon Steel - Plastic Internals | C32: =final_num_tanks -> 17 | D32: units | E32: =comm_vol_gal -> 23866.28669 | F32: gal | G32: =IF(curve=1,comm_vol_gal,VLOOKUP(comm_vol_gal,csp_pv_cost_cl,2)) -> 23866.28669 | H32: gal | I32: =IF(curve=1,csp_pv_eq,VLOOKUP(comm_vol_gal,csp_pv_cost_cl,3)) -> 144025.1851 | J32: =IF(I32="contact vendor","--",C32*I32) -> 2448428.147 | K32: =VLOOKUP(comm_vol_gal,csp_pv_cost_cl,IF(ss_cat="large",4,5)) -> 35 | L32: 1 | M32: =$B$29&" - "&B32 -> Pressure Vessels - Carbon Steel - Plastic Internals | N32: 2 | O32: 1 | P32: 3 | Q32: 2 | R32: 1 | S32: 3 | T32: 2 | U32: 1 | V32: 3 | W32: 1 | X32: 69955.08991
A33: 1.1 | B33: Fiberglass | C33: =final_num_tanks -> 17 | D33: units | E33: =comm_vol_gal -> 23866.28669 | F33: gal | G33: =IF(curve=1,comm_vol_gal,VLOOKUP(comm_vol_gal,fg_pv_cost_cl,2)) -> 23866.28669 | H33: gal | I33: =IF(curve=1,fg_pv_eq,VLOOKUP(comm_vol_gal,fg_pv_cost_cl,3)) -> contact vendor | J33: =IF(I33="contact vendor","--",C33*I33) -> -- | K33: =VLOOKUP(comm_vol_gal,fg_pv_cost_cl,IF(ss_cat="large",4,5)) -> 25 | L33: 0 | M33: =$B$29&" - "&B33 -> Pressure Vessels - Fiberglass | N33: 1 | O33: 2 | P33: 4 | Q33: 1 | R33: 2 | S33: 4 | T33: 1 | U33: 2 | V33: 4 | W33: 0 | X33: 0
A34: 2 | B34: Cation Resin | W34: 0 | X34: 0
A35: 2.1 | B35: =resin_type_I -> Strong acid polystyrenic macroporous | C35: =resin_volume_total -> 24262.52025 | D35: cf | E35: NA | G35: NA | I35: =VLOOKUP(B35,sac_res_cost_cl,3) -> 177.14551 | J35: =IF(I35="contact vendor","--",C35*I35) -> 4297996.524 | K35: =VLOOKUP(B35,sac_res_cost_cl,IF(ss_cat="large",4,5)) -> N/A | L35: 1 | M35: =$B$34&" - "&B35 -> Cation Resin - Strong acid polystyrenic macroporous | N35: 1 | O35: 1 | P35: 1 | Q35: 1 | R35: 1 | S35: 1 | T35: 1 | U35: 1 | V35: 1 | W35: 0 | X35: 0
A36: 3 | B36: Tanks | W36: 0 | X36: 0
A37: 3.1 | B37: Backwash Tanks | W37: 0 | X37: 0
A38: 3.1.1 | B38: Steel | C38: =back_tanks -> 0 | D38: units | E38: =IF( C38=0,"NA",back_tank_vol) -> NA | F38: =IF(C38=0," ","gal") ->  | G38: =IF( C38=0,"NA",IF(curve=1,back_tank_vol,VLOOKUP(back_tank_vol,st_bwt_cost_cl,2))) -> NA | H38: =IF( C38=0," ","gal") ->  | I38: =IF( C38=0,"NA",IF(curve=1,st_bwt_eq,VLOOKUP(back_tank_vol,st_bwt_cost_cl,3))) -> NA | J38: =IF( OR( I38= "NA", I38="contact vendor"),"--",C38*I38) -> -- | K38: =IF( C38=0,"NA",VLOOKUP(back_tank_vol,st_bwt_cost_cl,IF(ss_cat="large",4,5))) -> NA | M38: =$B$37&" - "&B38 -> Backwash Tanks - Steel | N38: 3 | O38: 3 | P38: 1 | Q38: 3 | R38: 3 | S38: 1 | T38: 3 | U38: 3 | V38: 1 | W38: 0 | X38: 0
A39: 3.1.1 | B39: Fiberglass | C39: =back_tanks -> 0 | D39: units | E39: =IF( C39=0,"NA",back_tank_vol) -> NA | F39: =IF(C39=0," ","gal") ->  | G39: =IF(C39=0,"NA",IF(curve=1,back_tank_vol,VLOOKUP(back_tank_vol,fg_bwt_cost_cl,2))) -> NA | H39: =IF( C39=0," ","gal") ->  | I39: =IF(C39=0,"NA",IF(curve=1,fg_bwt_eq,VLOOKUP(back_tank_vol,fg_bwt_cost_cl,3))) -> NA | J39: =IF( OR( I39= "NA", I39="contact vendor"),"--",C39*I39) -> -- | K39: =IF( C39=0,"NA",VLOOKUP(back_tank_vol,fg_bwt_cost_cl,IF(ss_cat="large",4,5))) -> NA | M39: =$B$37&" - "&B39 -> Backwash Tanks - Fiberglass | N39: 2 | O39: 1 | P39: 2 | Q39: 2 | R39: 1 | S39: 2 | T39: 2 | U39: 1 | V39: 2 | W39: 0 | X39: 0
A40: 3.1.1 | B40: Plastic/HDPE | C40: =back_tanks -> 0 | D40: units | E40: =IF( C40=0,"NA",back_tank_vol) -> NA | F40: =IF(C40=0," ","gal") ->  | G40: =IF( C40=0,"NA",IF(curve=1,back_tank_vol,VLOOKUP(back_tank_vol,hdpe_bwt_cost_cl,2))) -> NA | H40: =IF( C40=0," ","gal") ->  | I40: =IF( C40=0,"NA",IF(curve=1,hdpe_bwt_eq,VLOOKUP(back_tank_vol,hdpe_bwt_cost_cl,3))) -> NA | J40: =IF( OR( I40= "NA", I40="contact vendor"),"--",C40*I40) -> -- | K40: =IF( C40=0,"NA",VLOOKUP(back_tank_vol,hdpe_bwt_cost_cl,IF(ss_cat="large",4,5))) -> NA | M40: =$B$37&" - "&B40 -> Backwash Tanks - Plastic/HDPE | N40: 1 | O40: 2 | P40: 3 | Q40: 1 | R40: 2 | S40: 3 | T40: 1 | U40: 2 | V40: 3 | W40: 0 | X40: 0
A41: 3.2 | B41: Brine Storage Tanks | W41: 0 | X41: 0
A42: 3.2.1 | B42: Plastic/XLPE | C42: =IF(brine_method=2,0,brine_tanks) -> 1 | D42: units | E42: =IF(brine_method=2,"NA",brine_tank_vol) -> 6905.840678 | F42: gal | G42: =IF(brine_method=2,"NA",IF(curve=1,brine_tank_vol,VLOOKUP(brine_tank_vol,pl_cst_cost_cl,2))) -> 6905.840678 | H42: gal | I42: =IF(brine_method=2,"NA",IF(curve=1,pl_cst_eq,VLOOKUP(brine_tank_vol,pl_cst_cost_cl,3))) -> contact vendor | J42: =IF(brine_method=2,"--",IF(I42="contact vendor","--",C42*I42)) -> -- | K42: =IF(brine_method=2,"NA",VLOOKUP(brine_tank_vol,pl_cst_cost_cl,IF(ss_cat="large",4,5))) -> 10 | L42: 0 | M42: =$B$41&" - "&B42 -> Brine Storage Tanks - Plastic/XLPE | N42: 1 | O42: 2 | P42: 3 | Q42: 1 | R42: 2 | S42: 3 | T42: 1 | U42: 2 | V42: 3 | W42: 0 | X42: 0
A43: 3.2.1 | B43: Fiberglass | C43: =IF(brine_method=2,0,brine_tanks) -> 1 | D43: units | E43: =IF(brine_method=2,"NA",brine_tank_vol) -> 6905.840678 | F43: gal | G43: =IF(brine_method=2,"NA",IF(curve=1,brine_tank_vol,VLOOKUP(brine_tank_vol,fg_cst_cost_cl,2))) -> 6905.840678 | H43: gal | I43: =IF(brine_method=2,"NA",IF(curve=1,fg_cst_eq,VLOOKUP(brine_tank_vol,fg_cst_cost_cl,3))) -> 15509.44253 | J43: =IF(brine_method=2,"--",IF(I43="contact vendor","--",C43*I43)) -> 15509.44253 | K43: =IF(brine_method=2,"NA",VLOOKUP(brine_tank_vol,fg_cst_cost_cl,IF(ss_cat="large",4,5))) -> 10 | L43: 1 | M43: =$B$41&" - "&B43 -> Brine Storage Tanks - Fiberglass | N43: 2 | O43: 1 | P43: 2 | Q43: 2 | R43: 1 | S43: 2 | T43: 2 | U43: 1 | V43: 2 | W43: 1 | X43: 1550.944253
A44: 3.2.1 | B44: Stainless Steel | C44: =IF(brine_method=2,0,brine_tanks) -> 1 | D44: units | E44: =IF(brine_method=2,"NA",brine_tank_vol) -> 6905.840678 | F44: gal | G44: =IF(brine_method=2,"NA",IF(curve=1,brine_tank_vol,VLOOKUP(brine_tank_vol,ss_cst_cost_cl,2))) -> 6905.840678 | H44: gal | I44: =IF(brine_method=2,"NA",IF(curve=1,ss_cst_eq,VLOOKUP(brine_tank_vol,ss_cst_cost_cl,3))) -> 23938.42202 | J44: =IF(brine_method=2,"--",IF(I44="contact vendor","--",C44*I44)) -> 23938.42202 | K44: =IF(brine_method=2,"NA",VLOOKUP(brine_tank_vol,ss_cst_cost_cl,IF(ss_cat="large",4,5))) -> 35 | L44: 0 | M44: =$B$41&" - "&B44 -> Brine Storage Tanks - Stainless Steel | N44: 3 | O44: 3 | P44: 1 | Q44: 3 | R44: 3 | S44: 1 | T44: 3 | U44: 3 | V44: 1 | W44: 0 | X44: 0
A45: 3.3 | B45: Residuals Holding Tanks | W45: 0 | X45: 0
A46: 3.3.1 | B46: Concrete Basins (includes Excavation, Backfill, and Compaction) | C46: =hbasins -> 0 | D46: units | E46: =IF(C46=0,"NA",hbasin_vol) -> NA | F46: =IF(C46=0,"","gal") ->  | G46: =IF(hbasins=0,"NA",hbasin_vol) -> NA | H46: =IF(C46=0,"","gal") ->  | I46: =IF(hbasins=0,"NA",J46/hbasins) -> NA | J46: =IF(hbasins=0,"--",hconc_vol*VLOOKUP(0,conc_basin_cost_cl,3)+hexcavation_vol*VLOOKUP(0,excavate_cost_cl,3)+hbackfill_vol*VLOOKUP(0,backfill_cost_cl,3)+hrailing*VLOOKUP("aluminum railing",metal_cost_cl,3)) -> -- | K46: =IF(hbasins=0,"NA",VLOOKUP(0,conc_basin_cost_cl,IF(ss_cat="large",4,5))) -> NA | M46: =$B$45&" - "&B46 -> Residuals Holding Tanks - Concrete Basins (includes Excavation, Backfill, and Compaction) | N46: 3 | O46: 3 | P46: 2 | Q46: 3 | R46: 3 | S46: 2 | T46: 3 | U46: 3 | V46: 2 | W46: 0 | X46: 0
A47: 3.3.1 | B47: Steel Tanks | C47: =htanks -> 0 | D47: units | E47: =IF(C47=0,"NA",htank_vol) -> NA | F47: =IF(C47=0,"","gal") ->  | G47: =IF(htanks=0,"NA",IF(curve=1,htank_vol,VLOOKUP(htank_vol,st_bwt_cost_cl,2))) -> NA | H47: =IF(C47=0,"","gal") ->  | I47: =IF(htanks=0,0,IF(curve=1,st_ht_eq,VLOOKUP(htank_vol,st_bwt_cost_cl,3))) -> 0 | J47: =IF(I47="contact vendor","--",C47*I47) -> 0 | K47: =IF(htanks=0,"NA",VLOOKUP(htank_vol,st_bwt_cost_cl,IF(ss_cat="large",4,5))) -> NA | M47: =$B$45&" - "&B47 -> Residuals Holding Tanks - Steel Tanks | N47: 4 | O47: 4 | P47: 1 | Q47: 4 | R47: 4 | S47: 1 | T47: 4 | U47: 4 | V47: 1 | W47: 0 | X47: 0
A48: 3.3.1 | B48: Fiberglass Tanks | C48: =htanks -> 0 | D48: units | E48: =IF(C48=0,"NA",htank_vol) -> NA | F48: =IF(C48=0,"","gal") ->  | G48: =IF(htanks=0,"NA",IF(curve=1,htank_vol,VLOOKUP(htank_vol,fg_bwt_cost_cl,2))) -> NA | H48: =IF(C48=0,"","gal") ->  | I48: =IF(htanks=0,0,IF(curve=1,fg_ht_eq,VLOOKUP(htank_vol,fg_bwt_cost_cl,3))) -> 0 | J48: =IF(I48="contact vendor","--",C48*I48) -> 0 | K48: =IF(htanks=0,"NA",VLOOKUP(htank_vol,fg_bwt_cost_cl,IF(ss_cat="large",4,5))) -> NA | M48: =$B$45&" - "&B48 -> Residuals Holding Tanks - Fiberglass Tanks | N48: 2 | O48: 1 | P48: 3 | Q48: 2 | R48: 1 | S48: 3 | T48: 2 | U48: 1 | V48: 3 | W48: 0 | X48: 0
A49: 3.3.1 | B49: Plastic/HDPE Tanks | C49: =htanks -> 0 | D49: units | E49: =IF(C49=0,"NA",htank_vol) -> NA | F49: =IF(C49=0,"","gal") ->  | G49: =IF(htanks=0,"NA",IF(curve=1,htank_vol,VLOOKUP(htank_vol,hdpe_bwt_cost_cl,2))) -> NA | H49: =IF(C49=0,"","gal") ->  | I49: =IF(htanks=0,0,IF(curve=1,hdpe_ht_eq,VLOOKUP(htank_vol,hdpe_bwt_cost_cl,3))) -> 0 | J49: =IF(I49="contact vendor","--",C49*I49) -> 0 | K49: =IF(htanks=0,"NA",VLOOKUP(htank_vol,hdpe_bwt_cost_cl,IF(ss_cat="large",4,5))) -> NA | M49: =$B$45&" - "&B49 -> Residuals Holding Tanks - Plastic/HDPE Tanks | N49: 1 | O49: 2 | P49: 4 | Q49: 1 | R49: 2 | S49: 4 | T49: 1 | U49: 2 | V49: 4 | W49: 0 | X49: 0
A50: 3.4 | B50: Polymer Storage Tanks | W50: 0 | X50: 0
A51: 3.4.1 | B51: Plastic/XLPE | C51: =polymer_tanks -> 0 | D51: units | E51: =IF(C51=0,"NA",polymer_tank_vol) -> NA | F51: =IF(C51=0,"","gal") ->  | G51: =IF(C51=0,"NA",IF(curve=1,polymer_tank_vol,VLOOKUP(polymer_tank_vol,pl_cst_cost_cl,2))) -> NA | H51: =IF(C51=0,"","gal") ->  | I51: =IF(C51=0,"NA",IF(curve=1,pl_polymer_st_eq,VLOOKUP(polymer_tank_vol,pl_cst_cost_cl,3))) -> NA | J51: =IF(OR(C51=0,I51="contact vendor"),"--",C51*I51) -> -- | K51: =IF(C51=0,"NA",VLOOKUP(polymer_tank_vol,pl_cst_cost_cl,IF(ss_cat="large",4,5))) -> NA | M51: =$B$50&" - "&B51 -> Polymer Storage Tanks - Plastic/XLPE | N51: 1 | O51: 2 | P51: 3 | Q51: 1 | R51: 2 | S51: 3 | T51: 1 | U51: 2 | V51: 3 | W51: 0 | X51: 0
A52: 3.4.1 | B52: Fiberglass | C52: =polymer_tanks -> 0 | D52: units | E52: =IF(C52=0,"NA",polymer_tank_vol) -> NA | F52: =IF(C52=0,"","gal") ->  | G52: =IF(C52=0,"NA",IF(curve=1,polymer_tank_vol,VLOOKUP(polymer_tank_vol,fg_cst_cost_cl,2))) -> NA | H52: =IF(C52=0,"","gal") ->  | I52: =IF(C52=0,"NA",IF(curve=1,fg_polymer_st_eq,VLOOKUP(polymer_tank_vol,fg_cst_cost_cl,3))) -> NA | J52: =IF(OR(C52=0,I52="contact vendor"),"--",C52*I52) -> -- | K52: =IF(C52=0,"NA",VLOOKUP(polymer_tank_vol,fg_cst_cost_cl,IF(ss_cat="large",4,5))) -> NA | M52: =$B$50&" - "&B52 -> Polymer Storage Tanks - Fiberglass | N52: 2 | O52: 1 | P52: 2 | Q52: 2 | R52: 1 | S52: 2 | T52: 2 | U52: 1 | V52: 2 | W52: 0 | X52: 0
A53: 3.4.2 | B53: Stainless Steel | C53: =polymer_tanks -> 0 | D53: units | E53: =IF(C53=0,"NA",polymer_tank_vol) -> NA | F53: =IF(C53=0,"","gal") ->  | G53: =IF(C53=0,"NA",IF(curve=1,polymer_tank_vol,VLOOKUP(polymer_tank_vol,ss_cst_cost_cl,2))) -> NA | H53: =IF(C53=0,"","gal") ->  | I53: =IF(C53=0,"NA",IF(curve=1,ss_polymer_st_eq,VLOOKUP(polymer_tank_vol,ss_cst_cost_cl,3))) -> NA | J53: =IF(OR(C53=0,I53="contact vendor"),"--",C53*I53) -> -- | K53: =IF(C53=0,"NA",VLOOKUP(polymer_tank_vol,ss_cst_cost_cl,IF(ss_cat="large",4,5))) -> NA | M53: =$B$50&" - "&B53 -> Polymer Storage Tanks - Stainless Steel | N53: 3 | O53: 3 | P53: 1 | Q53: 3 | R53: 3 | S53: 1 | T53: 3 | U53: 3 | V53: 1 | W53: 0 | X53: 0
A54: 4 | B54: Piping | W54: 0 | X54: 0
A55: 4.1 | B55: Backwash Piping | W55: 0 | X55: 0
A56: 4.1.1 | B56: CPVC | C56: =back_pipe_length -> 400 | D56: lf | E56: =back_pipe_diam -> 6 | F56: in. diam | G56: =IF(curve=1,back_pipe_diam,VLOOKUP(back_pipe_diam,cpvc_pipe_cost_cl,2)) -> 6 | H56: in. diam | I56: =IF(curve=1,cpvc_pipe_eq_back,VLOOKUP(back_pipe_diam,cpvc_pipe_cost_cl,3)) -> 40.64613174 | J56: =IF(I56="contact vendor","--",C56*I56) -> 16258.4527 | K56: =VLOOKUP(back_pipe_diam,cpvc_pipe_cost_cl,IF(ss_cat="large",4,5)) -> 22 | L56: 0 | M56: =$B$55&" - "&B56 -> Backwash Piping - CPVC | N56: 2 | O56: 1 | P56: 3 | Q56: 2 | R56: 1 | S56: 3 | T56: 2 | U56: 1 | V56: 3 | W56: 0 | X56: 0
A57: 4.1.1 | B57: PVC | C57: =back_pipe_length -> 400 | D57: lf | E57: =back_pipe_diam -> 6 | F57: in. diam | G57: =IF(curve=1,back_pipe_diam,VLOOKUP(back_pipe_diam,pvc_pipe_cost_cl,2)) -> 6 | H57: in. diam | I57: =IF(curve=1,pvc_pipe_eq_back,VLOOKUP(back_pipe_diam,pvc_pipe_cost_cl,3)) -> 7.307375813 | J57: =IF(I57="contact vendor","--",C57*I57) -> 2922.950325 | K57: =VLOOKUP(back_pipe_diam,pvc_pipe_cost_cl,IF(ss_cat="large",4,5)) -> 22 | L57: 1 | M57: =$B$55&" - "&B57 -> Backwash Piping - PVC | N57: 1 | O57: 2 | P57: 4 | Q57: 1 | R57: 2 | S57: 4 | T57: 1 | U57: 2 | V57: 4 | W57: 1 | X57: 132.8613784
A58: 4.1.1 | B58: Stainless Steel | C58: =back_pipe_length -> 400 | D58: lf | E58: =back_pipe_diam -> 6 | F58: in. diam | G58: =IF(curve=1,back_pipe_diam,VLOOKUP(back_pipe_diam,ss_pipe_cost_cl,2)) -> 6 | H58: in. diam | I58: =IF(curve=1,ss_pipe_eq_back,VLOOKUP(back_pipe_diam,ss_pipe_cost_cl,3)) -> 177.2103395 | J58: =IF(I58="contact vendor","--",C58*I58) -> 70884.1358 | K58: =VLOOKUP(back_pipe_diam,ss_pipe_cost_cl,IF(ss_cat="large",4,5)) -> 45 | L58: 0 | M58: =$B$55&" - "&B58 -> Backwash Piping - Stainless Steel | N58: 4 | O58: 4 | P58: 1 | Q58: 4 | R58: 4 | S58: 1 | T58: 4 | U58: 4 | V58: 1 | W58: 0 | X58: 0
A59: 4.1.1 | B59: Steel | C59: =back_pipe_length -> 400 | D59: lf | E59: =back_pipe_diam -> 6 | F59: in. diam | G59: =IF(curve=1,back_pipe_diam,VLOOKUP(back_pipe_diam,st_pipe_cost_cl,2)) -> 6 | H59: in. diam | I59: =IF(curve=1,st_pipe_eq_back,VLOOKUP(back_pipe_diam,st_pipe_cost_cl,3)) -> 99.69451715 | J59: =IF(I59="contact vendor","--",C59*I59) -> 39877.80686 | K59: =VLOOKUP(back_pipe_diam,st_pipe_cost_cl,IF(ss_cat="large",4,5)) -> 35 | L59: 0 | M59: =$B$55&" - "&B59 -> Backwash Piping - Steel | N59: 3 | O59: 3 | P59: 2 | Q59: 3 | R59: 3 | S59: 2 | T59: 3 | U59: 3 | V59: 2 | W59: 0 | X59: 0
A60: 4.2 | B60: Brine Piping | W60: 0 | X60: 0
A61: 4.2.1 | B61: CPVC | C61: =brine_pipe_length -> 160 | D61: lf | E61: =brine_pipe_diam -> 6 | F61: in. diam | G61: =IF(curve=1,brine_pipe_diam,VLOOKUP(brine_pipe_diam,cpvc_pipe_cost_cl,2)) -> 6 | H61: in. diam | I61: =IF(curve=1,cpvc_pipe_eq_brine,VLOOKUP(brine_pipe_diam,cpvc_pipe_cost_cl,3)) -> 40.64613174 | J61: =IF(I61="contact vendor","--",C61*I61) -> 6503.381079 | K61: =VLOOKUP(brine_pipe_diam,cpvc_pipe_cost_cl,IF(ss_cat="large",4,5)) -> 22 | L61: 0 | M61: =$B$60&" - "&B61 -> Brine Piping - CPVC | N61: 2 | O61: 1 | P61: 3 | Q61: 2 | R61: 1 | S61: 3 | T61: 2 | U61: 1 | V61: 3 | W61: 0 | X61: 0
A62: 4.2.1 | B62: PVC | C62: =brine_pipe_length -> 160 | D62: lf | E62: =brine_pipe_diam -> 6 | F62: in. diam | G62: =IF(curve=1,brine_pipe_diam,VLOOKUP(brine_pipe_diam,pvc_pipe_cost_cl,2)) -> 6 | H62: in. diam | I62: =IF(curve=1,pvc_pipe_eq_brine,VLOOKUP(brine_pipe_diam,pvc_pipe_cost_cl,3)) -> 7.307375813 | J62: =IF(I62="contact vendor","--",C62*I62) -> 1169.18013 | K62: =VLOOKUP(brine_pipe_diam,pvc_pipe_cost_cl,IF(ss_cat="large",4,5)) -> 22 | L62: 1 | M62: =$B$60&" - "&B62 -> Brine Piping - PVC | N62: 1 | O62: 2 | P62: 4 | Q62: 1 | R62: 2 | S62: 4 | T62: 1 | U62: 2 | V62: 4 | W62: 1 | X62: 53.14455137
A63: 4.2.1 | B63: Stainless Steel | C63: =brine_pipe_length -> 160 | D63: lf | E63: =brine_pipe_diam -> 6 | F63: in. diam | G63: =IF(curve=1,brine_pipe_diam,VLOOKUP(brine_pipe_diam,ss_pipe_cost_cl,2)) -> 6 | H63: in. diam | I63: =IF(curve=1,ss_pipe_eq_brine,VLOOKUP(brine_pipe_diam,ss_pipe_cost_cl,3)) -> 177.2103395 | J63: =IF(I63="contact vendor","--",C63*I63) -> 28353.65432 | K63: =VLOOKUP(brine_pipe_diam,ss_pipe_cost_cl,IF(ss_cat="large",4,5)) -> 45 | L63: 0 | M63: =$B$60&" - "&B63 -> Brine Piping - Stainless Steel | N63: 4 | O63: 4 | P63: 1 | Q63: 4 | R63: 4 | S63: 1 | T63: 4 | U63: 4 | V63: 1 | W63: 0 | X63: 0
A64: 4.2.1 | B64: Steel | C64: =brine_pipe_length -> 160 | D64: lf | E64: =brine_pipe_diam -> 6 | F64: in. diam | G64: =IF(curve=1,brine_pipe_diam,VLOOKUP(brine_pipe_diam,st_pipe_cost_cl,2)) -> 6 | H64: in. diam | I64: =IF(curve=1,st_pipe_eq_brine,VLOOKUP(brine_pipe_diam,st_pipe_cost_cl,3)) -> 99.69451715 | J64: =IF(I64="contact vendor","--",C64*I64) -> 15951.12274 | K64: =VLOOKUP(brine_pipe_diam,st_pipe_cost_cl,IF(ss_cat="large",4,5)) -> 35 | L64: 0 | M64: =$B$60&" - "&B64 -> Brine Piping - Steel | N64: 3 | O64: 3 | P64: 2 | Q64: 3 | R64: 3 | S64: 2 | T64: 3 | U64: 3 | V64: 2 | W64: 0 | X64: 0
A65: 4.3 | B65: Process Piping | W65: 0 | X65: 0
A66: 4.3.1 | B66: Ductile Iron | C66: =proc_pipe_length -> 320 | D66: lf | E66: =proc_pipe_diam -> 14 | F66: in. diam | G66: =IF(curve=1,proc_pipe_diam,VLOOKUP(proc_pipe_diam,di_pipe_cost_cl,2)) -> 14 | H66: in. diam | I66: =IF(curve=1,di_pipe_eq_proc,VLOOKUP(proc_pipe_diam,di_pipe_cost_cl,3)) -> 97.36918622 | J66: =IF(I66="contact vendor","--",C66*I66) -> 31158.13959 | K66: =VLOOKUP(proc_pipe_diam,di_pipe_cost_cl,IF(ss_cat="large",4,5)) -> 40 | L66: 0 | M66: =$B$65&" "&" - "&B66 -> Process Piping - Ductile Iron | N66: 3 | O66: 3 | P66: 3 | Q66: 3 | R66: 3 | S66: 3 | T66: 3 | U66: 3 | V66: 3 | W66: 0 | X66: 0
A67: 4.3.1 | B67: CPVC | C67: =proc_pipe_length -> 320 | D67: lf | E67: =proc_pipe_diam -> 14 | F67: in. diam | G67: =IF(curve=1,proc_pipe_diam,VLOOKUP(proc_pipe_diam,cpvc_pipe_cost_cl,2)) -> 14 | H67: in. diam | I67: =IF(curve=1,cpvc_pipe_eq_proc,VLOOKUP(proc_pipe_diam,cpvc_pipe_cost_cl,3)) -> 175.1503658 | J67: =IF(I67="contact vendor","--",C67*I67) -> 56048.11707 | K67: =VLOOKUP(proc_pipe_diam,cpvc_pipe_cost_cl,IF(ss_cat="large",4,5)) -> 22 | L67: 0 | M67: =$B$65&" "&" - "&B67 -> Process Piping - CPVC | N67: 2 | O67: 1 | P67: 4 | Q67: 2 | R67: 1 | S67: 4 | T67: 2 | U67: 1 | V67: 4 | W67: 0 | X67: 0
A68: 4.3.1 | B68: PVC | C68: =proc_pipe_length -> 320 | D68: lf | E68: =proc_pipe_diam -> 14 | F68: in. diam | G68: =IF(curve=1,proc_pipe_diam,VLOOKUP(proc_pipe_diam,pvc_pipe_cost_cl,2)) -> 14 | H68: in. diam | I68: =IF(curve=1,pvc_pipe_eq_proc,VLOOKUP(proc_pipe_diam,pvc_pipe_cost_cl,3)) -> 25.70499175 | J68: =IF(I68="contact vendor","--",C68*I68) -> 8225.59736 | K68: =VLOOKUP(proc_pipe_diam,pvc_pipe_cost_cl,IF(ss_cat="large",4,5)) -> 22 | L68: 1 | M68: =$B$65&" "&" - "&B68 -> Process Piping - PVC | N68: 1 | O68: 2 | P68: 5 | Q68: 1 | R68: 2 | S68: 5 | T68: 1 | U68: 2 | V68: 5 | W68: 1 | X68: 373.8907891
A69: 4.3.1 | B69: Stainless Steel | C69: =proc_pipe_length -> 320 | D69: lf | E69: =proc_pipe_diam -> 14 | F69: in. diam | G69: =IF(curve=1,proc_pipe_diam,VLOOKUP(proc_pipe_diam,ss_pipe_cost_cl,2)) -> 14 | H69: in. diam | I69: =IF(curve=1,ss_pipe_eq_proc,VLOOKUP(proc_pipe_diam,ss_pipe_cost_cl,3)) -> 406.3367254 | J69: =IF(I69="contact vendor","--",C69*I69) -> 130027.7521 | K69: =VLOOKUP(proc_pipe_diam,ss_pipe_cost_cl,IF(ss_cat="large",4,5)) -> 45 | L69: 0 | M69: =$B$65&" "&" - "&B69 -> Process Piping - Stainless Steel | N69: 5 | O69: 5 | P69: 1 | Q69: 5 | R69: 5 | S69: 1 | T69: 5 | U69: 5 | V69: 1 | W69: 0 | X69: 0
A70: 4.3.1 | B70: Steel | C70: =proc_pipe_length -> 320 | D70: lf | E70: =proc_pipe_diam -> 14 | F70: in. diam | G70: =IF(curve=1,proc_pipe_diam,VLOOKUP(proc_pipe_diam,st_pipe_cost_cl,2)) -> 14 | H70: in. diam | I70: =IF(curve=1,st_pipe_eq_proc,VLOOKUP(proc_pipe_diam,st_pipe_cost_cl,3)) -> 182.8662451 | J70: =IF(I70="contact vendor","--",C70*I70) -> 58517.19845 | K70: =VLOOKUP(proc_pipe_diam,st_pipe_cost_cl,IF(ss_cat="large",4,5)) -> 35 | L70: 0 | M70: =$B$65&" "&" - "&B70 -> Process Piping - Steel | N70: 4 | O70: 4 | P70: 2 | Q70: 4 | R70: 4 | S70: 2 | T70: 4 | U70: 4 | V70: 2 | W70: 0 | X70: 0
A71: 4.4 | B71: Bypass Piping | W71: 0 | X71: 0
A72: 4.4.1 | B72: CPVC | C72: =bp_pipe_length -> 0 | D72: lf | E72: =IF(bp_pct>0,bp_pipe_diam,"NA") -> NA | F72: =IF(bp_pct=0," ","in. diam") ->  | G72: =IF(bp_pct=0,"NA",IF(curve=1,bp_pipe_diam,VLOOKUP(bp_pipe_diam,cpvc_pipe_cost_cl,2))) -> NA | H72: =IF(bp_pct=0," ","in. diam") ->  | I72: =IF(bp_pct=0,"NA",IF(curve=1,cpvc_pipe_eq_bp,VLOOKUP(bp_pipe_diam,cpvc_pipe_cost_cl,3))) -> NA | J72: =IF(bp_pct=0,0,IF(I72="contact vendor","--",C72*I72)) -> 0 | K72: =IF(bp_pct=0,"NA",VLOOKUP(bp_pipe_diam,cpvc_pipe_cost_cl,IF(ss_cat="large",4,5))) -> NA | M72: =$B$71&" "&" - "&B72 -> Bypass Piping - CPVC | N72: 2 | O72: 1 | P72: 3 | Q72: 2 | R72: 1 | S72: 3 | T72: 2 | U72: 1 | V72: 3 | W72: 0 | X72: 0
A73: 4.4.1 | B73: PVC | C73: =bp_pipe_length -> 0 | D73: lf | E73: =IF(bp_pct>0,bp_pipe_diam,"NA") -> NA | F73: =IF(bp_pct=0," ","in. diam") ->  | G73: =IF(bp_pct=0,"NA",IF(curve=1,bp_pipe_diam,VLOOKUP(bp_pipe_diam,pvc_pipe_cost_cl,2))) -> NA | H73: =IF(bp_pct=0," ","in. diam") ->  | I73: =IF(bp_pct=0,"NA",IF(curve=1,pvc_pipe_eq_bp,VLOOKUP(bp_pipe_diam,pvc_pipe_cost_cl,3))) -> NA | J73: =IF(bp_pct=0,0,IF(I73="contact vendor","--",C73*I73)) -> 0 | K73: =IF(bp_pct=0,"NA",VLOOKUP(bp_pipe_diam,pvc_pipe_cost_cl,IF(ss_cat="large",4,5))) -> NA | M73: =$B$71&" "&" - "&B73 -> Bypass Piping - PVC | N73: 1 | O73: 2 | P73: 4 | Q73: 1 | R73: 2 | S73: 4 | T73: 1 | U73: 2 | V73: 4 | W73: 0 | X73: 0
A74: 4.4.1 | B74: Stainless Steel | C74: =bp_pipe_length -> 0 | D74: lf | E74: =IF(bp_pct>0,bp_pipe_diam,"NA") -> NA | F74: =IF(bp_pct=0," ","in. diam") ->  | G74: =IF(bp_pct=0,"NA",IF(curve=1,bp_pipe_diam,VLOOKUP(bp_pipe_diam,ss_pipe_cost_cl,2))) -> NA | H74: =IF(bp_pct=0," ","in. diam") ->  | I74: =IF(bp_pct=0,"NA",IF(curve=1,ss_pipe_eq_bp,VLOOKUP(bp_pipe_diam,ss_pipe_cost_cl,3))) -> NA | J74: =IF(bp_pct=0,0,IF(I74="contact vendor","--",C74*I74)) -> 0 | K74: =IF(bp_pct=0,"NA",VLOOKUP(bp_pipe_diam,ss_pipe_cost_cl,IF(ss_cat="large",4,5))) -> NA | M74: =$B$71&" "&" - "&B74 -> Bypass Piping - Stainless Steel | N74: 4 | O74: 4 | P74: 1 | Q74: 4 | R74: 4 | S74: 1 | T74: 4 | U74: 4 | V74: 1 | W74: 0 | X74: 0
A75: 4.4.1 | B75: Steel | C75: =bp_pipe_length -> 0 | D75: lf | E75: =IF(bp_pct>0,bp_pipe_diam,"NA") -> NA | F75: =IF(bp_pct=0," ","in. diam") ->  | G75: =IF(bp_pct=0,"NA",IF(curve=1,bp_pipe_diam,VLOOKUP(bp_pipe_diam,st_pipe_cost_cl,2))) -> NA | H75: =IF(bp_pct=0," ","in. diam") ->  | I75: =IF(bp_pct=0,"NA",IF(curve=1,st_pipe_eq_bp,VLOOKUP(bp_pipe_diam,st_pipe_cost_cl,3))) -> NA | J75: =IF(bp_pct=0,0,IF(I75="contact vendor","--",C75*I75)) -> 0 | K75: =IF(bp_pct=0,"NA",VLOOKUP(bp_pipe_diam,st_pipe_cost_cl,IF(ss_cat="large",4,5))) -> NA | M75: =$B$71&" "&" - "&B75 -> Bypass Piping - Steel | N75: 3 | O75: 3 | P75: 2 | Q75: 3 | R75: 3 | S75: 2 | T75: 3 | U75: 3 | V75: 2 | W75: 0 | X75: 0
A76: 4.3 | B76: Inlet and Outlet Piping | W76: 0 | X76: 0
A77: 4.3.1 | B77: Ductile Iron | C77: =in_out_pipe_length -> 320 | D77: lf | E77: =in_out_pipe_diam -> 36 | F77: in. diam | G77: =IF(curve=1,in_out_pipe_diam,VLOOKUP(in_out_pipe_diam,di_pipe_cost_cl,2)) -> 36 | H77: in. diam | I77: =IF(curve=1,di_pipe_eq_in_out,VLOOKUP(in_out_pipe_diam,di_pipe_cost_cl,3)) -> 307.0098912 | J77: =IF(I77="contact vendor","--",C77*I77) -> 98243.16519 | K77: =VLOOKUP(in_out_pipe_diam,di_pipe_cost_cl,IF(ss_cat="large",4,5)) -> 40 | L77: 0 | M77: =$B$76&" "&" - "&B77 -> Inlet and Outlet Piping - Ductile Iron | N77: 3 | O77: 3 | P77: 3 | Q77: 3 | R77: 3 | S77: 3 | T77: 3 | U77: 3 | V77: 3 | W77: 0 | X77: 0
A78: 4.3.1 | B78: CPVC | C78: =in_out_pipe_length -> 320 | D78: lf | E78: =in_out_pipe_diam -> 36 | F78: in. diam | G78: =IF(curve=1,in_out_pipe_diam,VLOOKUP(in_out_pipe_diam,cpvc_pipe_cost_cl,2)) -> 36 | H78: in. diam | I78: =IF(curve=1,cpvc_pipe_eq_in_out,VLOOKUP(in_out_pipe_diam,cpvc_pipe_cost_cl,3)) -> contact vendor | J78: =IF(I78="contact vendor","--",C78*I78) -> -- | K78: =VLOOKUP(in_out_pipe_diam,cpvc_pipe_cost_cl,IF(ss_cat="large",4,5)) -> 22 | L78: 0 | M78: =$B$76&" "&" - "&B78 -> Inlet and Outlet Piping - CPVC | N78: 2 | O78: 1 | P78: 4 | Q78: 2 | R78: 1 | S78: 4 | T78: 2 | U78: 1 | V78: 4 | W78: 0 | X78: 0
A79: 4.3.1 | B79: PVC | C79: =in_out_pipe_length -> 320 | D79: lf | E79: =in_out_pipe_diam -> 36 | F79: in. diam | G79: =IF(curve=1,in_out_pipe_diam,VLOOKUP(in_out_pipe_diam,pvc_pipe_cost_cl,2)) -> 36 | H79: in. diam | I79: =IF(curve=1,pvc_pipe_eq_in_out,VLOOKUP(in_out_pipe_diam,pvc_pipe_cost_cl,3)) -> 145.1868688 | J79: =IF(I79="contact vendor","--",C79*I79) -> 46459.79802 | K79: =VLOOKUP(in_out_pipe_diam,pvc_pipe_cost_cl,IF(ss_cat="large",4,5)) -> 22 | L79: 1 | M79: =$B$76&" "&" - "&B79 -> Inlet and Outlet Piping - PVC | N79: 1 | O79: 2 | P79: 5 | Q79: 1 | R79: 2 | S79: 5 | T79: 1 | U79: 2 | V79: 5 | W79: 1 | X79: 2111.809001
A80: 4.3.1 | B80: Stainless Steel | C80: =in_out_pipe_length -> 320 | D80: lf | E80: =in_out_pipe_diam -> 36 | F80: in. diam | G80: =IF(curve=1,in_out_pipe_diam,VLOOKUP(in_out_pipe_diam,ss_pipe_cost_cl,2)) -> 36 | H80: in. diam | I80: =IF(curve=1,ss_pipe_eq_in_out,VLOOKUP(in_out_pipe_diam,ss_pipe_cost_cl,3)) -> 1024.734992 | J80: =IF(I80="contact vendor","--",C80*I80) -> 327915.1974 | K80: =VLOOKUP(in_out_pipe_diam,ss_pipe_cost_cl,IF(ss_cat="large",4,5)) -> 45 | L80: 0 | M80: =$B$76&" "&" - "&B80 -> Inlet and Outlet Piping - Stainless Steel | N80: 5 | O80: 5 | P80: 1 | Q80: 5 | R80: 5 | S80: 1 | T80: 5 | U80: 5 | V80: 1 | W80: 0 | X80: 0
A81: 4.3.1 | B81: Steel | C81: =in_out_pipe_length -> 320 | D81: lf | E81: =in_out_pipe_diam -> 36 | F81: in. diam | G81: =IF(curve=1,in_out_pipe_diam,VLOOKUP(in_out_pipe_diam,st_pipe_cost_cl,2)) -> 36 | H81: in. diam | I81: =IF(curve=1,st_pipe_eq_in_out,VLOOKUP(in_out_pipe_diam,st_pipe_cost_cl,3)) -> 235.6192027 | J81: =IF(I81="contact vendor","--",C81*I81) -> 75398.14488 | K81: =VLOOKUP(in_out_pipe_diam,st_pipe_cost_cl,IF(ss_cat="large",4,5)) -> 35 | L81: 0 | M81: =$B$76&" "&" - "&B81 -> Inlet and Outlet Piping - Steel | N81: 4 | O81: 4 | P81: 2 | Q81: 4 | R81: 4 | S81: 2 | T81: 4 | U81: 4 | V81: 2 | W81: 0 | X81: 0
A82: 4.6 | B82: Residuals Piping | W82: 0 | X82: 0
A83: 4.6.1 | B83: CPVC | C83: =res_pipe_length -> 200 | D83: lf | E83: =res_pipe_diam -> 8 | F83: in. diam | G83: =IF(curve=1,res_pipe_diam,VLOOKUP(res_pipe_diam,cpvc_pipe_cost_cl,2)) -> 8 | H83: in. diam | I83: =IF(curve=1,cpvc_pipe_eq_res,VLOOKUP(res_pipe_diam,cpvc_pipe_cost_cl,3)) -> 64.64436493 | J83: =IF(I83="contact vendor","--",C83*I83) -> 12928.87299 | K83: =VLOOKUP(res_pipe_diam,cpvc_pipe_cost_cl,IF(ss_cat="large",4,5)) -> 22 | L83: 0 | M83: =$B$82&" "&" - "&B83 -> Residuals Piping - CPVC | N83: 2 | O83: 1 | P83: 3 | Q83: 2 | R83: 1 | S83: 3 | T83: 2 | U83: 1 | V83: 3 | W83: 0 | X83: 0
A84: 4.6.1 | B84: PVC | C84: =res_pipe_length -> 200 | D84: lf | E84: =res_pipe_diam -> 8 | F84: in. diam | G84: =IF(curve=1,res_pipe_diam,VLOOKUP(res_pipe_diam,pvc_pipe_cost_cl,2)) -> 8 | H84: in. diam | I84: =IF(curve=1,pvc_pipe_eq_res,VLOOKUP(res_pipe_diam,pvc_pipe_cost_cl,3)) -> 10.65426283 | J84: =IF(I84="contact vendor","--",C84*I84) -> 2130.852566 | K84: =VLOOKUP(res_pipe_diam,pvc_pipe_cost_cl,IF(ss_cat="large",4,5)) -> 22 | L84: 1 | M84: =$B$82&" "&" - "&B84 -> Residuals Piping - PVC | N84: 1 | O84: 2 | P84: 4 | Q84: 1 | R84: 2 | S84: 4 | T84: 1 | U84: 2 | V84: 4 | W84: 1 | X84: 96.85693481
A85: 4.6.1 | B85: Stainless Steel | C85: =res_pipe_length -> 200 | D85: lf | E85: =res_pipe_diam -> 8 | F85: in. diam | G85: =IF(curve=1,res_pipe_diam,VLOOKUP(res_pipe_diam,ss_pipe_cost_cl,2)) -> 8 | H85: in. diam | I85: =IF(curve=1,ss_pipe_eq_res,VLOOKUP(res_pipe_diam,ss_pipe_cost_cl,3)) -> 234.8844384 | J85: =IF(I85="contact vendor","--",C85*I85) -> 46976.88768 | K85: =VLOOKUP(res_pipe_diam,ss_pipe_cost_cl,IF(ss_cat="large",4,5)) -> 45 | L85: 0 | M85: =$B$82&" "&" - "&B85 -> Residuals Piping - Stainless Steel | N85: 4 | O85: 4 | P85: 1 | Q85: 4 | R85: 4 | S85: 1 | T85: 4 | U85: 4 | V85: 1 | W85: 0 | X85: 0
A86: 4.6.1 | B86: Steel | C86: =res_pipe_length -> 200 | D86: lf | E86: =res_pipe_diam -> 8 | F86: in. diam | G86: =IF(curve=1,res_pipe_diam,VLOOKUP(res_pipe_diam,st_pipe_cost_cl,2)) -> 8 | H86: in. diam | I86: =IF(curve=1,st_pipe_eq_res,VLOOKUP(res_pipe_diam,st_pipe_cost_cl,3)) -> 125.9159589 | J86: =IF(I86="contact vendor","--",C86*I86) -> 25183.19178 | K86: =VLOOKUP(res_pipe_diam,st_pipe_cost_cl,IF(ss_cat="large",4,5)) -> 35 | L86: 0 | M86: =$B$82&" "&" - "&B86 -> Residuals Piping - Steel | N86: 3 | O86: 3 | P86: 2 | Q86: 3 | R86: 3 | S86: 2 | T86: 3 | U86: 3 | V86: 2 | W86: 0 | X86: 0
A87: 4.6.2 | B87: Excavation | C87: =res_trench_vol -> 48.51872252 | D87: cy | E87: NA | G87: NA | I87: =IF(C87=0,"NA",VLOOKUP(0,excavate_cost_cl,3)) -> 30.08331518 | J87: =IF(OR(I87="contact vendor",C87=0),"--",C87*I87) -> 1459.604022 | K87: =IF(I87="NA","N/A",IF(L$83=1,K$83,IF(L$84=1,K$84,IF(L$85=1,K$85,IF(L$86=1,K$86,"N/A"))))) -> 22 | L87: 1 | M87: =$B$82&" - "&B87 -> Residuals Piping - Excavation | N87: 1 | O87: 1 | P87: 1 | Q87: 1 | R87: 1 | S87: 1 | T87: 1 | U87: 1 | V87: 1 | W87: 1 | X87: 66.34563735
A88: 4.6.3 | B88: Bedding | C88: =res_pipe_bedding_vol -> 1.595540342 | D88: cy | E88: NA | G88: NA | I88: =IF(C88=0,"NA",VLOOKUP(0,bedding_cost_cl,3)) -> 53.92609197 | J88: =IF(OR(I88="contact vendor",C88=0),"--",C88*I88) -> 86.0412552 | K88: =IF(I88="NA","N/A",IF(L$83=1,K$83,IF(L$84=1,K$84,IF(L$85=1,K$85,IF(L$86=1,K$86,"N/A"))))) -> 22 | L88: 1 | M88: =$B$82&" - "&B88 -> Residuals Piping - Bedding | N88: 1 | O88: 1 | P88: 1 | Q88: 1 | R88: 1 | S88: 1 | T88: 1 | U88: 1 | V88: 1 | W88: 1 | X88: 3.910966145
A89: 4.6.4 | B89: Backfill and Compaction | C89: =res_trench_vol -> 48.51872252 | D89: cy | E89: NA | G89: NA | I89: =IF(C89=0,"NA",VLOOKUP(0,backfill_cost_cl,3)) -> 13.94672224 | J89: =IF(OR(I89="contact vendor",C89=0),"--",C89*I89) -> 676.6771466 | K89: =IF(I89="NA","N/A",IF(L$83=1,K$83,IF(L$84=1,K$84,IF(L$85=1,K$85,IF(L$86=1,K$86,"N/A"))))) -> 22 | L89: 1 | M89: =$B$82&" - "&B89 -> Residuals Piping - Backfill and Compaction | N89: 1 | O89: 1 | P89: 1 | Q89: 1 | R89: 1 | S89: 1 | T89: 1 | U89: 1 | V89: 1 | W89: 1 | X89: 30.75805212
A90: 4.6.5 | B90: Thrust Blocks | C90: =res_block_vol -> 3.580450918 | D90: cy | E90: NA | G90: NA | I90: =IF(C90=0,"NA",VLOOKUP(0,conc_basin_cost_cl,3)) -> 582.0856777 | J90: =IF(OR(I90="contact vendor",C90=0),"--",C90*I90) -> 2084.129199 | K90: =IF(I90="NA","N/A",IF(L$83=1,K$83,IF(L$84=1,K$84,IF(L$85=1,K$85,IF(L$86=1,K$86,"N/A"))))) -> 22 | L90: 1 | M90: =$B$82&" - "&B90 -> Residuals Piping - Thrust Blocks | N90: 1 | O90: 1 | P90: 1 | Q90: 1 | R90: 1 | S90: 1 | T90: 1 | U90: 1 | V90: 1 | W90: 1 | X90: 94.73314542
A91: 4.7 | B91: Polymer Piping | W91: 0 | X91: 0
A92: 4.7.1 | B92: CPVC | C92: =polymer_pipe_length -> 0 | D92: lf | E92: =IF(C92=0,"NA",polymer_pipe_diam) -> NA | F92: =IF(C92=0,"","in diam") ->  | G92: =IF(C92=0,"NA",IF(curve=1,polymer_pipe_diam,VLOOKUP(polymer_pipe_diam,cpvc_pipe_cost_cl,2))) -> NA | H92: =IF(C92=0,"","in diam") ->  | I92: =IF(C92=0,"NA",IF(curve=1,cpvc_pipe_eq_polymer,VLOOKUP(polymer_pipe_diam,cpvc_pipe_cost_cl,3))) -> NA | J92: =IF(OR(C92=0,I92="contact vendor"),"--",C92*I92) -> -- | K92: =IF(C92=0,"NA",VLOOKUP(polymer_pipe_diam,cpvc_pipe_cost_cl,IF(ss_cat="large",4,5))) -> NA | M92: =$B$91&" - "&B92 -> Polymer Piping - CPVC | N92: 2 | O92: 1 | P92: 3 | Q92: 2 | R92: 1 | S92: 3 | T92: 2 | U92: 1 | V92: 3 | W92: 0 | X92: 0
A93: 4.7.1 | B93: PVC | C93: =polymer_pipe_length -> 0 | D93: lf | E93: =IF(C93=0,"NA",polymer_pipe_diam) -> NA | F93: =IF(C93=0,"","in diam") ->  | G93: =IF(C93=0,"NA",IF(curve=1,polymer_pipe_diam,VLOOKUP(polymer_pipe_diam,pvc_pipe_cost_cl,2))) -> NA | H93: =IF(C93=0,"","in diam") ->  | I93: =IF(C93=0,"NA",IF(curve=1,pvc_pipe_eq_polymer,VLOOKUP(polymer_pipe_diam,pvc_pipe_cost_cl,3))) -> NA | J93: =IF(OR(C93=0,I93="contact vendor"),"--",C93*I93) -> -- | K93: =IF(C93=0,"NA",VLOOKUP(polymer_pipe_diam,pvc_pipe_cost_cl,IF(ss_cat="large",4,5))) -> NA | M93: =$B$91&" - "&B93 -> Polymer Piping - PVC | N93: 1 | O93: 2 | P93: 4 | Q93: 1 | R93: 2 | S93: 4 | T93: 1 | U93: 2 | V93: 4 | W93: =IF(ISERROR(K93*L93),0,IF(K93<1,0,L93)) -> 0 | X93: =IF(W93,J93/K93,0) -> 0
A94: 4.7.1 | B94: Stainless Steel | C94: =polymer_pipe_length -> 0 | D94: lf | E94: =IF(C94=0,"NA",polymer_pipe_diam) -> NA | F94: =IF(C94=0,"","in diam") ->  | G94: =IF(C94=0,"NA",IF(curve=1,polymer_pipe_diam,VLOOKUP(polymer_pipe_diam,ss_pipe_cost_cl,2))) -> NA | H94: =IF(C94=0,"","in diam") ->  | I94: =IF(C94=0,"NA",IF(curve=1,ss_pipe_eq_polymer,VLOOKUP(polymer_pipe_diam,ss_pipe_cost_cl,3))) -> NA | J94: =IF(OR(C94=0,I94="contact vendor"),"--",C94*I94) -> -- | K94: =IF(C94=0,"NA",VLOOKUP(polymer_pipe_diam,ss_pipe_cost_cl,IF(ss_cat="large",4,5))) -> NA | M94: =$B$91&" - "&B94 -> Polymer Piping - Stainless Steel | N94: 4 | O94: 4 | P94: 1 | Q94: 4 | R94: 4 | S94: 1 | T94: 4 | U94: 4 | V94: 1 | W94: 0 | X94: 0
A95: 4.7.1 | B95: Steel | C95: =polymer_pipe_length -> 0 | D95: lf | E95: =IF(C95=0,"NA",polymer_pipe_diam) -> NA | F95: =IF(C95=0,"","in diam") ->  | G95: =IF(C95=0,"NA",IF(curve=1,polymer_pipe_diam,VLOOKUP(polymer_pipe_diam,st_pipe_cost_cl,2))) -> NA | H95: =IF(C95=0,"","in diam") ->  | I95: =IF(C95=0,"NA",IF(curve=1,st_pipe_eq_polymer,VLOOKUP(polymer_pipe_diam,st_pipe_cost_cl,3))) -> NA | J95: =IF(OR(C95=0,I95="contact vendor"),"--",C95*I95) -> -- | K95: =IF(C95=0,"NA",VLOOKUP(polymer_pipe_diam,st_pipe_cost_cl,IF(ss_cat="large",4,5))) -> NA | M95: =$B$91&" - "&B95 -> Polymer Piping - Steel | N95: 3 | O95: 3 | P95: 2 | Q95: 3 | R95: 3 | S95: 2 | T95: 3 | U95: 3 | V95: 2 | W95: 0 | X95: 0
A96: 5 | B96: Valves and Fittings | W96: 0 | X96: 0
A97: 5.1 | B97: Motor/Air Operated (on/off) | W97: 0 | X97: 0
A98: 5.1.1 | B98: Process - Polypropylene/PVC | C98: =tot_proc_MOVs -> 0 | D98: units | E98: =tank_valve_size -> 14 | F98: in. diam | G98: =IF(curve=1,tank_valve_size,VLOOKUP(tank_valve_size,pp_mov_cost_cl,2)) -> 14 | H98: in. diam | I98: =IF(curve=1,pp_mov_eq_tank,VLOOKUP(tank_valve_size,pp_mov_cost_cl,3)) -> 9511.005058 | J98: =IF(I98="contact vendor","--",C98*I98) -> 0 | K98: =VLOOKUP(tank_valve_size,pp_mov_cost_cl,IF(ss_cat="large",4,5)) -> 25 | M98: =$B$96&" - "&$B$97&" - "&B98 -> Valves and Fittings - Motor/Air Operated (on/off) - Process - Polypropylene/PVC | N98: 1 | O98: 2 | P98: 3 | Q98: 1 | R98: 2 | S98: 3 | T98: 1 | U98: 2 | V98: 3 | W98: 0 | X98: 0
A99: 5.1.1 | B99: Process - Stainless Steel | C99: =tot_proc_MOVs -> 0 | D99: units | E99: =tank_valve_size -> 14 | F99: in. diam | G99: =IF(curve=1,tank_valve_size,VLOOKUP(tank_valve_size,ss_mov_cost_cl,2)) -> 14 | H99: in. diam | I99: =IF(curve=1,ss_mov_eq_tank,VLOOKUP(tank_valve_size,ss_mov_cost_cl,3)) -> 20445.83775 | J99: 0 | K99: =VLOOKUP(tank_valve_size,ss_mov_cost_cl,IF(ss_cat="large",4,5)) -> 25 | M99: =$B$96&" - "&$B$97&" - "&B99 -> Valves and Fittings - Motor/Air Operated (on/off) - Process - Stainless Steel | N99: 3 | O99: 3 | P99: 1 | Q99: 3 | R99: 3 | S99: 1 | T99: 3 | U99: 3 | V99: 1 | W99: 0 | X99: 0
A100: 5.1.1 | B100: Process - Cast Iron | C100: =tot_proc_MOVs -> 0 | D100: units | E100: =tank_valve_size -> 14 | F100: in. diam | G100: =IF(curve=1,tank_valve_size,VLOOKUP(tank_valve_size,ci_mov_cost_cl,2)) -> 14 | H100: in. diam | I100: =IF(curve=1,ss_mov_eq_tank,VLOOKUP(tank_valve_size,ci_mov_cost_cl,3)) -> 20445.83775 | J100: 0 | K100: =VLOOKUP(tank_valve_size,ci_mov_cost_cl,IF(ss_cat="large",4,5)) -> 25 | M100: Valves and Fittings - Motor/Air Operated (on/off) - Process - Cast Iron | N100: 2 | O100: 1 | P100: 2 | Q100: 2 | R100: 1 | S100: 2 | T100: 2 | U100: 1 | V100: 2 | W100: 0 | X100: 0
A101: 5.1.2 | B101: Backwash - Polypropylene/PVC | C101: =tot_back_MOVs -> 0 | D101: units | E101: =back_valve_size -> 6 | F101: in. diam | G101: =IF(curve=1,back_valve_size,VLOOKUP(back_valve_size,pp_mov_cost_cl,2)) -> 6 | H101: in. diam | I101: =IF(curve=1,pp_mov_eq_back,VLOOKUP(back_valve_size,pp_mov_cost_cl,3)) -> 1573.984945 | J101: 0 | K101: =VLOOKUP(back_valve_size,pp_mov_cost_cl,IF(ss_cat="large",4,5)) -> 25 | M101: Valves and Fittings - Motor/Air Operated (on/off) - Backwash - Polypropylene/PVC | N101: 1 | O101: 2 | P101: 3 | Q101: 1 | R101: 2 | S101: 3 | T101: 1 | U101: 2 | V101: 3 | W101: 0 | X101: 0
A102: 5.1.2 | B102: Backwash - Stainless Steel | C102: =tot_back_MOVs -> 0 | D102: units | E102: =back_valve_size -> 6 | F102: in. diam | G102: =IF(curve=1,back_valve_size,VLOOKUP(back_valve_size,ss_mov_cost_cl,2)) -> 6 | H102: in. diam | I102: =IF(curve=1,ss_mov_eq_back,VLOOKUP(back_valve_size,ss_mov_cost_cl,3)) -> 5244.700518 | J102: 0 | K102: =VLOOKUP(back_valve_size,ss_mov_cost_cl,IF(ss_cat="large",4,5)) -> 25 | M102: Valves and Fittings - Motor/Air Operated (on/off) - Backwash - Stainless Steel | N102: 3 | O102: 3 | P102: 1 | Q102: 3 | R102: 3 | S102: 1 | T102: 3 | U102: 3 | V102: 1 | W102: 0 | X102: 0
A103: 5.1.2 | B103: Backwash - Cast Iron | C103: =tot_back_MOVs -> 0 | D103: units | E103: =back_valve_size -> 6 | F103: in. diam | G103: =IF(curve=1,back_valve_size,VLOOKUP(back_valve_size,ci_mov_cost_cl,2)) -> 6 | H103: in. diam | I103: =IF(curve=1,ci_mov_eq_back,VLOOKUP(back_valve_size,ci_mov_cost_cl,3)) -> 2439.319396 | J103: =IF(I103="contact vendor","--",C103*I103) -> 0 | K103: =VLOOKUP(back_valve_size,ci_mov_cost_cl,IF(ss_cat="large",4,5)) -> 25 | M103: Valves and Fittings - Motor/Air Operated (on/off) - Backwash - Cast Iron | N103: 2 | O103: 1 | P103: 2 | Q103: 2 | R103: 1 | S103: 2 | T103: 2 | U103: 1 | V103: 2 | W103: 0 | X103: 0
A104: 5.1.3 | B104: Brine - Polypropylene/PVC | C104: =tot_brine_MOVs -> 0 | D104: units | E104: =brine_valve_size -> 6 | F104: in. diam | G104: =IF(curve=1,brine_valve_size,VLOOKUP(brine_valve_size,pp_mov_cost_cl,2)) -> 6 | H104: in. diam | I104: =IF(curve=1,pp_mov_eq_brine,VLOOKUP(brine_valve_size,pp_mov_cost_cl,3)) -> 1573.984945 | J104: 0 | K104: =VLOOKUP(brine_valve_size,pp_mov_cost_cl,IF(ss_cat="large",4,5)) -> 25 | M104: Valves and Fittings - Motor/Air Operated (on/off) - Brine - Polypropylene/PVC | N104: 1 | O104: 2 | P104: 2 | Q104: 1 | R104: 2 | S104: 2 | T104: 1 | U104: 2 | V104: 2 | W104: 0 | X104: 0
A105: 5.1.3 | B105: Brine - Stainless Steel | C105: =tot_brine_MOVs -> 0 | D105: units | E105: =brine_valve_size -> 6 | F105: in. diam | G105: =IF(curve=1,brine_valve_size,VLOOKUP(brine_valve_size,ss_mov_cost_cl,2)) -> 6 | H105: in. diam | I105: =IF(curve=1,ss_mov_eq_brine,VLOOKUP(brine_valve_size,ss_mov_cost_cl,3)) -> 5244.700518 | J105: 0 | K105: =VLOOKUP(brine_valve_size,ss_mov_cost_cl,IF(ss_cat="large",4,5)) -> 25 | M105: Valves and Fittings - Motor/Air Operated (on/off) - Brine - Stainless Steel | N105: 2 | O105: 1 | P105: 1 | Q105: 2 | R105: 1 | S105: 1 | T105: 2 | U105: 1 | V105: 1 | W105: 0 | X105: 0
A106: 5.1.4 | B106: Bypass - Polypropylene/PVC | C106: =IF(bp_pct>0,tot_bp_MOVs,0) -> 0 | D106: units | E106: =IF(bp_pct=0,"NA",bypass_valve_size) -> NA | F106: =IF(bp_pct=0," ","in. diam") ->  | G106: =IF(bp_pct=0,"NA",(IF(curve=1,bypass_valve_size,VLOOKUP(bypass_valve_size,pp_mov_cost_cl,2)))) -> NA | H106: =IF(bp_pct=0," ","in. diam") ->  | I106: =IF(bp_pct=0,"NA",(IF(curve=1,pp_mov_eq_bp,VLOOKUP(bypass_valve_size,pp_mov_cost_cl,3)))) -> NA | J106: =IF(bp_pct=0,0,IF(I106="contact vendor","--",C106*I106)) -> 0 | K106: =IF(bp_pct=0,"NA",VLOOKUP(bypass_valve_size,pp_mov_cost_cl,IF(ss_cat="large",4,5))) -> NA | M106: Valves and Fittings - Motor/Air Operated (on/off) - Bypass - Polypropylene/PVC | N106: 1 | O106: 2 | P106: 3 | Q106: 1 | R106: 2 | S106: 3 | T106: 1 | U106: 2 | V106: 3 | W106: 0 | X106: 0
A107: 5.1.4 | B107: Bypass - Stainless Steel | C107: =IF(bp_pct>0,tot_bp_MOVs,0) -> 0 | D107: units | E107: =IF(bp_pct=0,"NA",bypass_valve_size) -> NA | F107: =IF(bp_pct=0," ","in. diam") ->  | G107: =IF(bp_pct=0,"NA",(IF(curve=1,bypass_valve_size,VLOOKUP(bypass_valve_size,ss_mov_cost_cl,2)))) -> NA | H107: =IF(bp_pct=0," ","in. diam") ->  | I107: =IF(bp_pct=0,"NA",(IF(curve=1,ss_mov_eq_bp,VLOOKUP(bypass_valve_size,ss_mov_cost_cl,3)))) -> NA | J107: =IF(bp_pct=0,0,IF(I107="contact vendor","--",C107*I107)) -> 0 | K107: =IF(bp_pct=0,"NA",VLOOKUP(bypass_valve_size,ss_mov_cost_cl,IF(ss_cat="large",4,5))) -> NA | M107: Valves and Fittings - Motor/Air Operated (on/off) - Bypass - Stainless Steel | N107: 3 | O107: 3 | P107: 1 | Q107: 3 | R107: 3 | S107: 1 | T107: 3 | U107: 3 | V107: 1 | W107: 0 | X107: 0
A108: 5.1.4 | B108: Bypass - Cast Iron | C108: =IF(bp_pct>0,tot_bp_MOVs,0) -> 0 | D108: units | E108: =IF(bp_pct=0,"NA",bypass_valve_size) -> NA | F108: =IF(bp_pct=0," ","in. diam") ->  | G108: =IF(bp_pct=0,"NA",(IF(curve=1,bypass_valve_size,VLOOKUP(bypass_valve_size,ci_mov_cost_cl,2)))) -> NA | H108: =IF(bp_pct=0," ","in. diam") ->  | I108: =IF(bp_pct=0,"NA",(IF(curve=1,ci_mov_eq_bp,VLOOKUP(bypass_valve_size,ci_mov_cost_cl,3)))) -> NA | J108: =IF(bp_pct=0,0,IF(I108="contact vendor","--",C108*I108)) -> 0 | K108: =IF(bp_pct=0,"NA",VLOOKUP(bypass_valve_size,ci_mov_cost_cl,IF(ss_cat="large",4,5))) -> NA | M108: Valves and Fittings - Motor/Air Operated (on/off) - Bypass - Cast Iron | N108: 2 | O108: 1 | P108: 2 | Q108: 2 | R108: 1 | S108: 2 | T108: 2 | U108: 1 | V108: 2 | W108: 0 | X108: 0
A109: 5.1.5 | B109: Residuals - Polypropylene/PVC | C109: =total_res_MOVs -> 0 | D109: units | E109: =IF(C109=0,"NA",res_valve_size) -> NA | F109: =IF(C109=0,"","in. diam") ->  | G109: =IF(C109=0,"NA",IF(curve=1,res_valve_size,VLOOKUP(res_valve_size,pp_mov_cost_cl,2))) -> NA | H109: =IF(C109=0,"","in. diam") ->  | I109: =IF(C109=0,0,IF(curve=1,pp_mov_eq_res,VLOOKUP(res_valve_size,pp_mov_cost_cl,3))) -> 0 | J109: =IF(I109="contact vendor","--",C109*I109) -> 0 | K109: =IF(C109=0,"NA",VLOOKUP(res_valve_size,pp_mov_cost_cl,IF(ss_cat="large",4,5))) -> NA | M109: =$B$96 & " - " & $B$97&" "&" - "&B109 -> Valves and Fittings - Motor/Air Operated (on/off) - Residuals - Polypropylene/PVC | N109: 1 | O109: 2 | P109: 3 | Q109: 1 | R109: 2 | S109: 3 | T109: 1 | U109: 2 | V109: 3 | W109: 0 | X109: 0
A110: 5.1.5 | B110: Residuals - Stainless Steel | C110: =total_res_MOVs -> 0 | D110: units | E110: =IF(C110=0,"NA",res_valve_size) -> NA | G110: =IF(C110=0,"NA",IF(curve=1,res_valve_size,VLOOKUP(res_valve_size,ss_mov_cost_cl,2))) -> NA | I110: =IF(C110=0,0,IF(curve=1,ss_mov_eq_res,VLOOKUP(res_valve_size,ss_mov_cost_cl,3))) -> 0 | J110: =IF(I110="contact vendor","--",C110*I110) -> 0 | K110: =IF(C110=0,"NA",VLOOKUP(res_valve_size,ss_mov_cost_cl,IF(ss_cat="large",4,5))) -> NA | M110: Valves and Fittings - Motor/Air Operated (on/off) - Residuals - Stainless Steel | N110: 3 | O110: 3 | P110: 1 | Q110: 3 | R110: 3 | S110: 1 | T110: 3 | U110: 3 | V110: 1 | W110: 0 | X110: 0
A111: 5.1.5 | B111: Residuals - Cast Iron | C111: =total_res_MOVs -> 0 | D111: units | E111: =IF(C111=0,"NA",res_valve_size) -> NA | G111: =IF(C111=0,"NA",IF(curve=1,res_valve_size,VLOOKUP(res_valve_size,ci_mov_cost_cl,2))) -> NA | I111: =IF(C111=0,0,IF(curve=1,ci_mov_eq_res,VLOOKUP(res_valve_size,ci_mov_cost_cl,3))) -> 0 | J111: =IF(I111="contact vendor","--",C111*I111) -> 0 | K111: =IF(C111=0,"NA",VLOOKUP(res_valve_size,ci_mov_cost_cl,IF(ss_cat="large",4,5))) -> NA | M111: Valves and Fittings - Motor/Air Operated (on/off) - Residuals - Cast Iron | N111: 2 | O111: 1 | P111: 2 | Q111: 2 | R111: 1 | S111: 2 | T111: 2 | U111: 1 | V111: 2 | W111: 0 | X111: 0
A112: 5.1.6 | B112: Polymer- Polypropylene/PVC | C112: =tot_polymer_MOVs -> 0 | D112: units | E112: =IF(C112=0,"NA",polymer_valve_size) -> NA | G112: =IF(C112=0,"NA",IF(curve=1,polymer_valve_size,VLOOKUP(polymer_valve_size,pp_mov_cost_cl,2))) -> NA | I112: =IF(C112=0,"NA",IF(curve=1,pp_mov_eq_polymer,VLOOKUP(polymer_valve_size,pp_mov_cost_cl,3))) -> NA | J112: =IF(OR(C112=0,I112="contact vendor"),"--",C112*I112) -> -- | K112: =IF(C112=0,"NA",VLOOKUP(polymer_valve_size,pp_mov_cost_cl,IF(ss_cat="large",4,5))) -> NA | M112: Valves and Fittings - Motor/Air Operated (on/off) - Polymer- Polypropylene/PVC | N112: 1 | O112: 2 | P112: 3 | Q112: 1 | R112: 2 | S112: 3 | T112: 1 | U112: 2 | V112: 3 | W112: 0 | X112: 0
A113: 5.1.6 | B113: Polymer- Stainless Steel | C113: =tot_polymer_MOVs -> 0 | D113: units | E113: =IF(C113=0,"NA",polymer_valve_size) -> NA | G113: =IF(C113=0,"NA",IF(curve=1,polymer_valve_size,VLOOKUP(polymer_valve_size,ss_mov_cost_cl,2))) -> NA | I113: =IF(C113=0,"NA",IF(curve=1,ss_mov_eq_polymer,VLOOKUP(polymer_valve_size,ss_mov_cost_cl,3))) -> NA | J113: =IF(OR(C113=0,I113="contact vendor"),"--",C113*I113) -> -- | K113: =IF(C113=0,"NA",VLOOKUP(polymer_valve_size,ss_mov_cost_cl,IF(ss_cat="large",4,5))) -> NA | M113: Valves and Fittings - Motor/Air Operated (on/off) - Polymer- Stainless Steel | N113: 3 | O113: 3 | P113: 1 | Q113: 3 | R113: 3 | S113: 1 | T113: 3 | U113: 3 | V113: 1 | W113: 0 | X113: 0
A114: 5.1.6 | B114: Polymer- Cast Iron | C114: =tot_polymer_MOVs -> 0 | D114: units | E114: =IF(C114=0,"NA",polymer_valve_size) -> NA | G114: =IF(C114=0,"NA",IF(curve=1,polymer_valve_size,VLOOKUP(polymer_valve_size,ci_mov_cost_cl,2))) -> NA | I114: =IF(C114=0,"NA",IF(curve=1,ci_mov_eq_polymer,VLOOKUP(polymer_valve_size,ci_mov_cost_cl,3))) -> NA | J114: =IF(OR(C114=0,I114="contact vendor"),"--",C114*I114) -> -- | K114: =IF(C114=0,"NA",VLOOKUP(polymer_valve_size,ci_mov_cost_cl,IF(ss_cat="large",4,5))) -> NA | M114: Valves and Fittings - Motor/Air Operated (on/off) - Polymer- Cast Iron | N114: 2 | O114: 1 | P114: 2 | Q114: 2 | R114: 1 | S114: 2 | T114: 2 | U114: 1 | V114: 2 | W114: 0 | X114: 0
A115: 5.2 | B115: Manual | W115: 0 | X115: 0
A116: 5.2.1 | B116: Inlet and outlet - Polypropylene/PVC | C116: =tot_man_valves -> 2 | D116: units | E116: =in_valve_size -> 36 | F116: in. diam | G116: =IF(curve=1,in_valve_size,VLOOKUP(in_valve_size,pp_man_cost_cl,2)) -> 36 | H116: in. diam | I116: =IF(curve=1,pp_man_eq,VLOOKUP(in_valve_size,pp_man_cost_cl,3)) -> contact vendor | J116: =IF(I116="contact vendor","--",C116*I116) -> -- | K116: =VLOOKUP(in_valve_size,pp_man_cost_cl,IF(ss_cat="large",4,5)) -> 25 | L116: 0 | M116: =$B$96&" - "&$B$115&" - "&B116 -> Valves and Fittings - Manual - Inlet and outlet - Polypropylene/PVC | N116: 1 | O116: 2 | P116: 3 | Q116: 1 | R116: 2 | S116: 3 | T116: 1 | U116: 2 | V116: 3 | W116: 0 | X116: 0
A117: 5.2.1 | B117: Inlet and outlet - Stainless Steel | C117: =tot_man_valves -> 2 | D117: units | E117: =in_valve_size -> 36 | F117: in. diam | G117: =IF(curve=1,in_valve_size,VLOOKUP(in_valve_size,ss_man_cost_cl,2)) -> 36 | H117: in. diam | I117: =IF(curve=1,ss_man_eq,VLOOKUP(in_valve_size,ss_man_cost_cl,3)) -> contact vendor | J117: -- | K117: =VLOOKUP(in_valve_size,ss_man_cost_cl,IF(ss_cat="large",4,5)) -> 25 | L117: 0 | M117: Valves and Fittings - Manual - Inlet and outlet - Stainless Steel | N117: 3 | O117: 3 | P117: 1 | Q117: 3 | R117: 3 | S117: 1 | T117: 3 | U117: 3 | V117: 1 | W117: 0 | X117: 0
A118: 5.2.1 | B118: Inlet and outlet - Cast Iron | C118: =tot_man_valves -> 2 | D118: units | E118: =in_valve_size -> 36 | F118: in. diam | G118: =IF(curve=1,in_valve_size,VLOOKUP(in_valve_size,ci_bfv_cost_cl,2)) -> 36 | H118: in. diam | I118: =IF(curve=1,ci_bfv_eq,VLOOKUP(in_valve_size,ci_bfv_cost_cl,3)) -> 15135.322 | J118: 30270.644 | K118: =VLOOKUP(in_valve_size,ci_bfv_cost_cl,IF(ss_cat="large",4,5)) -> 25 | L118: 1 | M118: Valves and Fittings - Manual - Inlet and outlet - Cast Iron | N118: 2 | O118: 1 | P118: 2 | Q118: 2 | R118: 1 | S118: 2 | T118: 2 | U118: 1 | V118: 2 | W118: 1 | X118: 1210.82576
A119: 5.2.2 | B119: Process - Polypropylene/PVC | C119: =tot_proc_man -> 65 | D119: units | E119: =tank_valve_size -> 14 | F119: in. diam | G119: =IF(curve=1,tank_valve_size,VLOOKUP(tank_valve_size,pp_man_cost_cl,2)) -> 14 | H119: in. diam | I119: =IF(curve=1,pp_man_eq_proc,VLOOKUP(tank_valve_size,pp_man_cost_cl,3)) -> 7281.448915 | J119: 473294.1795 | K119: =VLOOKUP(tank_valve_size,pp_man_cost_cl,IF(ss_cat="large",4,5)) -> 25 | L119: 1 | M119: Valves and Fittings - Manual - Process - Polypropylene/PVC | N119: 1 | O119: 2 | P119: 3 | Q119: 1 | R119: 2 | S119: 3 | T119: 1 | U119: 2 | V119: 3 | W119: 1 | X119: 18931.76718
A120: 5.2.2 | B120: Process - Stainless Steel | C120: =tot_proc_man -> 65 | D120: units | E120: =tank_valve_size -> 14 | F120: in. diam | G120: =IF(curve=1,tank_valve_size,VLOOKUP(tank_valve_size,ss_man_cost_cl,2)) -> 14 | H120: in. diam | I120: =IF(curve=1,ss_man_eq_proc,VLOOKUP(tank_valve_size,ss_man_cost_cl,3)) -> contact vendor | J120: -- | K120: =VLOOKUP(tank_valve_size,ss_man_cost_cl,IF(ss_cat="large",4,5)) -> 25 | L120: 0 | M120: Valves and Fittings - Manual - Process - Stainless Steel | N120: 3 | O120: 3 | P120: 1 | Q120: 3 | R120: 3 | S120: 1 | T120: 3 | U120: 3 | V120: 1 | W120: 0 | X120: 0
A121: 5.2.2 | B121: Process - Cast Iron | C121: =tot_proc_man -> 65 | D121: units | E121: =tank_valve_size -> 14 | F121: in. diam | G121: =IF(curve=1,tank_valve_size,VLOOKUP(tank_valve_size,ci_bfv_cost_cl,2)) -> 14 | H121: in. diam | I121: =IF(curve=1,ci_bfv_eq_proc,VLOOKUP(tank_valve_size,ci_bfv_cost_cl,3)) -> 3371.624861 | J121: 219155.616 | K121: =VLOOKUP(tank_valve_size,ci_bfv_cost_cl,IF(ss_cat="large",4,5)) -> 25 | L121: 0 | M121: Valves and Fittings - Manual - Process - Cast Iron | N121: 2 | O121: 1 | P121: 2 | Q121: 2 | R121: 1 | S121: 2 | T121: 2 | U121: 1 | V121: 2 | W121: 0 | X121: 0
A122: 5.2.3 | B122: Backwash - Polypropylene/PVC | C122: =tot_back_man -> 41 | D122: units | E122: =back_valve_size -> 6 | F122: in. diam | G122: =IF(curve=1,back_valve_size,VLOOKUP(back_valve_size,pp_man_cost_cl,2)) -> 6 | H122: in. diam | I122: =IF(curve=1,pp_man_eq_back,VLOOKUP(back_valve_size,pp_man_cost_cl,3)) -> 631.8789525 | J122: 25907.03705 | K122: =VLOOKUP(back_valve_size,pp_man_cost_cl,IF(ss_cat="large",4,5)) -> 25 | L122: 1 | M122: Valves and Fittings - Manual - Backwash - Polypropylene/PVC | N122: 1 | O122: 2 | P122: 3 | Q122: 1 | R122: 2 | S122: 3 | T122: 1 | U122: 2 | V122: 3 | W122: 1 | X122: 1036.281482
A123: 5.2.3 | B123: Backwash - Stainless Steel | C123: =tot_back_man -> 41 | D123: units | E123: =back_valve_size -> 6 | F123: in. diam | G123: =IF(curve=1,back_valve_size,VLOOKUP(back_valve_size,ss_man_cost_cl,2)) -> 6 | H123: in. diam | I123: =IF(curve=1,ss_man_eq_back,VLOOKUP(back_valve_size,ss_man_cost_cl,3)) -> 4500.866663 | J123: 184535.5332 | K123: =VLOOKUP(back_valve_size,ss_man_cost_cl,IF(ss_cat="large",4,5)) -> 25 | L123: 0 | M123: Valves and Fittings - Manual - Backwash - Stainless Steel | N123: 3 | O123: 3 | P123: 1 | Q123: 3 | R123: 3 | S123: 1 | T123: 3 | U123: 3 | V123: 1 | W123: 0 | X123: 0
A124: 5.2.4 | B124: Backwash - Cast Iron | C124: =tot_back_man -> 41 | D124: units | E124: =back_valve_size -> 6 | F124: in. diam | G124: =IF(curve=1,back_valve_size,VLOOKUP(back_valve_size,ci_bfv_cost_cl,2)) -> 6 | H124: in. diam | I124: =IF(curve=1,ci_man_eq_back,VLOOKUP(back_valve_size,ci_bfv_cost_cl,3)) -> 1124.059641 | J124: =IF(I124="contact vendor","--",C124*I124) -> 46086.44528 | K124: =VLOOKUP(back_valve_size,ci_bfv_cost_cl,IF(ss_cat="large",4,5)) -> 25 | L124: 0 | M124: Valves and Fittings - Manual - Backwash - Cast Iron | N124: 2 | O124: 1 | P124: 2 | Q124: 2 | R124: 1 | S124: 2 | T124: 2 | U124: 1 | V124: 2 | W124: 0 | X124: 0
A125: 5.2.4 | B125: Brine - Polypropylene/PVC | C125: =tot_brine_man -> 35 | D125: units | E125: =brine_valve_size -> 6 | F125: in. diam | G125: =IF(curve=1,brine_valve_size,VLOOKUP(brine_valve_size,pp_man_cost_cl,2)) -> 6 | H125: in. diam | I125: =IF(curve=1,pp_man_eq_brine,VLOOKUP(brine_valve_size,pp_man_cost_cl,3)) -> 631.8789525 | J125: =IF(I125="contact vendor","--",C125*I125) -> 22115.76334 | K125: =VLOOKUP(brine_valve_size,pp_man_cost_cl,IF(ss_cat="large",4,5)) -> 25 | L125: 1 | M125: Valves and Fittings - Manual - Brine - Polypropylene/PVC | N125: 1 | O125: 2 | P125: 2 | Q125: 1 | R125: 2 | S125: 2 | T125: 1 | U125: 2 | V125: 2 | W125: 1 | X125: 884.6305335
A126: 5.2.4 | B126: Brine - Stainless Steel | C126: =tot_brine_man -> 35 | D126: units | E126: =brine_valve_size -> 6 | F126: in. diam | G126: =IF(curve=1,brine_valve_size,VLOOKUP(brine_valve_size,ss_man_cost_cl,2)) -> 6 | H126: in. diam | I126: =IF(curve=1,ss_man_eq_brine,VLOOKUP(brine_valve_size,ss_man_cost_cl,3)) -> 4500.866663 | J126: =IF(I126="contact vendor","--",C126*I126) -> 157530.3332 | K126: =VLOOKUP(brine_valve_size,ss_man_cost_cl,IF(ss_cat="large",4,5)) -> 25 | L126: 0 | M126: Valves and Fittings - Manual - Brine - Stainless Steel | N126: 2 | O126: 1 | P126: 1 | Q126: 2 | R126: 1 | S126: 1 | T126: 2 | U126: 1 | V126: 1 | W126: 0 | X126: 0
A127: 5.2.5 | B127: Bypass - Polypropylene/PVC | C127: =IF(bp_pct>0,tot_bp_man,0) -> 0 | D127: units | E127: =IF(bp_pct=0,"NA",bypass_valve_size) -> NA | F127: =IF(bp_pct=0," ","in. diam") ->  | G127: =IF(bp_pct=0,"NA",(IF(curve=1,bypass_valve_size,VLOOKUP(bypass_valve_size,pp_man_cost_cl,2)))) -> NA | H127: =IF(bp_pct=0," ","in. diam") ->  | I127: =IF(bp_pct=0,"NA",(IF(curve=1,pp_man_eq_bp,VLOOKUP(bypass_valve_size,pp_man_cost_cl,3)))) -> NA | J127: =IF(bp_pct=0,0,IF(I127="contact vendor","--",C127*I127)) -> 0 | K127: =IF(bp_pct=0,"NA",VLOOKUP(bypass_valve_size,pp_man_cost_cl,IF(ss_cat="large",4,5))) -> NA | M127: Valves and Fittings - Manual - Bypass - Polypropylene/PVC | N127: 1 | O127: 2 | P127: 3 | Q127: 1 | R127: 2 | S127: 3 | T127: 1 | U127: 2 | V127: 3 | W127: 0 | X127: 0
A128: 5.2.5 | B128: Bypass - Stainless Steel | C128: =IF(bp_pct>0,tot_bp_man,0) -> 0 | D128: units | E128: =IF(bp_pct=0,"NA",bypass_valve_size) -> NA | F128: =IF(bp_pct=0," ","in. diam") ->  | G128: =IF(bp_pct=0,"NA",(IF(curve=1,bypass_valve_size,VLOOKUP(bypass_valve_size,ss_man_cost_cl,2)))) -> NA | H128: =IF(bp_pct=0," ","in. diam") ->  | I128: =IF(bp_pct=0,"NA",(IF(curve=1,ss_man_eq_bp,VLOOKUP(bypass_valve_size,ss_man_cost_cl,3)))) -> NA | J128: =IF(bp_pct=0,0,IF(I128="contact vendor","--",C128*I128)) -> 0 | K128: =IF(bp_pct=0,"NA",VLOOKUP(bypass_valve_size,ss_man_cost_cl,IF(ss_cat="large",4,5))) -> NA | M128: Valves and Fittings - Manual - Bypass - Stainless Steel | N128: 3 | O128: 3 | P128: 1 | Q128: 3 | R128: 3 | S128: 1 | T128: 3 | U128: 3 | V128: 1 | W128: 0 | X128: 0
A129: 5.2.5 | B129: Bypass - Cast Iron | C129: =IF(bp_pct>0,tot_bp_man,0) -> 0 | D129: units | E129: =IF(bp_pct=0,"NA",bypass_valve_size) -> NA | F129: =IF(bp_pct=0," ","in. diam") ->  | G129: =IF(bp_pct=0,"NA",(IF(curve=1,bypass_valve_size,VLOOKUP(bypass_valve_size,ci_bfv_cost_cl,2)))) -> NA | H129: =IF(bp_pct=0," ","in. diam") ->  | I129: =IF(bp_pct=0,"NA",(IF(curve=1,ci_man_eq_bp,VLOOKUP(bypass_valve_size,ci_bfv_cost_cl,3)))) -> NA | J129: =IF(bp_pct=0,0,IF(I129="contact vendor","--",C129*I129)) -> 0 | K129: =IF(bp_pct=0,"NA",VLOOKUP(bypass_valve_size,ci_bfv_cost_cl,IF(ss_cat="large",4,5))) -> NA | M129: Valves and Fittings - Manual - Bypass - Cast Iron | N129: 2 | O129: 1 | P129: 2 | Q129: 2 | R129: 1 | S129: 2 | T129: 2 | U129: 1 | V129: 2 | W129: 0 | X129: 0
A130: 5.2.6 | B130: Residuals - Polypropylene/PVC | C130: =total_res_man -> 0 | D130: units | E130: =IF(C130=0,"NA",res_valve_size) -> NA | F130: =IF(C130=0,"","in. diam") ->  | G130: =IF(C130=0,"NA",IF(curve=1,res_valve_size,VLOOKUP(res_valve_size,pp_man_cost_cl,2))) -> NA | H130: =IF(C130=0,"","in. diam") ->  | I130: =IF(C130=0,0,IF(curve=1,pp_man_eq_res,VLOOKUP(res_valve_size,pp_man_cost_cl,3))) -> 0 | J130: =IF(I130="contact vendor","--",C130*I130) -> 0 | K130: =IF(C130=0,"NA",VLOOKUP(res_valve_size,pp_man_cost_cl,IF(ss_cat="large",4,5))) -> NA | M130: Valves and Fittings - Manual - Residuals - Polypropylene/PVC | N130: 1 | O130: 2 | P130: 3 | Q130: 1 | R130: 2 | S130: 3 | T130: 1 | U130: 2 | V130: 3 | W130: 0 | X130: 0
A131: 5.2.6 | B131: Residuals - Stainless Steel | C131: =total_res_man -> 0 | D131: units | E131: =IF(C131=0,"NA",res_valve_size) -> NA | G131: =IF(C131=0,"NA",IF(curve=1,res_valve_size,VLOOKUP(res_valve_size,ss_man_cost_cl,2))) -> NA | I131: =IF(C131=0,0,IF(curve=1,ss_man_eq_res,VLOOKUP(res_valve_size,ss_man_cost_cl,3))) -> 0 | J131: =IF(I131="contact vendor","--",C131*I131) -> 0 | K131: =IF(C131=0,"NA",VLOOKUP(res_valve_size,ss_man_cost_cl,IF(ss_cat="large",4,5))) -> NA | M131: Valves and Fittings - Manual - Residuals - Stainless Steel | N131: 3 | O131: 3 | P131: 1 | Q131: 3 | R131: 3 | S131: 1 | T131: 3 | U131: 3 | V131: 1 | W131: 0 | X131: 0
A132: 5.2.6 | B132: Residuals - Cast Iron | C132: =total_res_man -> 0 | D132: units | E132: =IF(C132=0,"NA",res_valve_size) -> NA | G132: =IF(C132=0,"NA",IF(curve=1,res_valve_size,VLOOKUP(res_valve_size,ci_bfv_cost_cl,2))) -> NA | I132: =IF(C132=0,0,IF(curve=1,ci_man_eq_res,VLOOKUP(res_valve_size,ci_bfv_cost_cl,3))) -> 0 | J132: =IF(I132="contact vendor","--",C132*I132) -> 0 | K132: =IF(C132=0,"NA",VLOOKUP(res_valve_size,ci_bfv_cost_cl,IF(ss_cat="large",4,5))) -> NA | M132: Valves and Fittings - Manual - Residuals - Cast Iron | N132: 2 | O132: 1 | P132: 2 | Q132: 2 | R132: 1 | S132: 2 | T132: 2 | U132: 1 | V132: 2 | W132: 0 | X132: 0
A133: 5.2.7 | B133: Polymer- Polypropylene/PVC | C133: =tot_polymer_man -> 0 | D133: units | E133: =IF(C133=0,"NA",polymer_valve_size) -> NA | G133: =IF(C133=0,"NA",IF(curve=1,polymer_valve_size,VLOOKUP(polymer_valve_size,pp_man_cost_cl,2))) -> NA | I133: =IF(C133=0,"NA",IF(curve=1,pp_man_eq_polymer,VLOOKUP(polymer_valve_size,pp_man_cost_cl,3))) -> NA | J133: =IF(OR(C133=0,I133="contact vendor"),"--",C133*I133) -> -- | K133: =IF(C133=0,"NA",VLOOKUP(polymer_valve_size,pp_man_cost_cl,IF(ss_cat="large",4,5))) -> NA | M133: Valves and Fittings - Manual - Polymer- Polypropylene/PVC | N133: 1 | O133: 2 | P133: 3 | Q133: 1 | R133: 2 | S133: 3 | T133: 1 | U133: 2 | V133: 3 | W133: 0 | X133: 0
A134: 5.2.7 | B134: Polymer- Stainless Steel | C134: =tot_polymer_man -> 0 | D134: units | E134: =IF(C134=0,"NA",polymer_valve_size) -> NA | G134: =IF(C134=0,"NA",IF(curve=1,polymer_valve_size,VLOOKUP(polymer_valve_size,ss_man_cost_cl,2))) -> NA | I134: =IF(C134=0,"NA",IF(curve=1,ss_man_eq_polymer,VLOOKUP(polymer_valve_size,ss_man_cost_cl,3))) -> NA | J134: =IF(OR(C134=0,I134="contact vendor"),"--",C134*I134) -> -- | K134: =IF(C134=0,"NA",VLOOKUP(polymer_valve_size,ss_man_cost_cl,IF(ss_cat="large",4,5))) -> NA | M134: Valves and Fittings - Manual - Polymer- Stainless Steel | N134: 3 | O134: 3 | P134: 1 | Q134: 3 | R134: 3 | S134: 1 | T134: 3 | U134: 3 | V134: 1 | W134: 0 | X134: 0
A135: 5.2.7 | B135: Polymer- Cast Iron | C135: =tot_polymer_man -> 0 | D135: units | E135: =IF(C135=0,"NA",polymer_valve_size) -> NA | G135: =IF(C135=0,"NA",IF(curve=1,polymer_valve_size,VLOOKUP(polymer_valve_size,ci_bfv_cost_cl,2))) -> NA | I135: =IF(C135=0,"NA",IF(curve=1,ci_man_eq_polymer,VLOOKUP(polymer_valve_size,ci_bfv_cost_cl,3))) -> NA | J135: =IF(OR(C135=0,I135="contact vendor"),"--",C135*I135) -> -- | K135: =IF(C135=0,"NA",VLOOKUP(polymer_valve_size,ci_bfv_cost_cl,IF(ss_cat="large",4,5))) -> NA | M135: Valves and Fittings - Manual - Polymer- Cast Iron | N135: 2 | O135: 1 | P135: 2 | Q135: 2 | R135: 1 | S135: 2 | T135: 2 | U135: 1 | V135: 2 | W135: 0 | X135: 0
A136: 5.3 | B136: Check Valves | W136: 0 | X136: 0
A137: 5.3.1 | B137: Backwash - Polypropylene/PVC | C137: =tot_back_chv -> 2 | D137: units | E137: =IF(C137=0,"NA",back_valve_size) -> 6 | F137: =IF(C137=0,"","in. diam") -> in. diam | G137: =IF(C137=0,"NA",(IF(curve=1,back_valve_size,VLOOKUP(back_valve_size,pp_chv_cost_cl,2)))) -> 6 | H137: =IF(C137=0,"","in. diam") -> in. diam | I137: =IF(C137=0,"NA",(IF(curve=1,pp_chv_eq,VLOOKUP(back_valve_size,pp_chv_cost_cl,3)))) -> 1334.99865 | J137: =IF(C137=0,"--",(IF(I137="contact vendor","--",C137*I137))) -> 2669.997301 | K137: =IF(C137=0,"NA",(VLOOKUP(back_valve_size,pp_chv_cost_cl,IF(ss_cat="large",4,5)))) -> 25 | L137: 1 | M137: =$B$96&" - "&$B$136&" - "&B137 -> Valves and Fittings - Check Valves - Backwash - Polypropylene/PVC | N137: 1 | O137: 2 | P137: 3 | Q137: 1 | R137: 2 | S137: 3 | T137: 1 | U137: 2 | V137: 3 | W137: 1 | X137: 106.799892
A138: 5.3.1 | B138: Backwash - Stainless Steel | C138: =tot_back_chv -> 2 | D138: units | E138: =IF(C138=0,"NA",back_valve_size) -> 6 | F138: in. diam | G138: =IF(C138=0,"NA",(IF(curve=1,back_valve_size,VLOOKUP(back_valve_size,ss_chv_cost_cl,2)))) -> 6 | H138: in. diam | I138: =IF(C138=0,"NA",(IF(curve=1,ss_chv_eq,VLOOKUP(back_valve_size,ss_chv_cost_cl,3)))) -> 3024.585683 | J138: =IF(C138=0,"--",(IF(I138="contact vendor","--",C138*I138))) -> 6049.171366 | K138: =IF(C138=0,"NA",(VLOOKUP(back_valve_size,ss_chv_cost_cl,IF(ss_cat="large",4,5)))) -> 25 | L138: 0 | M138: =$B$96&" - "&$B$136&" - "&B138 -> Valves and Fittings - Check Valves - Backwash - Stainless Steel | N138: 3 | O138: 3 | P138: 1 | Q138: 3 | R138: 3 | S138: 1 | T138: 3 | U138: 3 | V138: 1 | W138: 0 | X138: 0
A139: 5.3.1 | B139: Backwash - Cast Iron | C139: =tot_back_chv -> 2 | D139: units | E139: =IF(C139=0,"NA",back_valve_size) -> 6 | F139: in. diam | G139: =IF(C139=0,"NA",(IF(curve=1,back_valve_size,VLOOKUP(back_valve_size,ci_chv_cost_cl,2)))) -> 6 | H139: in. diam | I139: =IF(C139=0,"NA",(IF(curve=1,ci_chv_eq,VLOOKUP(back_valve_size,ci_chv_cost_cl,3)))) -> 1904.243832 | J139: =IF(C139=0,"--",(IF(I139="contact vendor","--",C139*I139))) -> 3808.487664 | K139: =IF(C139=0,"NA",(VLOOKUP(back_valve_size,ci_chv_cost_cl,IF(ss_cat="large",4,5)))) -> 25 | L139: 0 | M139: Valves and Fittings - Check Valves - Backwash - Cast Iron | N139: 2 | O139: 1 | P139: 2 | Q139: 2 | R139: 1 | S139: 2 | T139: 2 | U139: 1 | V139: 2 | W139: 0 | X139: 0
A140: 5.3.2 | B140: Residuals - Polypropylene/PVC | C140: =tot_res_chv -> 1 | D140: units | E140: =IF(C140=0,"NA",res_valve_size) -> 8 | F140: in. diam | G140: =IF(C140=0,"NA",IF(curve=1,res_valve_size,VLOOKUP(res_valve_size,pp_chv_cost_cl,2))) -> 8 | H140: in. diam | I140: =IF(C140=0,0,IF(curve=1,pp_chv_eq_res,VLOOKUP(res_valve_size,pp_chv_cost_cl,3))) -> 2230.921131 | J140: =IF(I140=0,0,IF(I140="contact vendor","--",C140*I140)) -> 2230.921131 | K140: =IF(C140=0,"NA",VLOOKUP(res_valve_size,pp_chv_cost_cl,IF(ss_cat="large",4,5))) -> 25 | L140: 1 | M140: =$B$96 & " - " & $B$136&" "&" - "&B140 -> Valves and Fittings - Check Valves - Residuals - Polypropylene/PVC | N140: 1 | O140: 2 | P140: 3 | Q140: 1 | R140: 2 | S140: 3 | T140: 1 | U140: 2 | V140: 3 | W140: 1 | X140: 89.23684523
A141: 5.3.2 | B141: Residuals - Stainless Steel | C141: =tot_res_chv -> 1 | D141: units | E141: =IF(C141=0,"NA",res_valve_size) -> 8 | F141: in. diam | G141: =IF(C141=0,"NA",IF(curve=1,res_valve_size,VLOOKUP(res_valve_size,ss_chv_cost_cl,2))) -> 8 | H141: in. diam | I141: =IF(C141=0,0,IF(curve=1,ss_chv_eq_res,VLOOKUP(res_valve_size,ss_chv_cost_cl,3))) -> 4500.43661 | J141: =IF(I141=0,0,IF(I141="contact vendor","--",C141*I141)) -> 4500.43661 | K141: =IF(C141=0,"NA",VLOOKUP(res_valve_size,ss_chv_cost_cl,IF(ss_cat="large",4,5))) -> 25 | L141: 0 | M141: =$B$96 & " - " & $B$136&" "&" - "&B141 -> Valves and Fittings - Check Valves - Residuals - Stainless Steel | N141: 3 | O141: 3 | P141: 1 | Q141: 3 | R141: 3 | S141: 1 | T141: 3 | U141: 3 | V141: 1 | W141: 0 | X141: 0
A142: 5.3.2 | B142: Residuals - Cast Iron | C142: =tot_res_chv -> 1 | D142: units | E142: =IF(C142=0,"NA",res_valve_size) -> 8 | F142: in. diam | G142: =IF(C142=0,"NA",IF(curve=1,res_valve_size,VLOOKUP(res_valve_size,ci_chv_cost_cl,2))) -> 8 | H142: in. diam | I142: =IF(C142=0,0,IF(curve=1,ci_chv_eq_res,VLOOKUP(res_valve_size,ci_chv_cost_cl,3))) -> 2836.752873 | J142: =IF(I142=0,0,IF(I142="contact vendor","--",C142*I142)) -> 2836.752873 | K142: =IF(C142=0,"NA",VLOOKUP(res_valve_size,ci_chv_cost_cl,IF(ss_cat="large",4,5))) -> 25 | L142: 0 | M142: =$B$96 & " - " & $B$136&" "&" - "&B142 -> Valves and Fittings - Check Valves - Residuals - Cast Iron | N142: 2 | O142: 1 | P142: 2 | Q142: 2 | R142: 1 | S142: 2 | T142: 2 | U142: 1 | V142: 2 | W142: 0 | X142: 0
A143: 5.3.3 | B143: Inlet and outlet - Polypropylene/PVC | C143: =tot_in_chv -> 2 | D143: units | E143: =in_valve_size -> 36 | F143: in. diam | G143: =IF(curve=1,in_valve_size,VLOOKUP(in_valve_size,pp_chv_cost_cl,2)) -> 36 | H143: in. diam | I143: =IF(curve=1,pp_chv_eq_in,VLOOKUP(in_valve_size,pp_chv_cost_cl,3)) -> contact vendor | J143: =IF(I143="contact vendor","--",C143*I143) -> -- | K143: =VLOOKUP(in_valve_size,pp_chv_cost_cl,IF(ss_cat="large",4,5)) -> 25 | L143: 0 | M143: Valves and Fittings - Check Valves - Inlet and outlet - Polypropylene/PVC | N143: 1 | O143: 2 | P143: 3 | Q143: 1 | R143: 2 | S143: 3 | T143: 1 | U143: 2 | V143: 3 | W143: 0 | X143: 0
A144: 5.3.3 | B144: Inlet and outlet - Stainless Steel | C144: =tot_in_chv -> 2 | D144: units | E144: =in_valve_size -> 36 | F144: in. diam | G144: =IF(curve=1,in_valve_size,VLOOKUP(in_valve_size,ss_chv_cost_cl,2)) -> 36 | H144: in. diam | I144: =IF(curve=1,ss_chv_eq_in,VLOOKUP(in_valve_size,ss_chv_cost_cl,3)) -> 51387.2851 | J144: =IF(I144="contact vendor","--",C144*I144) -> 102774.5702 | K144: =VLOOKUP(in_valve_size,ss_chv_cost_cl,IF(ss_cat="large",4,5)) -> 25 | L144: 1 | M144: Valves and Fittings - Check Valves - Inlet and outlet - Stainless Steel | N144: 3 | O144: 3 | P144: 1 | Q144: 3 | R144: 3 | S144: 1 | T144: 3 | U144: 3 | V144: 1 | W144: 1 | X144: 4110.982808
A145: 5.3.3 | B145: Inlet and outlet - Cast Iron | C145: =tot_in_chv -> 2 | D145: units | E145: =in_valve_size -> 36 | F145: in. diam | G145: =IF(curve=1,in_valve_size,VLOOKUP(in_valve_size,ci_chv_cost_cl,2)) -> 36 | H145: in. diam | I145: =IF(curve=1,ci_chv_eq_in,VLOOKUP(in_valve_size,ci_chv_cost_cl,3)) -> contact vendor | J145: =IF(I145="contact vendor","--",C145*I145) -> -- | K145: =VLOOKUP(in_valve_size,ci_chv_cost_cl,IF(ss_cat="large",4,5)) -> 25 | L145: 0 | M145: Valves and Fittings - Check Valves - Inlet and outlet - Cast Iron | N145: 2 | O145: 1 | P145: 2 | Q145: 2 | R145: 1 | S145: 2 | T145: 2 | U145: 1 | V145: 2 | W145: 0 | X145: 0
A146: 5.3.4 | B146: Bypass - Polypropylene/PVC | C146: =IF(bp_pct>0,tot_bp_chv,0) -> 0 | D146: units | E146: =IF(bp_pct=0,"NA",bypass_valve_size) -> NA | F146: =IF(bp_pct=0," ","in. diam") ->  | G146: =IF(bp_pct=0,"NA",(IF(curve=1,bypass_valve_size,VLOOKUP(bypass_valve_size,pp_chv_cost_cl,2)))) -> NA | H146: =IF(bp_pct=0," ","in. diam") ->  | I146: =IF(bp_pct=0,"NA",(IF(curve=1,pp_chv_eq_bp,VLOOKUP(bypass_valve_size,pp_chv_cost_cl,3)))) -> NA | J146: =IF(bp_pct=0,0,IF(I146="contact vendor","--",C146*I146)) -> 0 | K146: =IF(bp_pct=0,"NA",VLOOKUP(bypass_valve_size,pp_chv_cost_cl,IF(ss_cat="large",4,5))) -> NA | M146: Valves and Fittings - Check Valves - Bypass - Polypropylene/PVC | N146: 1 | O146: 2 | P146: 3 | Q146: 1 | R146: 2 | S146: 3 | T146: 1 | U146: 2 | V146: 3 | W146: 0 | X146: 0
A147: 5.3.4 | B147: Bypass - Stainless Steel | C147: =IF(bp_pct>0,tot_bp_chv,0) -> 0 | D147: units | E147: =IF(bp_pct=0,"NA",bypass_valve_size) -> NA | F147: =IF(bp_pct=0," ","in. diam") ->  | G147: =IF(bp_pct=0,"NA",(IF(curve=1,bypass_valve_size,VLOOKUP(bypass_valve_size,ss_chv_cost_cl,2)))) -> NA | H147: =IF(bp_pct=0," ","in. diam") ->  | I147: =IF(bp_pct=0,"NA",(IF(curve=1,ss_chv_eq_bp,VLOOKUP(bypass_valve_size,ss_chv_cost_cl,3)))) -> NA | J147: =IF(bp_pct=0,0,IF(I147="contact vendor","--",C147*I147)) -> 0 | K147: =IF(bp_pct=0,"NA",VLOOKUP(bypass_valve_size,ss_chv_cost_cl,IF(ss_cat="large",4,5))) -> NA | M147: Valves and Fittings - Check Valves - Bypass - Stainless Steel | N147: 3 | O147: 3 | P147: 1 | Q147: 3 | R147: 3 | S147: 1 | T147: 3 | U147: 3 | V147: 1 | W147: 0 | X147: 0
A148: 5.3.4 | B148: Bypass - Cast Iron | C148: =IF(bp_pct>0,tot_bp_chv,0) -> 0 | D148: units | E148: =IF(bp_pct=0,"NA",bypass_valve_size) -> NA | F148: =IF(bp_pct=0," ","in. diam") ->  | G148: =IF(bp_pct=0,"NA",(IF(curve=1,bypass_valve_size,VLOOKUP(bypass_valve_size,ci_chv_cost_cl,2)))) -> NA | H148: =IF(bp_pct=0," ","in. diam") ->  | I148: =IF(bp_pct=0,"NA",(IF(curve=1,ci_chv_eq_bp,VLOOKUP(bypass_valve_size,ci_chv_cost_cl,3)))) -> NA | J148: =IF(bp_pct=0,0,IF(I148="contact vendor","--",C148*I148)) -> 0 | K148: =IF(bp_pct=0,"NA",VLOOKUP(bypass_valve_size,ci_chv_cost_cl,IF(ss_cat="large",4,5))) -> NA | M148: Valves and Fittings - Check Valves - Bypass - Cast Iron | N148: 2 | O148: 1 | P148: 2 | Q148: 2 | R148: 1 | S148: 2 | T148: 2 | U148: 1 | V148: 2 | W148: 0 | X148: 0
A149: 5.3.5 | B149: Polymer - Polypropylene/PVC | C149: =tot_polymer_chv -> 0 | D149: units | E149: =IF(C149=0,"NA",polymer_valve_size) -> NA | F149: =IF(C149=0,"","in. diam") ->  | G149: =IF(C149=0,"NA",IF(curve=1,polymer_valve_size,VLOOKUP(polymer_valve_size,pp_chv_cost_cl,2))) -> NA | H149: =IF(C149=0,"","in. diam") ->  | I149: =IF(C149=0,"NA",IF(curve=1,pp_chv_eq_polymer,VLOOKUP(polymer_valve_size,pp_chv_cost_cl,3))) -> NA | J149: =IF(OR(C149=0,I149="contact vendor"),"--",C149*I149) -> -- | K149: =IF(C149=0,"NA",VLOOKUP(polymer_valve_size,pp_chv_cost_cl,IF(ss_cat="large",4,5))) -> NA | M149: Valves and Fittings - Check Valves - Polymer - Polypropylene/PVC | N149: 1 | O149: 2 | P149: 3 | Q149: 1 | R149: 2 | S149: 3 | T149: 1 | U149: 2 | V149: 3 | W149: 0 | X149: 0
A150: 5.3.5 | B150: Polymer - Stainless Steel | C150: =tot_polymer_chv -> 0 | D150: units | E150: =IF(C150=0,"NA",polymer_valve_size) -> NA | F150: =IF(C150=0,"","in. diam") ->  | G150: =IF(C150=0,"NA",IF(curve=1,polymer_valve_size,VLOOKUP(polymer_valve_size,ss_chv_cost_cl,2))) -> NA | H150: =IF(C150=0,"","in. diam") ->  | I150: =IF(C150=0,"NA",IF(curve=1,ss_chv_eq_polymer,VLOOKUP(polymer_valve_size,ss_chv_cost_cl,3))) -> NA | J150: =IF(OR(C150=0,I150="contact vendor"),"--",C150*I150) -> -- | K150: =IF(C150=0,"NA",VLOOKUP(polymer_valve_size,ss_chv_cost_cl,IF(ss_cat="large",4,5))) -> NA | M150: Valves and Fittings - Check Valves - Polymer - Stainless Steel | N150: 3 | O150: 3 | P150: 1 | Q150: 3 | R150: 3 | S150: 1 | T150: 3 | U150: 3 | V150: 1 | W150: 0 | X150: 0
A151: 5.3.5 | B151: Polymer - Cast Iron | C151: =tot_polymer_chv -> 0 | D151: units | E151: =IF(C151=0,"NA",polymer_valve_size) -> NA | F151: =IF(C151=0,"","in. diam") ->  | G151: =IF(C151=0,"NA",IF(curve=1,polymer_valve_size,VLOOKUP(polymer_valve_size,ci_chv_cost_cl,2))) -> NA | H151: =IF(C151=0,"","in. diam") ->  | I151: =IF(C151=0,"NA",IF(curve=1,ci_chv_eq_polymer,VLOOKUP(polymer_valve_size,ci_chv_cost_cl,3))) -> NA | J151: =IF(OR(C151=0,I151="contact vendor"),"--",C151*I151) -> -- | K151: =IF(C151=0,"NA",VLOOKUP(polymer_valve_size,ci_chv_cost_cl,IF(ss_cat="large",4,5))) -> NA | M151: Valves and Fittings - Check Valves - Polymer - Cast Iron | N151: 2 | O151: 1 | P151: 2 | Q151: 2 | R151: 1 | S151: 2 | T151: 2 | U151: 1 | V151: 2 | W151: 0 | X151: 0
A152: 6 | B152: Pumps | W152: 0 | X152: 0
A153: 6.1 | B153: Booster | C153: =total_booster_pumps -> 7 | D153: units | E153: =IF(C153=0,"NA",pump_rating) -> 10000 | F153: =IF(C153=0,"","gpm") -> gpm | G153: =IF(C153=0,"NA",IF(curve=1,pump_rating,VLOOKUP(pump_rating,pump_cost_cl,2))) -> 10000 | H153: =IF(C153=0,"","gpm") -> gpm | I153: =IF(C153=0,"NA",IF(curve=1,pump_eq,VLOOKUP(pump_rating,pump_cost_cl,3))) -> 80868.59389 | J153: =IF(C153=0,0,IF(I153="contact vendor","--",C153*I153)) -> 566080.1573 | K153: =IF(C153=0,"NA",VLOOKUP(pump_rating,pump_cost_cl,IF(ss_cat="large",4,5))) -> 20 | L153: 1 | M153: =$B$152&" - "&B153 -> Pumps - Booster | N153: 1 | O153: 1 | P153: 1 | Q153: 1 | R153: 1 | S153: 1 | T153: 1 | U153: 1 | V153: 1 | W153: 1 | X153: 28304.00786
A154: 6.2 | B154: Backwash | C154: =backwash_pumps -> 2 | D154: units | E154: =IF(C154=0,"NA",back_pump_rating) -> 2437.5 | F154: gpm | G154: =IF( C154=0,"NA",IF(curve=1,back_pump_rating,VLOOKUP(back_pump_rating,back_pump_cost_cl,2))) -> 2437.5 | H154: gpm | I154: =IF(C154=0,"NA",IF(curve=1,pump_eq_back,VLOOKUP(back_pump_rating,back_pump_cost_cl,3))) -> 33383.1656 | J154: =IF( C154=0,"--",(IF(I154="contact vendor","--",C154*I154))) -> 66766.33119 | K154: =IF(C154=0,"NA",VLOOKUP(back_pump_rating,back_pump_cost_cl,IF(ss_cat="large",4,5))) -> 20 | L154: 1 | M154: =$B$152&" - "&B154 -> Pumps - Backwash | N154: 1 | O154: 1 | P154: 1 | Q154: 1 | R154: 1 | S154: 1 | T154: 1 | U154: 1 | V154: 1 | W154: 1 | X154: 3338.31656
A155: 6.3 | B155: Residuals | C155: =res_pumps -> 0 | D155: units | E155: =IF(res_pumps=0,"NA",res_pump_rating) -> NA | F155: =IF(C155=0,"","gpm") ->  | G155: =IF(res_pumps=0,"NA",IF(curve=1,res_pump_rating,VLOOKUP(res_pump_rating,pump_cost_cl,2))) -> NA | H155: =IF(C155=0,"","gpm") ->  | I155: =IF(res_pumps=0,0,IF(curve=1,res_pump_eq,VLOOKUP(res_pump_rating,pump_cost_cl,3))) -> 0 | J155: =IF(I155="contact vendor","--",C155*I155) -> 0 | K155: =IF(res_pumps=0,"NA",VLOOKUP(res_pump_rating,pump_cost_cl,IF(ss_cat="large",4,5))) -> NA | M155: =$B$152&" - "&B155 -> Pumps - Residuals | N155: 1 | O155: 1 | P155: 1 | Q155: 1 | R155: 1 | S155: 1 | T155: 1 | U155: 1 | V155: 1 | W155: 0 | X155: 0
A156: 7 | B156: Mixers | W156: 0 | X156: 0
A157: 7.1 | B157: Brine Mixers | W157: =IF(ISERROR(K157*L157),0,IF(K157<1,0,L157)) -> 0 | X157: =IF(W157,J157/K157,0) -> 0
A158: 7.1.1 | B158: Portable | C158: =IF(brine_method=2,0,mixers) -> 1 | D158: units | E158: =IF(brine_method=2,"NA",mixer_size) -> 1 | F158: =IF(C158=0,"","hp") -> hp | G158: =IF(brine_method=2,"NA",VLOOKUP(mixer_size,port_mix_cost_cl,2)) -> 1 | H158: =IF(C158=0,"","hp") -> hp | I158: =IF(brine_method=2,"NA",VLOOKUP(mixer_size,port_mix_cost_cl,3)) -> 2063.660642 | J158: =IF(brine_method=2,"--",IF(I158="contact vendor","--",C158*I158)) -> 2063.660642 | K158: =IF(brine_method=2,"NA",VLOOKUP(mixer_size,port_mix_cost_cl,IF(ss_cat="large",4,5))) -> 25 | L158: 0 | M158: =$B$157&" - "&B158 -> Brine Mixers - Portable | N158: 2 | O158: 2 | P158: 2 | Q158: 2 | R158: 2 | S158: 2 | T158: 2 | U158: 2 | V158: 2 | W158: 0 | X158: 0
A159: 7.1.1 | B159: Mounted | C159: =IF(brine_method=2,0,mixers) -> 1 | D159: units | E159: =IF(brine_method=2,"NA",mixer_size) -> 1 | F159: =IF(C159=0,"","hp") -> hp | G159: =IF(brine_method=2,"NA",IF(curve=1,mixer_size,VLOOKUP(mixer_size,mount_mix_cost_cl,2))) -> 1 | H159: =IF(C159=0,"","hp") -> hp | I159: =IF(brine_method=2,"NA",IF(curve=1,mount_mix_eq,VLOOKUP(mixer_size,mount_mix_cost_cl,3))) -> 2723.539064 | J159: =IF(brine_method=2,"--",IF(I159="contact vendor","--",C159*I159)) -> 2723.539064 | K159: =IF(brine_method=2,"NA",VLOOKUP(mixer_size,mount_mix_cost_cl,IF(ss_cat="large",4,5))) -> 25 | L159: 1 | M159: =$B$157&" - "&B159 -> Brine Mixers - Mounted | N159: 1 | O159: 1 | P159: 1 | Q159: 1 | R159: 1 | S159: 1 | T159: 1 | U159: 1 | V159: 1 | W159: 1 | X159: 108.9415625
A160: 7.2 | B160: Residuals Mixers | W160: 0 | X160: 0
A161: 7.2.1 | B161: Portable | C161: =hmixers -> 0 | D161: units | E161: =IF(C161=0,"NA",hmix_size) -> NA | F161: =IF(C161=0,"","hp") ->  | G161: =IF(C161=0,"NA",VLOOKUP(hmix_size,port_mix_cost_cl,2)) -> NA | H161: =IF(C161=0,"","hp") ->  | I161: =IF(C161=0,"NA",VLOOKUP(hmix_size,port_mix_cost_cl,3)) -> NA | J161: =IF(C161=0,"--",IF(I161="contact vendor","--",C161*I161)) -> -- | K161: =IF(C161=0,"NA",VLOOKUP(hmix_size,port_mix_cost_cl,IF(ss_cat="large",4,5))) -> NA | M161: =$B$160&" - "&B161 -> Residuals Mixers - Portable | N161: 3 | O161: 3 | P161: 3 | Q161: 3 | R161: 3 | S161: 3 | T161: 3 | U161: 3 | V161: 3 | W161: 0 | X161: 0
A162: 7.2.1 | B162: Mounted | C162: =hmixers -> 0 | D162: units | E162: =IF(C162=0,"NA",hmix_size) -> NA | F162: =IF(C162=0,"","hp") ->  | G162: =IF(C162=0,"NA",IF(curve=1,hmix_size,VLOOKUP(hmix_size,mount_mix_cost_cl,2))) -> NA | H162: =IF(C162=0,"","hp") ->  | I162: =IF(C162=0,"NA",IF(curve=1,hmount_mix_eq,VLOOKUP(hmix_size,mount_mix_cost_cl,3))) -> NA | J162: =IF(C162=0,"--",IF(I162="contact vendor","--",C162*I162)) -> -- | K162: =IF(C162=0,"NA",VLOOKUP(hmix_size,mount_mix_cost_cl,IF(ss_cat="large",4,5))) -> NA | M162: =$B$160&" - "&B162 -> Residuals Mixers - Mounted | N162: 1 | O162: 1 | P162: 1 | Q162: 1 | R162: 1 | S162: 1 | T162: 1 | U162: 1 | V162: 1 | W162: 0 | X162: 0
A163: 7.2.1 | B163: Impeller | C163: =hmixers -> 0 | D163: units | E163: =IF(C163=0,"NA",hmix_size) -> NA | F163: =IF(C163=0,"","hp") ->  | G163: =IF(C163=0,"NA",IF(curve=1,hmix_size,VLOOKUP(hmix_size,imp_mix_cost_cl,2))) -> NA | H163: =IF(C163=0,"","hp") ->  | I163: =IF(C163=0,"NA",IF(curve=1,himp_mix_eq,VLOOKUP(hmix_size,imp_mix_cost_cl,3))) -> NA | J163: =IF(C163=0,"--",IF(I163="contact vendor","--",C163*I163)) -> -- | K163: =IF(C163=0,"NA",VLOOKUP(E163,imp_mix_cost_cl,IF(ss_cat="large",4,5))) -> NA | M163: =$B$175&" - "&B163 -> Instrumentation - Impeller | N163: 2 | O163: 2 | P163: 2 | Q163: 2 | R163: 2 | S163: 2 | T163: 2 | U163: 2 | V163: 2 | W163: 0 | X163: 0
A164: 8 | B164: Chemical Feed | W164: 0 | X164: 0
A165: 8.1 | B165: Eductors for brine | W165: 0 | X165: 0
A166: 8.1.1 | B166: Stainless Steel | C166: =eductors -> 1 | D166: units | E166: =brine_pipe_diam -> 6 | F166: in. diam | G166: =IF(curve=1,brine_pipe_diam,VLOOKUP(brine_pipe_diam,ss_eductor_cost_cl,2)) -> 6 | H166: in. diam | I166: =IF(curve=1,ss_eductor_eq,VLOOKUP(brine_pipe_diam,ss_eductor_cost_cl,3)) -> 8042.821054 | J166: =IF(I166="contact vendor","--",C166*I166) -> 8042.821054 | K166: =VLOOKUP(brine_pipe_diam,ss_eductor_cost_cl,IF(ss_cat="large",4,5)) -> 45 | L166: 1 | M166: =$B$164 & " - " & $B$165& " - " &B166 -> Chemical Feed - Eductors for brine - Stainless Steel | N166: 2 | O166: 2 | P166: 1 | Q166: 2 | R166: 2 | S166: 1 | T166: 2 | U166: 2 | V166: 1 | W166: 1 | X166: 178.7293568
A167: 8.1.1 | B167: Plastic | C167: =eductors -> 1 | D167: units | E167: =brine_pipe_diam -> 6 | F167: in. diam | G167: =IF(curve=1,brine_pipe_diam,VLOOKUP(brine_pipe_diam,pl_eductor_cost_cl,2)) -> 6 | H167: in. diam | I167: =IF(curve=1,pl_eductor_eq,VLOOKUP(brine_pipe_diam,pl_eductor_cost_cl,3)) -> contact vendor | J167: =IF(I167="contact vendor","--",C167*I167) -> -- | K167: =VLOOKUP(brine_pipe_diam,pl_eductor_cost_cl,IF(ss_cat="large",4,5)) -> 22 | L167: 0 | M167: =$B$164 & " - " & $B$165& " - " &B167 -> Chemical Feed - Eductors for brine - Plastic | N167: 1 | O167: 1 | P167: 2 | Q167: 1 | R167: 1 | S167: 2 | T167: 1 | U167: 1 | V167: 2 | W167: 0 | X167: 0
A168: 8.2 | B168: =CHOOSE(res_transfer_method,"Slurry Pump System for Holding Tanks","Eductors for Holding Tanks","Manual holding tank solids transfer, no equipment needed") -> Manual holding tank solids transfer, no equipment needed | C168: =IF(res_holding="none",0,CHOOSE(res_transfer_method,res_slurry_pumps,res_eductors,0)) -> 0 | D168: units | E168: =IF(C168=0,"NA",CHOOSE(res_transfer_method,res_transfer_rate,res_eductor_size,"NA")) -> NA | F168: =IF(C168=0,"",CHOOSE(res_transfer_method,"lbs/hr","in. diam","")) ->  | G168: =IF(C168=0,"NA",CHOOSE(res_transfer_method,IF(curve=1,res_transfer_rate,VLOOKUP(res_transfer_rate,gac_slurry_cost_cl,2)),IF(curve=1,res_eductor_size,VLOOKUP(res_eductor_size,seductor_cost_cl,2)),"NA")) -> NA | H168: =IF(C168=0,"",CHOOSE(res_transfer_method,"lbs/hr","in. diam","")) ->  | I168: =IF(C168=0,"NA",CHOOSE(res_transfer_method,IF(curve=1,res_slurry_eq,VLOOKUP(res_transfer_rate,gac_slurry_cost_cl,3)),IF(curve=1,res_seductor_eq,VLOOKUP(res_eductor_size,seductor_cost_cl,3)),"NA")) -> NA | J168: =IF(C168=0,0,CHOOSE(res_transfer_method,IF(I168="contact vendor","--",C168*I168),IF(I168="contact vendor","--",C168*I168),0)) -> 0 | K168: =IF(C168=0,"NA",VLOOKUP(E168,CHOOSE(res_transfer_method,gac_slurry_cost_cl,seductor_cost_cl),IF(ss_cat="large",4,5))) -> NA | M168: =$B$164&" - "&B168 -> Chemical Feed - Manual holding tank solids transfer, no equipment needed | N168: 1 | O168: 1 | P168: 1 | Q168: 1 | R168: 1 | S168: 1 | T168: 1 | U168: 1 | V168: 1 | W168: 0 | X168: 0
A169: 8.3 | B169: Dry Feeders | W169: 0 | X169: 0
A170: 8.3.1 | B170: Volumetric Feeder | C170: =IF(vol_feed_rate<>0,IF(res_holding="tanks",htanks,IF(res_holding="basins",hbasins,0)),0) -> 0 | D170: units | E170: =IF(C170=0,"NA",vol_feed_rate) -> NA | F170: =IF(C170=0,"","cfm") ->  | G170: =IF(C170=0,"NA",VLOOKUP(vol_feed_rate,vol_feed_cost_cl,2)) -> NA | H170: =IF(C170=0,"","cfm") ->  | I170: =IF(C170=0,"NA",IF(curve=1,vol_feed_eq, VLOOKUP(vol_feed_rate,vol_feed_cost_cl,3))) -> NA | J170: =IF(OR(I170="contact vendor",C170=0),"--",C170*I170) -> -- | K170: =IF(C170=0,"NA",VLOOKUP(vol_feed_rate,vol_feed_cost_cl,IF(ss_cat="large",4,5))) -> NA | M170: =$B$164 & " - " & B170 -> Chemical Feed - Volumetric Feeder | N170: 1 | O170: 1 | P170: 1 | Q170: 1 | R170: 1 | S170: 1 | T170: 1 | U170: 1 | V170: 1 | W170: 0 | X170: 0
A171: 8.3.1 | B171: Gravimetric Feeder | C171: =IF(grav_feed_rate<>0,IF(res_holding="tanks",htanks,IF(res_holding="basins",hbasins,0)),0) -> 0 | D171: units | E171: =IF(C171=0,"NA",grav_feed_rate) -> NA | F171: =IF(C171=0,"","lbs/min") ->  | G171: =IF(C171=0,"NA",VLOOKUP(grav_feed_rate,grav_feed_cost_cl,2)) -> NA | H171: =IF(C171=0,"","lbs/min") ->  | I171: =IF(C171=0,"NA",VLOOKUP(grav_feed_rate,grav_feed_cost_cl,3)) -> NA | J171: =IF(OR(I171="contact vendor",C171=0),"--",C171*I171) -> -- | K171: =IF(C171=0,"NA",VLOOKUP(grav_feed_rate,grav_feed_cost_cl,IF(ss_cat="large",4,5))) -> NA | M171: =$B$164 & " - " & B171 -> Chemical Feed - Gravimetric Feeder | N171: 2 | O171: 2 | P171: 2 | Q171: 2 | R171: 2 | S171: 2 | T171: 2 | U171: 2 | V171: 2 | W171: 0 | X171: 0
A172: 9 | B172: Salt Saturator | W172: 0 | X172: 0
A173: 9.1 | B173: Fiberglass | C173: =IF(brine_method=1,0,num_salt_box) -> 0 | D173: units | E173: =IF(brine_method=1,"NA",salt_box_size) -> NA | F173: =IF(brine_method=1," ","tons") ->  | G173: =IF(brine_method=1,"NA",IF(curve=1,salt_box_size,VLOOKUP(salt_box_size,fg_saltbox_cost_cl,2))) -> NA | H173: =IF(brine_method=1," ","tons") ->  | I173: =IF(brine_method=1,"NA",IF(curve=1,fg_saltbox_eq,VLOOKUP(salt_box_size,fg_saltbox_cost_cl,3))) -> NA | J173: =IF(brine_method=1,"--",IF(I173="contact vendor","--",C173*I173)) -> -- | K173: =IF(brine_method=1,"NA",VLOOKUP(salt_box_size,fg_saltbox_cost_cl,IF(ss_cat="large",4,5))) -> NA | M173: =$B$172&" - "&B173 -> Salt Saturator - Fiberglass | N173: 2 | O173: 1 | P173: 1 | Q173: 2 | R173: 1 | S173: 1 | T173: 2 | U173: 1 | V173: 1 | W173: 0 | X173: 0
A174: 9.1 | B174: Reinforced Plastic | C174: =IF(brine_method=1,0,num_salt_box) -> 0 | D174: units | E174: =IF(brine_method=1,"NA",salt_box_size) -> NA | F174: =IF(brine_method=1," ","tons") ->  | G174: =IF(brine_method=1,"NA",IF(curve=1,salt_box_size,VLOOKUP(salt_box_size,pl_saltbox_cost_cl,2))) -> NA | H174: =IF(brine_method=1," ","tons") ->  | I174: =IF(brine_method=1,"NA",IF(curve=1,pl_saltbox_eq,VLOOKUP(salt_box_size,pl_saltbox_cost_cl,3))) -> NA | J174: =IF(brine_method=1,"--",IF(I174="contact vendor","--",C174*I174)) -> -- | K174: =IF(brine_method=1,"NA",VLOOKUP(salt_box_size,pl_saltbox_cost_cl,IF(ss_cat="large",4,5))) -> NA | M174: =$B$172&" - "&B174 -> Salt Saturator - Reinforced Plastic | N174: 1 | O174: 2 | P174: 2 | Q174: 1 | R174: 2 | S174: 2 | T174: 1 | U174: 2 | V174: 2 | W174: 0 | X174: 0
A175: 10 | B175: Instrumentation | W175: 0 | X175: 0
A176: 10.1 | B176: Flow Meters - Inlet and Outlet | W176: 0 | X176: 0
A177: 10.1.1 | B177: Orifice Plate | C177: =tot_fm_in -> 1 | D177: units | E177: =in_meter_size -> 36 | F177: in. diam | G177: =IF(curve=1,in_meter_size,VLOOKUP(in_meter_size,op_fm_cost_cl,2)) -> 36 | H177: in. diam | I177: =IF(curve=1,op_fm_eq_in,VLOOKUP(in_meter_size,op_fm_cost_cl,3)) -> 14486.42045 | J177: =IF(I177="contact vendor","--",C177*I177) -> 14486.42045 | K177: =VLOOKUP(in_meter_size,op_fm_cost_cl,IF(ss_cat="large",4,5)) -> 15 | L177: 1 | M177: =$B$175&" - "&$B$176&" - "&B177 -> Instrumentation - Flow Meters - Inlet and Outlet - Orifice Plate | N177: 3 | O177: 4 | P177: 4 | Q177: 3 | R177: 4 | S177: 4 | T177: 3 | U177: 3 | V177: 4 | W177: 1 | X177: 965.7613632
A178: 10.1.1 | B178: Propeller | C178: =tot_fm_in -> 1 | D178: units | E178: =in_meter_size -> 36 | F178: in. diam | G178: =IF(curve=1,in_meter_size,VLOOKUP(in_meter_size,prop_fm_cost_cl,2)) -> 36 | H178: in. diam | I178: =IF(curve=1,prop_fm_eq_in,VLOOKUP(in_meter_size,prop_fm_cost_cl,3)) -> contact vendor | J178: =IF(I178="contact vendor","--",C178*I178) -> -- | K178: =VLOOKUP(in_meter_size,prop_fm_cost_cl,IF(ss_cat="large",4,5)) -> 15 | L178: 0 | M178: =$B$175&" - "&$B$176&" - "&B178 -> Instrumentation - Flow Meters - Inlet and Outlet - Propeller | N178: 1 | O178: 2 | P178: 3 | Q178: 1 | R178: 2 | S178: 3 | T178: 4 | U178: 4 | V178: 2 | W178: 0 | X178: 0
A179: 10.1.1 | B179: Venturi | C179: =tot_fm_in -> 1 | D179: units | E179: =in_meter_size -> 36 | F179: in. diam | G179: =IF(curve=1,in_meter_size,VLOOKUP(in_meter_size,ven_fm_cost_cl,2)) -> 36 | H179: in. diam | I179: =IF(curve=1,ven_fm_eq_in,VLOOKUP(in_meter_size,ven_fm_cost_cl,3)) -> contact vendor | J179: =IF(I179="contact vendor","--",C179*I179) -> -- | K179: =VLOOKUP(in_meter_size,ven_fm_cost_cl,IF(ss_cat="large",4,5)) -> 15 | L179: 0 | M179: =$B$175&" - "&$B$176&" - "&B179 -> Instrumentation - Flow Meters - Inlet and Outlet - Venturi | N179: 2 | O179: 1 | P179: 2 | Q179: 2 | R179: 1 | S179: 2 | T179: 1 | U179: 2 | V179: 3 | W179: 0 | X179: 0
A180: 10.1.1 | B180: Magnetic | C180: =tot_fm_in -> 1 | D180: units | E180: =in_meter_size -> 36 | F180: in. diam | G180: =IF(curve=1,in_meter_size,VLOOKUP(in_meter_size,mag_fm_cost_cl,2)) -> 36 | H180: in. diam | I180: =IF(curve=1,mag_fm_eq_in,VLOOKUP(in_meter_size,mag_fm_cost_cl,3)) -> contact vendor | J180: =IF(I180="contact vendor","--",C180*I180) -> -- | K180: =VLOOKUP(in_meter_size,mag_fm_cost_cl,IF(ss_cat="large",4,5)) -> 15 | L180: 0 | M180: =$B$175&" - "&$B$176&" - "&B180 -> Instrumentation - Flow Meters - Inlet and Outlet - Magnetic | N180: 4 | O180: 3 | P180: 1 | Q180: 4 | R180: 3 | S180: 1 | T180: 2 | U180: 1 | V180: 1 | W180: 0 | X180: 0
A181: 10.2 | B181: Flow Meters - Process | W181: 0 | X181: 0
A182: 10.2.1 | B182: Orifice Plate | C182: =tot_fm_proc -> 17 | D182: units | E182: =proc_meter_size -> 14 | F182: in. diam | G182: =IF(curve=1,proc_meter_size,VLOOKUP(proc_meter_size,op_fm_cost_cl,2)) -> 14 | H182: in. diam | I182: =IF(curve=1,op_fm_eq_proc,VLOOKUP(proc_meter_size,op_fm_cost_cl,3)) -> 7006.63139 | J182: =IF(I182="contact vendor","--",C182*I182) -> 119112.7336 | K182: =VLOOKUP(proc_meter_size,op_fm_cost_cl,IF(ss_cat="large",4,5)) -> 15 | L182: 0 | M182: =$B$175&" - "&$B$181&" - "&B182 -> Instrumentation - Flow Meters - Process - Orifice Plate | N182: 3 | O182: 4 | P182: 4 | Q182: 3 | R182: 4 | S182: 4 | T182: 3 | U182: 3 | V182: 4 | W182: 0 | X182: 0
A183: 10.2.1 | B183: Propeller | C183: =tot_fm_proc -> 17 | D183: units | E183: =proc_meter_size -> 14 | F183: in. diam | G183: =IF(curve=1,proc_meter_size,VLOOKUP(proc_meter_size,prop_fm_cost_cl,2)) -> 14 | H183: in. diam | I183: =IF(curve=1,prop_fm_eq_proc,VLOOKUP(proc_meter_size,prop_fm_cost_cl,3)) -> 9271.892637 | J183: =IF(I183="contact vendor","--",C183*I183) -> 157622.1748 | K183: =VLOOKUP(proc_meter_size,prop_fm_cost_cl,IF(ss_cat="large",4,5)) -> 15 | L183: 0 | M183: =$B$175&" - "&$B$181&" - "&B183 -> Instrumentation - Flow Meters - Process - Propeller | N183: 1 | O183: 2 | P183: 3 | Q183: 1 | R183: 2 | S183: 3 | T183: 4 | U183: 4 | V183: 2 | W183: 0 | X183: 0
A184: 10.2.1 | B184: Venturi | C184: =tot_fm_proc -> 17 | D184: units | E184: =proc_meter_size -> 14 | F184: in. diam | G184: =IF(curve=1,proc_meter_size,VLOOKUP(proc_meter_size,ven_fm_cost_cl,2)) -> 14 | H184: in. diam | I184: =IF(curve=1,ven_fm_eq_proc,VLOOKUP(proc_meter_size,ven_fm_cost_cl,3)) -> 18449.86885 | J184: =IF(I184="contact vendor","--",C184*I184) -> 313647.7704 | K184: =VLOOKUP(proc_meter_size,ven_fm_cost_cl,IF(ss_cat="large",4,5)) -> 15 | L184: 1 | M184: =$B$175&" - "&$B$181&" - "&B184 -> Instrumentation - Flow Meters - Process - Venturi | N184: 2 | O184: 1 | P184: 2 | Q184: 2 | R184: 1 | S184: 2 | T184: 1 | U184: 2 | V184: 3 | W184: 1 | X184: 20909.85136
A185: 10.2.1 | B185: Magnetic | C185: =tot_fm_proc -> 17 | D185: units | E185: =proc_meter_size -> 14 | F185: in. diam | G185: =IF(curve=1,proc_meter_size,VLOOKUP(proc_meter_size,mag_fm_cost_cl,2)) -> 14 | H185: in. diam | I185: =IF(curve=1,mag_fm_eq_proc,VLOOKUP(proc_meter_size,mag_fm_cost_cl,3)) -> 17203.9284 | J185: =IF(I185="contact vendor","--",C185*I185) -> 292466.7828 | K185: =VLOOKUP(proc_meter_size,mag_fm_cost_cl,IF(ss_cat="large",4,5)) -> 15 | L185: 0 | M185: =$B$175&" - "&$B$181&" - "&B185 -> Instrumentation - Flow Meters - Process - Magnetic | N185: 4 | O185: 3 | P185: 1 | Q185: 4 | R185: 3 | S185: 1 | T185: 2 | U185: 1 | V185: 1 | W185: 0 | X185: 0
A186: 10.3 | B186: Flow Meters - Backwash | W186: 0 | X186: 0
A187: 10.3.1 | B187: Orifice Plate | C187: =tot_fm_back -> 1 | D187: units | E187: =back_meter_size -> 6 | F187: in. diam | G187: =IF(curve=1,back_meter_size,VLOOKUP(back_meter_size,op_fm_cost_cl,2)) -> 6 | H187: in. diam | I187: =IF(curve=1,op_fm_eq_back,VLOOKUP(back_meter_size,op_fm_cost_cl,3)) -> 4551.189772 | J187: =IF(I187="contact vendor","--",C187*I187) -> 4551.189772 | K187: =VLOOKUP(back_meter_size,op_fm_cost_cl,IF(ss_cat="large",4,5)) -> 15 | L187: 0 | M187: =$B$175&" - "&$B$186&" - "&B187 -> Instrumentation - Flow Meters - Backwash - Orifice Plate | N187: 3 | O187: 4 | P187: 4 | Q187: 3 | R187: 4 | S187: 4 | T187: 3 | U187: 3 | V187: 4 | W187: 0 | X187: 0
A188: 10.3.1 | B188: Propeller | C188: =tot_fm_back -> 1 | D188: units | E188: =back_meter_size -> 6 | F188: in. diam | G188: =IF(curve=1,back_meter_size,VLOOKUP(back_meter_size,prop_fm_cost_cl,2)) -> 6 | H188: in. diam | I188: =IF(curve=1,prop_fm_eq_back,VLOOKUP(back_meter_size,prop_fm_cost_cl,3)) -> 4056.638106 | J188: =IF(I188="contact vendor","--",C188*I188) -> 4056.638106 | K188: =VLOOKUP(back_meter_size,prop_fm_cost_cl,IF(ss_cat="large",4,5)) -> 15 | L188: 0 | M188: =$B$175&" - "&$B$186&" - "&B188 -> Instrumentation - Flow Meters - Backwash - Propeller | N188: 1 | O188: 2 | P188: 3 | Q188: 1 | R188: 2 | S188: 3 | T188: 4 | U188: 4 | V188: 2 | W188: 0 | X188: 0
A189: 10.3.1 | B189: Venturi | C189: =tot_fm_back -> 1 | D189: units | E189: =back_meter_size -> 6 | F189: in. diam | G189: =IF(curve=1,back_meter_size,VLOOKUP(back_meter_size,ven_fm_cost_cl,2)) -> 6 | H189: in. diam | I189: =IF(curve=1,ven_fm_eq_back,VLOOKUP(back_meter_size,ven_fm_cost_cl,3)) -> 12235.56806 | J189: =IF(I189="contact vendor","--",C189*I189) -> 12235.56806 | K189: =VLOOKUP(back_meter_size,ven_fm_cost_cl,IF(ss_cat="large",4,5)) -> 15 | L189: 1 | M189: =$B$175&" - "&$B$186&" - "&B189 -> Instrumentation - Flow Meters - Backwash - Venturi | N189: 2 | O189: 1 | P189: 2 | Q189: 2 | R189: 1 | S189: 2 | T189: 1 | U189: 2 | V189: 3 | W189: 1 | X189: 815.7045375
A190: 10.3.1 | B190: Magnetic | C190: =tot_fm_back -> 1 | D190: units | E190: =back_meter_size -> 6 | F190: in. diam | G190: =IF(curve=1,back_meter_size,VLOOKUP(back_meter_size,mag_fm_cost_cl,2)) -> 6 | H190: in. diam | I190: =IF(curve=1,mag_fm_eq_back,VLOOKUP(back_meter_size,mag_fm_cost_cl,3)) -> 6693.38178 | J190: =IF(I190="contact vendor","--",C190*I190) -> 6693.38178 | K190: =VLOOKUP(back_meter_size,mag_fm_cost_cl,IF(ss_cat="large",4,5)) -> 15 | L190: 0 | M190: =$B$175&" - "&$B$186&" - "&B190 -> Instrumentation - Flow Meters - Backwash - Magnetic | N190: 4 | O190: 3 | P190: 1 | Q190: 4 | R190: 3 | S190: 1 | T190: 2 | U190: 1 | V190: 1 | W190: 0 | X190: 0
A191: 10.4 | B191: Flow Meters - Residuals | W191: 0 | X191: 0
A192: 10.4.1 | B192: Orifice Plate | C192: =tot_fm_res -> 1 | D192: units | E192: =res_meter_size -> 8 | F192: in. diam | G192: =IF(curve=1,res_meter_size,VLOOKUP(res_meter_size,op_fm_cost_cl,2)) -> 8 | H192: in. diam | I192: =IF(curve=1,op_fm_eq_res,VLOOKUP(res_meter_size,op_fm_cost_cl,3)) -> 5184.73973 | J192: =IF(I192="contact vendor","--",C192*I192) -> 5184.73973 | K192: =VLOOKUP(res_meter_size,op_fm_cost_cl,IF(ss_cat="large",4,5)) -> 15 | L192: 0 | M192: =$B$175&" - "&$B$191&" - "&B192 -> Instrumentation - Flow Meters - Residuals - Orifice Plate | N192: 3 | O192: 4 | P192: 4 | Q192: 3 | R192: 4 | S192: 4 | T192: 3 | U192: 3 | V192: 4 | W192: 0 | X192: 0
A193: 10.4.1 | B193: Propeller | C193: =tot_fm_res -> 1 | D193: units | E193: =res_meter_size -> 8 | F193: in. diam | G193: =IF(curve=1,res_meter_size,VLOOKUP(res_meter_size,prop_fm_cost_cl,2)) -> 8 | H193: in. diam | I193: =IF(curve=1,prop_fm_eq_res,VLOOKUP(res_meter_size,prop_fm_cost_cl,3)) -> 4449.790685 | J193: =IF(I193="contact vendor","--",C193*I193) -> 4449.790685 | K193: =VLOOKUP(res_meter_size,prop_fm_cost_cl,IF(ss_cat="large",4,5)) -> 15 | L193: 0 | M193: =$B$175&" - "&$B$191&" - "&B193 -> Instrumentation - Flow Meters - Residuals - Propeller | N193: 1 | O193: 2 | P193: 3 | Q193: 1 | R193: 2 | S193: 3 | T193: 4 | U193: 4 | V193: 2 | W193: 0 | X193: 0
A194: 10.4.1 | B194: Venturi | C194: =tot_fm_res -> 1 | D194: units | E194: =res_meter_size -> 8 | F194: in. diam | G194: =IF(curve=1,res_meter_size,VLOOKUP(res_meter_size,ven_fm_cost_cl,2)) -> 8 | H194: in. diam | I194: =IF(curve=1,ven_fm_eq_res,VLOOKUP(res_meter_size,ven_fm_cost_cl,3)) -> 14111.87008 | J194: =IF(I194="contact vendor","--",C194*I194) -> 14111.87008 | K194: =VLOOKUP(res_meter_size,ven_fm_cost_cl,IF(ss_cat="large",4,5)) -> 15 | L194: 1 | M194: =$B$175&" - "&$B$191&" - "&B194 -> Instrumentation - Flow Meters - Residuals - Venturi | N194: 2 | O194: 1 | P194: 2 | Q194: 2 | R194: 1 | S194: 2 | T194: 1 | U194: 2 | V194: 3 | W194: 1 | X194: 940.791339
A195: 10.4.1 | B195: Magnetic | C195: =tot_fm_res -> 1 | D195: units | E195: =res_meter_size -> 8 | F195: in. diam | G195: =IF(curve=1,res_meter_size,VLOOKUP(res_meter_size,mag_fm_cost_cl,2)) -> 8 | H195: in. diam | I195: =IF(curve=1,mag_fm_eq_res,VLOOKUP(res_meter_size,mag_fm_cost_cl,3)) -> 8643.993535 | J195: =IF(I195="contact vendor","--",C195*I195) -> 8643.993535 | K195: =VLOOKUP(res_meter_size,mag_fm_cost_cl,IF(ss_cat="large",4,5)) -> 15 | L195: 0 | M195: =$B$175&" - "&$B$191&" - "&B195 -> Instrumentation - Flow Meters - Residuals - Magnetic | N195: 4 | O195: 3 | P195: 1 | Q195: 4 | R195: 3 | S195: 1 | T195: 2 | U195: 1 | V195: 1 | W195: 0 | X195: 0
A196: 10.5 | B196: Level Switch/Alarm (for vessels) | C196: =tot_level_switch -> 0 | D196: units | E196: NA | G196: NA | I196: =IF(C196=0,"NA",VLOOKUP(0,alarm_cost_cl,3)) -> NA | J196: =IF(OR(I196="contact vendor",I196="NA"),"--",C196*I196) -> -- | K196: =IF(C196=0,"NA",VLOOKUP(0,alarm_cost_cl,IF(ss_cat="large",4,5))) -> NA | M196: =$B$175&" - "&B196 -> Instrumentation - Level Switch/Alarm (for vessels) | N196: 1 | O196: 1 | P196: 1 | Q196: 1 | R196: 1 | S196: 1 | T196: 1 | U196: 1 | V196: 1 | W196: 0 | X196: 0
A197: 10.6 | B197: High/Low Alarm (for backwash tanks) | C197: =tot_back_alarm -> 0 | D197: units | E197: NA | G197: NA | I197: =IF( C197=0,"NA",VLOOKUP(0,alarm_cost_cl,3)) -> NA | J197: =IF(OR(I197="contact vendor",I197="NA"),"--",C197*I197) -> -- | K197: =IF( C197=0,"NA",VLOOKUP(0,alarm_cost_cl,IF(ss_cat="large",4,5))) -> NA | M197: Instrumentation - High/Low Alarm (for backwash tanks) | N197: 1 | O197: 1 | P197: 1 | Q197: 1 | R197: 1 | S197: 1 | T197: 1 | U197: 1 | V197: 1 | W197: 0 | X197: 0
A198: 10.7 | B198: High/Low Alarm (for brine tanks) | C198: =tot_brine_alarm -> 1 | D198: units | E198: NA | G198: NA | I198: =IF(C198=0,"NA",VLOOKUP(0,alarm_cost_cl,3)) -> 580.5871131 | J198: =IF(OR(I198="contact vendor",I198="NA"),"--",C198*I198) -> 580.5871131 | K198: =IF(C198=0,"NA",VLOOKUP(0,alarm_cost_cl,IF(ss_cat="large",4,5))) -> 15 | L198: 1 | M198: Instrumentation - High/Low Alarm (for brine tanks) | N198: 1 | O198: 1 | P198: 1 | Q198: 1 | R198: 1 | S198: 1 | T198: 1 | U198: 1 | V198: 1 | W198: 1 | X198: 38.70580754
A199: 10.8 | B199: High/Low Alarm (for holding tanks) | C199: =tot_res_alarm -> 0 | D199: units | E199: NA | G199: NA | I199: =IF(C199=0,"NA",VLOOKUP(0,alarm_cost_cl,3)) -> NA | J199: =IF(OR(I199="contact vendor",I199="NA"),"--",C199*I199) -> -- | K199: =IF(C199=0,"NA",VLOOKUP(0,alarm_cost_cl,IF(ss_cat="large",4,5))) -> NA | M199: Instrumentation - High/Low Alarm (for holding tanks) | N199: 1 | O199: 1 | P199: 1 | Q199: 1 | R199: 1 | S199: 1 | T199: 1 | U199: 1 | V199: 1 | W199: 0 | X199: 0
A200: 10.9 | B200: Temperature meters | C200: =tot_temp_meters -> 2 | D200: units | E200: NA | G200: NA | I200: =VLOOKUP(0,temp_meter_cost_cl,3) -> 581.2995336 | J200: =IF(I200="contact vendor","--",C200*I200) -> 1162.599067 | K200: =VLOOKUP(0,temp_meter_cost_cl,IF(ss_cat="large",4,5)) -> 15 | L200: 1 | M200: Instrumentation - Temperature meters | N200: 1 | O200: 1 | P200: 1 | Q200: 1 | R200: 1 | S200: 1 | T200: 1 | U200: 1 | V200: 1 | W200: 1 | X200: 77.50660449
A201: 10.1 | B201: Head loss sensors | C201: =tot_head_sens -> 17 | D201: units | E201: NA | G201: NA | I201: =VLOOKUP(0,headloss_cost_cl,3) -> 2078.272395 | J201: =IF(I201="contact vendor","--",C201*I201) -> 35330.63072 | K201: =VLOOKUP(0,headloss_cost_cl,IF(ss_cat="large",4,5)) -> 15 | L201: 1 | M201: Instrumentation - Head loss sensors | N201: 1 | O201: 1 | P201: 1 | Q201: 1 | R201: 1 | S201: 1 | T201: 1 | U201: 1 | V201: 1 | W201: 1 | X201: 2355.375382
... 187 more rows

Sheet Critical Design Assumptions
A1: Default Critical Design Assumptions
A2: Users may change any of the cells in the Value column; cells in gold are most important and may vary based on contaminant treated and site-specific conditions
A4: Assumption | B4: Range Name | C4: Value | D4: Units | E4: Guidance
A5: Cost estimating method | B5: curve | C5: 1 | D5: <-- enter 1 to use cost equations, leave blank to use lookup tables for component costs | E5: Keeping this assumption with a value of 1 is strongly recommended; the cost equations method is more appropriate for national cost estimating and will be more accurate for nearly all user-specified designs
A7: Vessel Design
A8: Number of redundant vessels for small systems with only one vessel | B8: NRD_small_1 | C8: 1 | D8: units | E8: If a design includes only one operating vessel, there should be at least one additional vessel
A9: Number of redundant vessels for small systems with multiple vessels | B9: NRD_small | C9: 0 | D9: units | E9: Small systems can operate at reduced capacity while one vessel is down for backwash, if there are multiple vessels
A10: Add a redundant unit per x parallel lines | B10: redund_freq | C10: 4 | D10: number of parallel lines/redundant unit
A11: Bypass percentage | B11: bp_pct | C11: 0 | E11: Typically, bypass flow ranges between 0% and 50% of inflow. Enter zero to remove bypass piping and components. 0% is default consistent with the type of cost curves that EPA will need for its national cost simulation model.
A12: Loading rate minimum | B12: load_min | C12: 5 | D12: gpm/square ft | E12: Typical linear flowrates are in the range of 4-15 gpm/ft2 (Montgomery, James M. Water Treatment Principles and Design. New York: John Wiley and Sons, 1985. Pp.221).
A13: Loading rate maximum | B13: load_max | C13: 15 | D13: gpm/square ft | E13: Typical linear flowrates are in the range of 4-15 gpm/ft2 (Montgomery, James M. Water Treatment Principles and Design. New York: John Wiley and Sons, 1985. Pp.221).
A14: Maximum vessel height (circular vessels) | B14: max_height | C14: 14 | D14: feet | E14: Systems have used vessels up to 14' diam and height in practice (AWWA Inorganic Contaminants Workshop 2006)
A15: Maximum vessel diameter | B15: max_diam_override | D15: feet | E15: Maximum vessel diameter will be chosen from a table of conventional sizes for commercial vessels, unless entered here. Systems have used vessels up to 14' diam and height in practice (AWWA Inorganic Contaminants Workshop 2006)
A16: Maximum vessel length (longitudinal vessels) | B16: max_length | C16: 53 | D16: feet | E16: Limitation on transportation is 53 feet in length
A17: Free board above media at full expansion | B17: free_board | C17: 0.5 | D17: feet
A18: Underdrain space for horizontal vessels | B18: horiz_underdrain | C18: 1.5 | D18: feet | E18: 1.5 feet is a conservative value for a 10' tank. Bob Dvorin, 5/16/05
A19: Minimum bed depth | B19: min_bed_depth | C19: 2.5 | D19: feet
A20: Maximum bed depth | B20: max_bed_depth | C20: 6 | D20: feet
A21: Target Bed Depth (Designs < 1MGD) | B21: target_bed_depth_under | C21: 3.2 | D21: feet | E21: Used only for autosize procedure
A22: Target Bed Depth (Vertical Designs > 1 MGD) | B22: target_bed_depth_over | C22: 4 | D22: feet | E22: Used only for autosize procedure
A23: Target Bed Depth (Horizontal Designs) | B23: target_bed_depth_horiz | C23: 5 | D23: feet | E23: Used only for autosize procedure
A24: Vessel thickness of wall | B24: Vessel_thickness | C24: 0 | D24: feet | E24: Set to zero because vendor designs and quotes are usually expressed in inside diameter. Increase if user desires to input outside diameter
A25: Ratio of length to diameter for horizontal vessels | B25: length_diam_ratio | C25: 2.5 | E25: Used only for autosize procedure
A26: Volume Tolerance, vertical vessels <1 mgd | B26: vol_tol_vert_small | C26: 0.5 | E26: Used to check size compatibility of specified volume with required volume
A27: Volume Tolerance, vertical vessels >1 mgd | B27: vol_tol_vert_med | C27: 0.4
A28: Volume Tolerance, horizontal vessels | B28: vol_tol_horiz | C28: 0.4
A29: Resin expansion during backwash | B29: bed_expansion | C29: 0.75 | E29: Guidance: Generally, bed expansion can range between 75 and 100 percent. Ask the supplier for bed expansion information. Bed expansion in the 50-75 percent range is normal (Montgomery, James M. Water Treatment Principles and Design. New York: John Wiley and Sons, 1985. Pp.221).
A30: Resin density | B30: media_density | C30: 50 | D30: lbs/ft3 | E30: Typical SAC resin density is 47-53 lbs/ft3 (Clifford Peer Review Comments)
A32: Pumping
A33: Safety factor for pumps | B33: pump_safety_factor | C33: 0.25
A34: Redundant booster pumps | B34: NRD_pumps | C34: 0 | D34: pumps | E34: Multiple pump approach eliminates need for redundant pumps
A35: Redundant backwash pumps | B35: NRD_back_pumps | C35: 1 | D35: pump
A36: Number of redundant chemical metering pumps | B36: NRD_cm_pump | C36: 1 | D36: pumps
A37: Minimum average flow as percentage of design | B37: min_avg_flow | C37: 0.1 | E37: The minimum ratio of average flow to design flow. If the ratio falls below this value, it will trigger a warning on the INPUT sheet. If this value is zero, no minimum is enforced
A39: Backwash and Regeneration
A40: Backwash loading rate | B40: h2oflush_backwash_rate | C40: 6 | D40: gpm/square ft | E40: Varies depending on specific resin and manufacturer, see response to peer review comments
A41: Backwash time | B41: backwash_time | C41: 15 | D41: minutes | E41: This step [backwashing] will last 5-15 minutes (Montgomery, James M. Water Treatment Principles and Design. New York: John Wiley and Sons, 1985. Pp.221).
A42: Backwash frequency outside of regeneration/initial rinse | B42: add_backwash_freq | D42: days | E42: Leave blank to assume backwash occurs only at regneration, enter a value to incorporate additional, out-of-cycle backwashes
A43: Regenerant loading rate | B43: regen_rate | C43: 0.4 | D43: gpm/cubic ft | E43: Minimum brining rate suggested by resin manufacturers to avoid channelling is 0.25 gpm/ft3 of resin, suggest 0.25 to 0.4 (Harrison Peer Review Comments)
A44: Regenerant reuse | B44: regen_reuse | C44: 0 | D44: times | E44: Reuse is not applicable in softening applications (Gottlieb Peer Review Comments)
A45: Slow rinse volume | B45: s_rinse_bv | C45: 2 | D45: volumes
A46: Fast final rinse volume | B46: f_rinse_bv | C46: 10 | D46: volumes | E46: 10-15 bed volumes; use 10 volumes (AWWA ASCE 1998) at service loading rate
A47: Fast rinse loading rate | B47: f_rinse_rate | C47: 6 | D47: gpm/square ft | E47: Equal to backwash loading rate (Lowry Anion Peer Review comments)
A48: Resin life | B48: resin_life | C48: 7 | D48: years | E48: Although regenerated, media eventually will reach permanent exhaustion. Rule of thumb: resin life = 10 years / steady chlorine residual (mg/L) of the feed water, with a maximum of 10 years (Harrison Peer Review Comments). Default of 7 years (Clifford Peer Review Comments) is consistent with 1.4 mg/L chlorine residual.
A49: Saturated brine concentration | B49: brine_conc_sat | C49: 3.1 | D49: lb/gal
A50: Dilute brine concentration | B50: brine_conc | C50: 0.9 | D50: lb/gal | E50: Brine concentration between 8% - 14% with 10% being typical (AWWA, ASCE 1998)
A51: Salt density | B51: salt_density | C51: 80 | D51: lbs/ft3 | E51: For calculating storage footprint
A52: Salt storage height | B52: storage_height | C52: 10 | D52: ft
A53: Days of chemical storage | B53: cstore_days | C53: 30 | D53: days | E53: Applies to salt storage
A54: Mixer size | B54: mixer_size | C54: 1 | D54: hp
A55: Annual resin loss | B55: resin_loss_annual | C55: 0.045 | D55: percent/year | E55: Assume 4 to 5%
A57: Valves and Instrumentation
A58: See the Valve Table at the bottom of this page for additional assumptions relating to valves
A59: Number of manual valves on influent and effluent line | B59: tot_man_valves | C59: 2 | D59: valves
A60: Number of manual valves on process line per vessel | B60: proc_man_vessel | C60: 1 | D60: valve/vessel | E60: For filter to waste
A62: Number of check valves on backwash line if no backwash pumps | B62: back_chv_no_back | C62: 1 | D62: valves
A63: Number of check valves on backwash line per backwash pump | B63: back_chv_pump | C63: 1 | D63: valves/pump
A64: Number of check valves on polymer line per metering pump | B64: polymer_chv_pump | C64: 1 | D64: valves/pump | E64: Applies only with polymer addition to residuals
A65: Number of check valves on influent line | B65: tot_in_chv | C65: 2 | D65: valves | E65: At both inlet and outlet in this technology
A66: Number of check valves on bypass line | B66: tot_bp_chv | C66: 1 | D66: valves
A68: Flow meters for influent and effluent line | B68: tot_fm_in | C68: 1 | D68: units | E68: Flow meter assemblies include pressure gauges
A69: Flow meters for process line per vessel | B69: fm_proc | C69: 1 | D69: units/vessel
A70: Flow meters for backwash line | B70: tot_fm_back | C70: 1 | D70: units | E70: At backwash discharge outlet
A71: Level switch/ alarm to PLC | B71: level_switch | C71: 0 | D71: units/vessel
A72: For small systems | B72: level_switch_small | C72: 0 | D72: units/vessel
A73: High/Low alarm for backwash tank | B73: alarm_back | C73: 1 | D73: units/vessel
A74: High/Low alarms for brine tank | B74: alarm_brine | C74: 1 | D74: units/vessel | E74: Salt saturators come equipped with level alarms, so only added if brine tanks are used.
A75: ORP sensor | B75: ORP_sensor | C75: 0 | D75: units
A76: pH meters | B76: pH_controls | C76: 2 | D76: units | E76: Influent and effluent line.
A77: Temperature meters | B77: temp_meters | C77: 2 | D77: units | E77: One for influent line, one for effluent line
A78: For small systems | B78: temp_meters_small | C78: 0 | D78: units
A79: Turbidity meters per vessel | B79: turb_tank | C79: 0 | D79: units/vessel
A80: For small systems | B80: turb_tank_small | C80: 0 | D80: units/vessel
A81: Additional turbididy meters | B81: add_turb | C81: 1 | D81: units | E81: One at backwash discharge outlet
A82: For small systems | B82: add_turb_small | C82: 0 | D82: units
A83: Conductivity meters per vessel | B83: cond_tank | C83: 1 | D83: units/vessel
A84: Additional conductivity meters | B84: add_cond | C84: 1 | D84: units | E84: One at outlet of eductors into backwash line
A85: Head loss sensors per vessel | B85: head_tank | C85: 1 | D85: units/vessel
A86: For small systems | B86: head_tank_small | C86: 0 | D86: units/vessel
A87: Sampling ports per vessel | B87: ports_tank | C87: 3 | D87: units/vessel
A88: Sampling ports for bypass line | B88: ports_bp | C88: 1 | D88: units
A89: Additional sampling ports | B89: add_ports | C89: 3 | D89: units | E89: One for influent line, one for effluent line, one on residual side of backwash line
A90: Number of electrical enclosures | B90: elec_encl | C90: 0 | D90: units | E90: Required only for technologies with significant electric-powered equipment outside a building
A92: System Controls
A93: See the I/O Port Table at the bottom of this page for additional assumptions relating to system controls
A94: Controllers are used only under full automation
A95: To change the degree of automation, change the number of controllers to zero for the appropriate items.
A96: Drive controllers per booster pump | B96: S_booster_pump | C96: 1
A97: Drive controllers per backwash pump | B97: S_back_pump | C97: 1
A98: Drive controllers per eductor | B98: S_eductor | C98: 1
A99: Drive controllers per mixer | B99: S_mixer | C99: 1
A101: Number of CPUs | B101: plc_cpu | C101: 2 | D101: units | E101: One CPU is needed to run the local and expansion bases and modules (max 8192 I/O); using two to provide redundancy
A102: Ethernet modules | B102: plc_ethernet | C102: 2 | D102: units | E102: One ethernet module is needed; using two to provide redundancy
A103: Operator interfaces | B103: plc_interface | C103: 2 | D103: units | E103: Two to provide redundancy in the event of SCADA node failure
A104: UPSs | B104: ups | C104: 1 | D104: unit | E104: UPS protects the PLC system from undesired outages and surges that can adversely affect the performance of the PLC unit
A105: Computer workstations per x operators | B105: workstation_ratio | C105: 1 | D105: operator/workstation | E105: Minimum will always be one, but larger systems will have multiple workstations to control the system
A106: Number of shifts | B106: shifts_day | C106: 3 | D106: shifts/day | E106: Used to determine number of workstations
A107: Printers per x computer workstations | B107: printer_ratio | C107: 4 | D107: workstations/printer | E107: Minimum will always be one, but larger systems will have multiple printers
A109: Structure/Floorplan
A110: Maximum access space per vessel or tank for custom designed systems | B110: max_space_vessels_cust | C110: 6 | D110: feet | E110: This is the MAXIMUM; space between vessels and tanks defaults to vessel or tank diameter, up to this maximum. Maximum provides space for sandblasting and painting for large vessels (5-8 feet per Richard E. Hubel, Peter Keenan, American Water Works Service Company).
A111: Maximum access space per vessel or tank for pre-engineered systems | B111: max_space_vessels_pre | C111: 1 | D111: feet | E111: Assumes skid-mounting with minimal access space
A112: Access space per pump for custom designed systems | B112: space_pumps_cust | C112: 4 | D112: feet | E112: Provide a minimum of 3 ft (1 m) of clear space around each item of equipment (American Water Works Association and American Society of Civil Engineers. Water Treatment Plant Design. Third Edition. New York: McGraw Hill, 1998. Pp. 695).
A113: Access space per pump for pre-engineered packages | B113: space_pumps_pre | C113: 0 | D113: feet | E113: Pumps on skid for pre-engineered packages, no additional access space
A115: Non fire Buffer for buildings | B115: non_fire_buffer | C115: 10 | D115: feet
A116: Fire Buffer for Buildings | B116: fire_buffer | C116: 40 | D116: feet
A117: Top and bottom dished vessel sections height and access space | B117: Top_bottom_Vessel_space | C117: 6 | D117: feet | E117: This is used to determine the building height for purposes of heating and cooling cost
A118: Office space per employee | B118: space_office | C118: 100 | D118: square ft
A119: Office space per employee | B119: space_office_small | C119: 0 | D119: square ft | E119: Small systems do not require office space
A120: Concrete pad thickness | B120: pad_thick | C120: =6/12 -> 0.5 | D120: feet
A121: Concrete pad thickness for small systems | B121: pad_thick_small | C121: =4/12 -> 0.3333333333 | D121: feet
A122: Clearance space beneath the ceiling | B122: ceiling_clearance | C122: 3 | D122: feet | E122: Minimum space between the tops of storage tanks and the ceiling
A123: Additional building after… | B123: add_2nd_building | C123: 10000 | D123: sf
A125: Residuals Discharge
A126: Add coagulant to holding tank/basin? | B126: coag_res | C126: 0 | D126: <-- 1 for yes, 0 for no | E126: For additional TSS removal, if desired
A127: Type of coagulant added | B127: coag_type | C127: 1 | D127: <-- 1 for polymer, 2 for ferric chloride, 3 for both polymer & ferric chloride
A128: Minimum settling time when coagulant is used | B128: res_coag_settle_time | C128: 90 | D128: minutes | E128: When coagulant is used, holding tanks will be sized so that residuals are present for at least this long. Based on 90-120 minute settling time in sedimentation basins (Water Treatment Plant Design, 4th ed.)
A129: Polymer dosage | B129: polymer_dose | C129: 100 | D129: mg/L
A130: Polymer solution density | B130: polymer_density | C130: 9.6 | D130: lb/gal
A131: Polymer sludge production factor | B131: polymer_spf | C131: 1 | D131: lbs accumulated per pound added
A132: Chemical tank mixer horsepower | B132: cmix_hp_per | C132: 0.25 | D132: hp per 1000 gal
A133: Ferric chloride dosage | B133: coag_dose | C133: 10 | D133: mg/L | E133: Coagulant is presumed to be ferric chloride
A134: Ferric chloride bulk density | B134: coag_density | C134: 43 | D134: lb/ft3 | E134: For chemical storage area calculations
A135: Ferric chloride sludge production factor | B135: coag_spf | C135: 0.99 | D135: lbs accumulated per pound added
A136: Holding tank/basin solids density | B136: ht_solids_density | C136: 25 | D136: lb/ft3
A137: Holding tank/basin suspended solids removal efficiency without coagulant | B137: htank_TSSrem | C137: 0 | E137: Assumes low influent solids result in no settling without coagulant addition
A138: Holding tank/basin suspended solids removal efficiency with coagulant | B138: coag_TSSrem | C138: 0.5
A139: Clean holding tank/basins when solids accumulation =x% of capacity | B139: htank_clean_pct | C139: 0.1
A140: Holding tank/basin capacity safety factor | B140: res_cap_factor | C140: 2 | E140: Holding tanks are designed with a capacity of one generation event, multiplied by this safety factor. This multiplier accounts for less than perfect staggering of generation events and provides for solids accumulation (i.e., it provides excess capacity)
A141: Default number of residuals basins | B141: hbasins_default | C141: 1 | E141: This assumption applies if concrete basins are used. Additonal basins are used, however, if needed to achieve minimum holding time. If tanks are used, number calculated on design sheet.
A142: Holding basin depth to volume ratio | B142: holding_ratio | C142: =3/5 -> 0.6 | E142: This assumption used only if concrete basins are used.
A143: Holding basin freeboard | B143: holding_freeboard | C143: 3 | D143: feet | E143: This assumption used only if concrete basins are used.
A144: Overexcavation for storage basins | B144: overexcavate | C144: 4 | D144: ft | E144: 2 feet each side in each dimension. This assumption used only if concrete basins are used
A145: Concrete thickness for holding basins | B145: conc_thick | C145: 1 | D145: ft | E145: This assumption used only if concrete basins are used.
A146: Holding tank/basin mixer horsepower (if coagulant is used) | B146: hmix_hp_per | C146: 0.25 | D146: hp per 1,000 gallons
A147: Holding tank/basin solids transfer method | B147: res_transfer_method | C147: 3 | D147: <-- 1 for slurry pumps, 2 for eductors, 3 for manual trabsfer
A148: Time to empty holding tank/basin | B148: transfer_time | C148: 4 | D148: hrs | E148: Target for systems using mechanical transfer. For systems with manual transfer, calcuated based on solids volume
A149: Minimum residuals pipe diameter | B149: min_res_pipe_size | C149: 1 | D149: in. diam.
A150: Residual solids storage height (for drying pad) | B150: solids_storage_height | C150: 2 | D150: ft
A151: Redundant residuals pumps | B151: NRD_res_pump | C151: 1 | D151: units | E151: Applies only if pumping is included
A152: Distance to discharge point or evaporation pond | B152: add_res_pipe_length | C152: 40 | D152: ft
A153: Number of check valves on residuals line per residuals pump | B153: res_chv_pump | C153: 1 | D153: valves/pump
A154: Number of check valves on residuals line if no pumping | B154: res_chv_no_pump | C154: 1 | D154: valves
A155: Drive controllers per residuals pump | B155: S_res_pump | C155: 1
A156: Drive controllers per coagulant feeder | B156: S_feeder | C156: 1
A157: Flow meters for residuals line | B157: tot_fm_res | C157: 1 | D157: units
A158: High/Low alarms per holding tank/basin | B158: alarm_res | C158: 1 | D158: units/tank
A159: TSS in system influent | B159: influent_TSS | C159: 2 | D159: ppm | E159: This is influent TSS. Backwash TSS is calculated and will be higher, as TSS removed are concentrated.
A160: TSS in treated water | B160: effluent_TSS | C160: 0.5 | D160: ppm
A161: POTW rate structure | B161: POTW_rate_type | C161: 1 | D161: <-- for national average rate, 2 for a specific rate structure
A162: Apply POTW discharge base charge (i.e., $/month) | B162: POTW_base_fee | C162: 1 | D162: <-- 1 for yes, 2 for no
A163: Apply POTW discharge volume charge (i.e., $/1000 gallons) | B163: POTW_volume_fee | C163: 1 | D163: <-- 1 for yes, 2 for no
A164: Apply POTW discharge TSS charge (i.e., $/lb of TSS over limit below) | B164: POTW_TSS_fee | C164: 1 | D164: <-- 1 for yes, 2 for no
A165: POTW TSS discharge limit (over which fee would be imposed) | B165: POTW_TSS_limit | C165: 250 | D165: ppm | E165: Most common limit for cities with a limit.
A166: Disposal method for non-hazardous secondary solids | B166: solids_method | C166: 1 | D166: <-- 1 for landfill, 2 for land application | E166: Ignored if solids are hazardous or radioactive
A167: Maximum hazardous waste shipment size | B167: max_haz_ship | C167: 18 | D167: tons
A168: Maximum radioactive (non-hazardous) waste shipment size | B168: max_rad_ship | C168: 18 | D168: tons
A169: Maximum radioactive hazardous waste shipment size | B169: max_hazrad_ship | C169: 18 | D169: tons
A170: Maximum liquid hazardous waste shipment size | B170: max_lhaz_ship | C170: 6000 | D170: gal
A171: Miles to non-hazardous solid waste disposal site | B171: non_haz_miles | C171: 10 | D171: miles
A172: Miles to hazardous solid waste disposal site | B172: haz_miles | C172: 200 | D172: miles
A173: Miles to radioactive (non-hazardous) waste disposal site | B173: rad_miles | C173: 700 | D173: miles
A174: Miles to radioactive hazardous waste disposal site | B174: hazrad_miles | C174: 700 | D174: miles
A176: Average annual pan evaporation rate | B176: pan_evap | C176: 180 | D176: cm/year | E176: Reflects an arid climate. If evaporation ponds are used, climate assumptions on O&M assumptions page should also be changed to reflect an arid climate.
A177: Evaporation ratio | B177: evap_ratio | C177: 0.7 | E177: A safety factor to account for conversion of pan to lake evaporation rate and effect of salinity
A178: Average annual precipitation | B178: precip | C178: 70 | D178: cm/year | E178: Reflects an arid climate. If evaporation ponds are used, climate assumptions on O&M assumptions page should also be changed to reflect an arid climate.
A179: Days of winter (i.e., days of storage during periods with no net evaporation) | B179: winter_days | C179: 180 | D179: days | E179: Accounts for wet periods in which residuals are stored without evaporation
A180: Climate for estimating evaporation pond greenhouse gas emissions | B180: GHG_pond_climate | C180: temperate | E180: Uses climate zones as defined in Varis et al., 2012; note that evaporation ponds are unlikely to be feasible in boreal climates
A181: Evaporation pond safety factor | B181: ep_safety_factor | C181: 1.1 | E181: Accounts for years of below average evaporation
A182: Maximum evaporation pond cell area | B182: max_ep_cell_area | C182: 5 | D182: acres
A183: Minimum number of pond cells | B183: min_ep_cells | C183: 2 | D183: cells | E183: A minimum of 2 two cells is essential to ensure availability of storage space during cleaning, maintainance or emergency conditions. "Dewatering Municipal Wastewater Sludge,EPA design Manual, Dewatering Municipal Wastewater Sludges.EPA/625/1-87/014, September 1987".
A184: Evaporation pond freeboard | B184: ep_freeboard | C184: 0.5 | D184: feet | E184: Additional freeboard provided by dike
A185: Overexcavation for evaporation pond | B185: ep_overexcavate | C185: 4 | D185: ft | E185: 2 feet each side in each dimension
A186: Evaporation pond solids removal frequency | B186: dredging_freq | C186: 1 | D186: per year | E186: Range from 1 to 3 yrs. Depending on the final solid concentration required and local climate. "Dewatering Municipal Wastewater Sludge,EPA design Manual, Dewatering Municipal Wastewater Sludges.EPA/625/1-87/014, September 1987".
A187: Evaporation pond solids density | B187: ep_solids_density | C187: 25 | D187: lb/ft3
A188: Evaporation pond dike cross-sectional area | B188: dike_xsection | C188: 35.63 | D188: square ft | E188: 13' top and 1:2 side slope, 2'6" height
A190: Minimum septic tank discharge time | B190: min_sept_disch_time | C190: 2 | D190: days | E190: Typical of state/local regulations
A191: Minimum septic tank volume | B191: min_sept_tank_vol | C191: 1000 | D191: gal | E191: State/local regulations dictate a minimum of 750 to 1000 gallons; 1000 is the minimum size for which costs are available
A192: Septic tank volume safety factor | B192: sept_tank_sf | C192: 1.5 | E192: Allow for tank freeboard & effluent other than residuals
A193: Long term acceptance rate | B193: sept_LTAR | C193: 0.5 | D193: gpd/sq ft | E193: Used by states/localities to dermine the minimum trench infiltration area; varies based on soil type
A194: Septic drain field trench width | B194: sept_trench_w | C194: 4 | D194: feet | E194: State/local regulations require 2 to 4 feet; RS Means costs based on 4' trenches
A195: Septic drain field trench depth | B195: sept_trench_d | C195: 4 | D195: feet | E195: State/local regulations require 2 to 4 feet; RS Means costs based on 4' trenches
A196: Septic drain field trench gravel depth below distribution pipe | B196: sept_gravel_d_below | C196: 1 | D196: feet | E196: Typical designs are 8 to 24 inches; 12 inches common
A197: Minimum number of septic drain field trenches | B197: sept_min_trenches | C197: 2 | E197: Typical of state/local regulations
A198: Maximum septic drain field trench length | B198: sept_max_trench_l | C198: 100 | D198: feet | E198: Typical of state/local regulations
A199: Distance between drain field trenches | B199: sept_trench_dist | C199: 8 | D199: feet | E199: State/local regulations typically require 2x width or depth
A200: Septic drain field trench total gravel depth | B200: sept_gravel_d | C200: =28/12 -> 2.333333333 | D200: feet | E200: Assumes 1 foot below, 1 foot above, 4 inches sides of distribution pipe
A201: Septic drain field buffer distance | B201: sept_buffer | C201: 10 | D201: feet | E201: State/local regulations typically require minimum 10 feet offset from property lines and structures, with greater offset for wells, watercourses, etc; the latter would be site-specific
A202: Septic tank overexcavation depth | B202: sept_overexcav | C202: 1 | D202: feet | E202: Distance above and each side
A203: Maximum distribution pipe connections per distribution box | B203: sept_dist_connections | C203: 7 | E203: Using cost for a 7 outlet distribution box
A204: Septic system distribution pipe diameter | B204: sept_pipe_diam | C204: 4 | D204: inches | E204: Typical design: 4" perforated pvc pipe
A206: Valve Table
A207: Under assumptions below, valves are motorized for fully automated systems, manual for semi-automated and manual systems
A208: To change the degree of automation, the user may replace the numbers in each of the blue columns.
A209: Number of control valves of x type on y line per z | B209: Lookup name | C209: Manual | D209: Semi-auto | E209: Fully Auto
A210: Motor/air operated control valves on process line per vessel (parellel systems) | B210: proc_MOV_vessel_par | C210: 0 | D210: 0 | E210: 2 | F210: valves/vessel
A211: Motor/air operated control valves on process line per vessel (series systems) | B211: proc_MOV_vessel_ser | C211: 0 | D211: 0 | E211: 3 | F211: valves/vessel
A212: Number of motor/air operated control valves on process line per booster pump | B212: proc_MOV_pump | C212: 0 | D212: 0 | E212: 2 | F212: valves/pump
A213: Number of motor/air operated control valves on backwash line per vessel | B213: back_MOV_vessel | C213: 0 | D213: 0 | E213: 2 | F213: valves/vessel
A214: Number of motor/air operated control valves on backwash line per backwash pump | B214: back_MOV_pump | C214: 0 | D214: 0 | E214: 1 | F214: valves/pump
A215: Number of motor/air operated control valves on backwash line per backwash tank | B215: back_MOV_tank | C215: 0 | D215: 0 | E215: 1 | F215: valves/tank
... 44 more rows

Sheet O&M Assumptions
A1: Default O&M Assumptions
A2: Users may change any of the cells in the Value column
A4: Assumption | B4: Range Name | C4: Value | D4: Units | E4: Guidance
A5: Pump head for booster pumps | B5: booster_pump_head | C5: 25 | D5: psi | E5: Von Huben, Harry. Operator's Companion, 4th Edition. USABluebook, 2000. Pp. 17 25 psi creates a head of 60 feet
A6: Residuals pump head | B6: res_pump_psi | C6: 25 | D6: psi
A7: Pump efficiency | B7: booster_pump_efficiency | C7: 0.75
A8: Pump head for backwash pumps | B8: backwash_pump_head | C8: 14.7 | D8: psi
A9: Cost for parts & maintenance for pumps | B9: booster_pump_maintenance | C9: 0.01 | E9: For calculating cost of actual maintenance materials; not to be confused with depreciation. Initial proposed estimate of 5% seems high (Richard E. Hubel, Peter Keenan, American Water Works Service Company, Inc)
A11: Mangerial LOE as a percent of average technical labor | B11: Manager_percent | C11: 0.1 | D11: fraction
A12: Administrative LOE as a percent of average technical labor | B12: Clerical_percent | C12: 0.1 | D12: fraction
A14: Operating LOE assumptions
A15: Minutes per instrument per day | B15: uloe_inst | C15: 5 | D15: min/day | E15: For manual systems only
A16: Recording operating paramenters for automated systems | B16: uloe_inst_auto | C16: 5 | D16: min/day | E16: For semiautomated and automated systems
A17: Minutes per pump per day | B17: uloe_pump | C17: 5 | D17: min/day | E17: For manual and semiautomated systems
A18: Minutes per valve per week | B18: uloe_valve | C18: 5 | D18: min/week | E18: For manual and semiautomated systems
A19: Minutes per 100 sf per day | B19: uloe_fp | C19: 1 | D19: min/100 sf/day
A20: Minutes per regeneration for automated systems | B20: uloe_autoregen | C20: 10 | D20: min/event | E20: Manual and semiautomated systems use actual regeneration time
A21: Hours per resin changeout | B21: uloe_throwaway | C21: =8/(20*27) -> 0.01481481481 | D21: hours/cubic foot | E21: Based on 20 cubic yards per day, applied separately to removal and replacement.
A23: Maintenance LOE assumptions
A24: For instruments (includes calibration) | B24: uloe_inst_maint | C24: 10 | D24: min/month
A25: For pumps | B25: uloe_pump_maint | C25: 30.25 | D25: hours/year | E25: Based on vendor recommended maintenance activities; applied to large, frequently operated pumps only
A26: For valves | B26: uloe_valve_maint | C26: 5 | D26: min/year | E26: Applied to main process valves only
A27: For chemical supply systems | B27: uloe_chem_maint | C27: 60 | D27: min/month
A29: Lighting and HVAC
A30: Lighting power per sf, low-quality buildings and sheds | B30: lighting_power_low | C30: 1 | D30: W/sf | E30: 1, 2, and 4 W/sf are the assumptions used for building capital costs.
A31: Lighting power per sf, mid-quality buildings | B31: lighting_power_mid | C31: 2 | D31: W/sf
A32: Lighting power per sf, high-quality buildings | B32: lighting_power_high | C32: 4 | D32: W/sf
A34: Ventilation air change rate for offices | B34: Air_changes_office | C34: 2 | D34: air changes/hr
A35: Pressure drop across the fan | B35: Fan_pressure_drop | C35: 0.25 | D35: lbs/ft2
A36: Number of mechanical ventilation days per year first building (small system) | B36: fan_days_build1_small | C36: 90 | D36: days/year | E36: Number of days per year where natural ventilation is applicable cannot be greater than 365 days
A37: Number of mechanical ventilation days per year 2nd building (small system) | B37: fan_days_build2_small | C37: 90 | D37: days/year | E37: For small systems (<1 MGD)
A38: Number of mechanical ventilation days per year first building (medium system) | B38: fan_days_build1_medium | C38: 120 | D38: days/year | E38: For medium systems (1 - 10 MGD)
A39: Number of mechanical ventilation days per year 2nd building (medium system) | B39: fan_days_build2_medium | C39: 120 | D39: days/year
A40: Number of mechanical ventilation days per year first building (large system) | B40: fan_days_build1_large | C40: 185 | D40: days/year | E40: For large systems (> 10 MGD)
A41: Number of mechanical ventilation days per year 2nd building (large system) | B41: fan_days_build2_large | C41: 185 | D41: days/year
A43: R-value for walls | B43: R_wall | C43: 13 | D43: hr-sf-degF/BTU | E43: Assumes standard building materials. If higher R-value materials are desired, user may also need to adjust the cost of building materials in cl.xls
A44: R-value for ceilings | B44: R_ceiling | C44: 38 | D44: hr-sf-degF/BTU | E44: Assumes standard building materials. If higher R-value materials are desired, user may also need to adjust the cost of building materials in cl.xls
A45: Annual heating degree days | B45: heat_DD | C45: 4923 | D45: degree days | E45: Heating and cooling assumptions should be consistent with one another. Assumed values are for a climate that results in a total energy usage for heating and cooling equal to the national median.
A46: Annual cooling degree days | B46: cool_DD | C46: 1697 | D46: degree days | E46: Heating and cooling assumptions should be consistent with one another. Assumed values are for a climate that results in a total energy usage for heating and cooling equal to the national median.
A47: Heating ventilation/infiltration load | B47: heat_viload | C47: 168679 | D47: BTU/cfm | E47: Heating and cooling assumptions should be consistent with one another. Assumed values are for a climate that results in a total energy usage for heating and cooling equal to the national median.
A48: Cooling ventilation/infiltration load | B48: cool_viload | C48: 51771 | D48: BTU/cfm | E48: Heating and cooling assumptions should be consistent with one another. Assumed values are for a climate that results in a total energy usage for heating and cooling equal to the national median.
A49: Electric resistance heating efficiency | B49: resist_eff | C49: 0.98 | E49: See Appendix E
A50: Heat pump heating coefficient of performance | B50: COP | C50: 3.2 | E50: See Appendix E
A51: Natural gas non-condensing furnace efficiency | B51: gas_non_eff | C51: 0.8 | E51: See Appendix E
A52: Natural gas condensing furnace efficiency | B52: gas_eff | C52: 0.95 | E52: See Appendix E
A53: Standard oil furnace efficiency | B53: diesel_non_eff | C53: 0.78 | E53: See Appendix E
A54: Mid-efficiency oil furnace efficiency | B54: diesel_eff | C54: 0.85 | E54: See Appendix E
A55: Air conditioning EER | B55: EER | C55: 11 | D55: Whr/BTU | E55: See Appendix E
A56: Heat pump cooling mode EER | B56: hp_EER | C56: 10.1 | D56: Whr/BTU | E56: See Appendix E
A58: Heating oil heat Content | B58: diesel_heat_content | C58: 139000 | D58: BTU/gal | E58: U.S. DOE, Energy Information Administration.

Sheet Indirect Assumptions
A1: Default Assumptions for Indirect and Add-On Costs
A2: Users may change any of the cells in the Value column
A4: Assumption | B4: Range Name | C4: Value | D4: Units | E4: Guidance
A5: Buildings
A6: Include buildings in total capital cost? | B6: include_buildings | C6: 1 | D6: <--- enter 1 for yes, 0 for no
A7: Include concrete pad in total capital cost? | B7: include_pad | C7: 1 | D7: <--- enter 1 for yes, 0 for no
A9: Permits
A10: Include permit costs? | B10: include_permits | C10: 1 | D10: <--- enter 1 for yes, 0 for no
A11: Always include NEPA compliance costs? | B11: include_NEPA | C11: 0 | D11: <--- enter 1 for yes, 2 for no | E11: Default of 0 means NEPA compliance is included in the high component cost estimate only. Selecting 1 means NEPA compliance will be included in all estimates. Selecting 0 means NEPA compliance will never be included
A13: Pilot Study
A14: Include pilot study costs? | B14: include_pilot | C14: 0 | D14: <--- enter 1 for yes, 0 for no | E14: Default assumes no pilot, because softening is an established technology
A16: Land
A17: Include land costs? | B17: include_land | C17: 1 | D17: <--- enter 1 for yes, 0 for no
A19: Mobilization and Demobilization
A20: Mobilization percentage for small systems | B20: mob_pct_small | C20: 0 | D20: of direct capital cost | E20: Typically 2-5% of the estimated construction cost. Enter 0% to exclude. Excluded by default for pre-engineered packages
A21: Mobilization percentage for medium systems | B21: mob_pct_medium | C21: 0.04 | D21: of direct capital cost
A22: Mobilization percentage for large systems | B22: mob_pct_large | C22: 0.02 | D22: of direct capital cost
A24: Architectural Fees for Treatment Building
A25: Include architectural fee? | B25: include_arch | C25: 1 | D25: <--- enter 1 for yes, 0 for no | E25: Must be added to building cost. Change for special considerations. Includes structural, mechanical, and electrical engineering for building only.
A26: Include architectural fee for small systems? | B26: include_arch_small | C26: 0 | D26: <--- enter 1 for yes, 0 for no
A28: Installation, Transportatation, and O&P
A29: Installation, Transportatation, and O&P percentage | B29: inst_pct | C29: 0 | D29: of direct capital cost | E29: Included in line item unit costs. Add a percentage for special considerations such as a remote site or high cost location.
A31: Sitework
A32: Include sitework costs? | B32: include_sitework | C32: 1 | D32: <--- enter 1 for yes, 0 for no
A34: Yard Piping
A35: Include yard piping costs? | B35: include_yardpipe | C35: 1 | D35: <--- enter 1 for yes, 0 for no
A36: Frost depth | B36: frost | C36: 38 | D36: inches | E36: Should be consistent with (reflect same climate as) heating and cooling assumptions on O&M assumptions page. Assumptions are for St. Louis, Missouri.
A37: Minimum trench depth to top of pipe | B37: min_trench_depth | C37: 36 | D37: inches | E37: US Army Corps of Engineers recommended minimum cover for distribution pipes of 2.5 ft in grassed areas, 3 ft if buried under pavement or roadways but not less than frost penetration depth (USACOE 1984)
A38: Soil density | B38: soil_dens | C38: 97 | D38: lb/cubic ft. | E38: Based on soil density of loamy sand (1.55 gm/cc)
A39: Coefficient of passive pressure | B39: Coeff_Kp | C39: 3
A40: Reduction factor | B40: Reduction | C40: 0.467
A41: Bedding depth below pipe | B41: bedding_depth | C41: 6 | D41: inches
A42: Bedding depth surrounding the pipe | B42: bedding_pct | C42: 0.25 | D42: of pipe diameter
A43: Trench inside angle | B43: trench_angle | C43: =RADIANS(45) -> 0.7853981634 | D43: radians
A44: Pipe length from water source to the boundary of the 10 foot buffer | B44: yard_in | C44: 0 | D44: feet | E44: Use if technology is first step in treatment process
A45: Pipe length the boundary of the 10 foot buffer to distribution network | B45: yard_out | C45: 0 | D45: feet | E45: Use if technology is last step in treatment process
A47: Geotechnical & Sitework
A48: Include geotechnical costs for low cost systems? | B48: include_geo_low | C48: 0 | D48: <--- enter 1 for yes, 0 for no | E48: Geotechnical is always included with the septic system option, regardless of the numbers entered here
A49: Include geotechnical costs for medium cost systems? | B49: include_geo_medium | C49: 0 | D49: <--- enter 1 for yes, 0 for no
A50: Include geotechnical costs for high cost systems? | B50: include_geo_high | C50: 1 | D50: <--- enter 1 for yes, 0 for no
A51: Test pit length | B51: pit_length | C51: 4 | D51: feet
A52: Test pit width | B52: pit_width | C52: 4 | D52: feet
A53: Test pit depth | B53: pit_depth | C53: 7 | D53: feet
A54: Borehole depth without basins | B54: bore_depth_nobasin | C54: 10 | D54: feet
A55: Borehole depth for shallow basins | B55: bore_depth_min | C55: 25 | D55: feet
A56: Borehole depth for deep basins | B56: bore_depth_max | C56: 50 | D56: feet
A57: Basin excavation depth above which deeper boreholes are needed | B57: deep_bore_need | C57: 20 | D57: feet | E57: Systems with deep basins require deeper investigation
A58: Technology footprint above which boreholes are needed | B58: bore_need | C58: 2000 | D58: square feet | E58: Small system geotechnical investigation can be completed with test pits, larger systems require boreholes
A59: Minimum number of boreholes | B59: min_holes | C59: 4
A60: Borehole needed every x square feet | B60: hole_per_sf | C60: 1000 | D60: square feet
A61: Boreholes per job | B61: hole_per_job | C61: 24 | D61: boreholes/job
A62: Linear feet bored per day | B62: hole_per_day | C62: 55.5 | D62: l.f./day | E62: RS Means Costworks 2001
A64: Standby Power
A65: Include standby power costs? | B65: include_standby | C65: 1 | D65: <--- enter 1 for yes, 0 for no
A66: Include standby power costs for small systems? | B66: include_standby_small | C66: 0 | D66: <--- enter 1 for yes, 0 for no
A67: Design safety factor for standby power | B67: std_safety_factor | C67: 0 | E67: Default 0%. Apply a percentage to increase standby power requirements.
A68: Include heating in standby power | B68: need_heat | C68: 0 | D68: <--- enter 1 for yes, 0 for no | E68: If a system uses gas or diesel heat, heating will not be included, regardless of this assumption.
A69: Include cooling in standby power | B69: need_cool | C69: 0 | D69: <--- enter 1 for yes, 0 for no | E69: If both heating and cooling are included, standby power requirements will be based on the maximum of the two.
A70: Minimum standby power generator size | B70: min_standby | C70: 10 | D70: kW | E70: Minimum size for full standby generators
A72: Electrical (including yard wiring)
A73: Electrical percentage | B73: elect_pct | C73: 0.1 | D73: of direct cost
A75: Instrumentation and Control
A76: Instrumentation and control percentage | B76: i_c_pct | C76: 0 | D76: of direct cost | E76: Included as a direct cost line item.
A78: Contingency
A79: Include contingency costs for low cost systems? | B79: include_conting_low | C79: 0 | D79: <--- enter 1 for yes, 0 for no
A80: Include contingency costs for medium cost systems? | B80: include_conting_medium | C80: 0 | D80: <--- enter 1 for yes, 0 for no
A81: Include contingency costs for high cost systems? | B81: include_conting_high | C81: 1 | D81: <--- enter 1 for yes, 0 for no
A82: Technology complexity factor | B82: complexity | C82: 0.5 | E82: Technology-specific factor. See Appendices for details. Low complexity = 0.5; Average complexity = 1.0; High complexity = 1.5; Very high complexity = 2.0.
A84: Process Engineering
A85: Engineering percentage for small systems | B85: eng_pct_small | C85: 0.2 | D85: of direct capital cost | E85: Enter 0% to exclude.
A86: Engineering percentage for medium systems | B86: eng_pct_medium | C86: 0.12 | D86: of direct capital cost
A87: Engineering percentage for large systems | B87: eng_pct_large | C87: 0.08 | D87: of direct capital cost
A89: Miscellaneous Allowance
A90: Miscellaneous allowance percentage | B90: misc_pct | C90: 0.1 | D90: of direct capital cost | E90: Enter 0% to exclude.
A92: Legal, Fiscal, and Administrative
A93: Legal percentage | B93: legal_pct | C93: 0.02 | D93: of direct capital cost | E93: Enter 0% to exclude. Highly site-specific. Can range from 2-5% of equipment, installation, construction, electrical, and standby power. To estimate, add 5% to total estimated construction cost.
A95: Sales Tax
A96: Sales tax percentage | B96: tax_pct | C96: 0 | D96: of direct capital cost | E96: May be exempt if constructed with public funds. May be as high as 7.25% of equipment and construction, with national average 4.75%.
A98: Financing during Construction
A99: Financing percentage | B99: finance_pct | C99: 0.05 | D99: of direct capital cost | E99: Enter 0% to exclude. Typically assumed to be one year's interest on capital cost.
A100: Financing percentage for small systems | B100: finance_pct_small | C100: 0 | D100: of direct capital cost | E100: Small system construction assumed to take less than one year
A102: Construction Management and General Contractor Overhead
A103: Builder's risk insurance percentage | B103: br_ins_pct | C103: 0.0034 | E103: Enter 0% to exclude. 0.34% is national average rate. RSMeans Building Construction Cost Data 2009, reference section R01100-070
A104: Include performance bond cost? | B104: include_bond | C104: 1 | D104: <--- enter 1 for yes, 0 for no
A105: Include construction management cost? | B105: include_cm | C105: 1 | D105: <--- enter 1 for yes, 0 for no
A106: Include construction management cost for pre-engineered packages? | B106: include_cm_pre | C106: 0 | D106: <--- enter 1 for yes, 0 for no
A108: Heating Table (1=include heating in buildings and O&M, 0 = do not include heating)
A109: Component Level | B109: Range Name | C109: System Size
C110: Small (<1 mgd) | D110: Medium (1-10 mgd) | E110: Large (>10 mgd)
A111: Buildings 500 square feet or greater
A112: low cost | B112: heating_table | C112: 0 | D112: 1 | E112: 1
A113: mid cost | C113: 1 | D113: 1 | E113: 1
A114: high cost | C114: 1 | D114: 1 | E114: 1
A115: Buildings less than 500 ft2 (other than those used for chlorine storage)
A116: low cost | B116: heating_table_shed | C116: 0 | D116: 0 | E116: 1
A117: mid cost | C117: 0 | D117: 0 | E117: 1
A118: high cost | C118: 1 | D118: 1 | E118: 1
A120: Cooling Table (1=include cooling in buildings and O&M, 0 = do not include cooling)
A121: Component Level | B121: Range Name | C121: System Size
C122: Small (<1 mgd) | D122: Medium (1-10 mgd) | E122: Large (>10 mgd)
A123: Buildings 500 square feet or greater
A124: low cost | B124: cooling_table | C124: 0 | D124: 0 | E124: 1
A125: mid cost | C125: 0 | D125: 1 | E125: 1
A126: high cost | C126: 1 | D126: 1 | E126: 1
A127: Buildings less than 500 ft2 (other than those used for chlorine storage)
A128: low cost | B128: cooling_table_shed | C128: 0 | D128: 0 | E128: 0
A129: mid cost | C129: 0 | D129: 0 | E129: 0
A130: high cost | C130: 0 | D130: 0 | E130: 0

Sheet Vessel Constraints
A1: Contactor Constraint Calculations
A2: This sheet performs calculations to confirm that the vessel design on the Input page meets engineering constraints
A4: Calculation | B4: Range Name | C4: Value | D4: Units | E4: Guidance
A5: From Inputs
A6: Design Flow | B6: design_flow | C6: =IF(df_units="gpm",(1-bp_pct)*design_flow_I*24*60/1000000,(1-bp_pct)*design_flow_I) -> 75.072 | D6: MGD | E6: From Inputs
A7: Average Flow | B7: average_flow | C7: =(1-bp_pct)*IF(af_units="gpm",average_flow_I*24*60/1000000,IF(af_units="fraction of design flow",average_flow_I*design_flow,average_flow_I)) -> 37.536 | D7: MGD | E7: From Inputs
A8: Design Flow Rate | B8: design_flow_rate | C8: =design_flow*1000000/(24*60) -> 52133.33333 | D8: gpm | E8: Design flow expressed in gpm
A9: Average Flow Rate | B9: average_flow_rate | C9: =average_flow*1000000/(24*60) -> 26066.66667 | D9: gpm | E9: Average flow expressed in gpm
A10: Bypass Flow Rate (design) | B10: bp_flow_rate | C10: =bp_pct/(1-bp_pct)*design_flow_rate -> 0 | D10: gpm
A11: Empty bed contact time (EBCT) | B11: EBCT | C11: =ebct_I -> 2.5 | D11: minutes
A12: Minimum number of vessels in series | B12: Num_tanks | C12: 1 | D12: units
A13: Vessel geometry | B13: tank_geom | C13: =IF(tank_geom_I="horizontal",2,1) -> 2 | D13: <-- 1 for upright cylindrical, 2 for horizontally-laid cylinder
A15: From Central Cost Database
A16: Maximum Standard Vessel Diameter | B16: max_diam_std_size | C16: =max_vessel_diam_cl -> 14 | D16: feet
A17: Minimum Vessel Diameter | B17: min_diam | C17: =min_vessel_diam_cl -> 1.5 | D17: feet
A18: Maximum Vessel Diameter | B18: max_diam | C18: =IF(max_diam_override>0,max_diam_override,max_diam_std_size) -> 14 | D18: feet
A20: Vessel Constraint Verification
A21: EBCT per vessel | B21: EBCT_tank | C21: =EBCT/Num_tanks -> 2.5 | D21: minutes
A22: Vessel surface area | B22: max_sa | C22: =IF(tank_geom=1,(comm_diam-(2*Vessel_thickness))^2*PI()/4,IF(tank_geom=2,(comm_diam-(2*Vessel_thickness))*comm_height_length)) -> 325 | D22: square feet
A23: Height available above media bed (for horizontal vessels) | B23: distance_above | C23: =IF(tank_geom=2,comm_diam-bed_depth-horiz_underdrain,"NA") -> 6.1 | D23: ft
A24: Void space above media bed (for horizontal vessels) | B24: void_above | C24: =IF(tank_geom=2,comm_height_length*(comm_diam*comm_diam/2*ASIN(SQRT(distance_above/comm_diam))-(comm_diam/2-distance_above)*SQRT((comm_diam-distance_above)*distance_above)),"NA") -> 1546.5947 | D24: cubic feet
A25: Maximum flow per vessel | B25: flow_per_vessel | C25: =IF(tank_geom=1,(max_sa*bed_depth*7.48)/EBCT_tank,media_volume*7.48/EBCT_tank) -> 4270.203564 | D25: gpm
A26: Number of parallel treatment trains | B26: num_treat_lines | C26: =ROUNDUP(design_flow_rate/flow_per_vessel,0) -> 13 | D26: lines
A27: Number of vessels excluding redundancy | B27: op_num_tanks | C27: =ROUNDUP(design_flow_rate/flow_per_vessel,0)*Num_tanks -> 13 | D27: units
A28: Number of redundant units | B28: NRD | C28: =IF(NRD_I<>"",NRD_I,IF(design_flow>=1,ROUNDUP(num_treat_lines/redund_freq,0),IF(op_num_tanks=1,NRD_small_1,NRD_small))) -> 4
A29: Total number of vessels including redundancy | B29: final_num_tanks | C29: =op_num_tanks+NRD -> 17 | D29: units
A31: Vessel requirements based on bed depth and contact time
A32: Minimum total resin needed | B32: contact_material | C32: =design_flow_rate*EBCT/(7.481) -> 17421.91329 | D32: cubic feet
A33: Minimum volume of resin per vessel | B33: contact_mat_per_vessel | C33: =contact_material/op_num_tanks -> 1340.147176 | D33: cubic feet
A34: Minimum volume of vessel | B34: vol_vessel | C34: =contact_mat_per_vessel*(1+bed_expansion) -> 2345.257558 | D34: cubic feet
A35: Minimum surface area of contact material | B35: SA | C35: =contact_mat_per_vessel/(bed_depth) -> 273.4994237 | D35: square feet
A37: Quantities based on user-specified vessel dimensions
A38: Final surface area of contact material | B38: comm_SA | C38: =IF(tank_geom=1,(comm_diam-(2*Vessel_thickness))^2*PI()/4,IF(tank_geom=2,(comm_diam-(2*Vessel_thickness))*comm_height_length)) -> 325 | D38: square feet
A39: Final surface loading rate | B39: comm_load_rate | C39: =(design_flow_rate/num_treat_lines)/comm_SA -> 12.33925049 | D39: gpm/square ft
A40: Resin volume per tank in gallons | B40: media_volume | C40: =IF(tank_geom=1,comm_SA*bed_depth,IF(tank_geom=2,comm_vol-underdrain_horiz_void-void_above)) -> 1427.207074 | D40: cubic feet
A41: Resin volume per tank | B41: resin_volume_gal | C41: =resin_volume*7.48 -> 10675.50891 | D41: gallons
A42: Resin mass per vessel | B42: resin_per_vessel | C42: =media_volume*media_density -> 71360.35368 | D42: lbs/vessel
A43: Total resin | B43: total_resin | C43: =42:42*final_num_tanks -> 1213126.012 | D43: lbs
A44: Resin volume when expanded | B44: media_volume_expanded | C44: =media_volume*(1+bed_expansion) -> 2497.612379 | D44: cubic feet
A45: Volume | B45: comm_vol | C45: =PI()*comm_diam^2/4*comm_height_length -> 3190.680039 | D45: cubic feet
A46: Volume (gallons) | B46: comm_vol_gal | C46: =comm_vol*7.48 -> 23866.28669 | D46: gal
A48: Checks on user-specified dimensions
A49: Design dimensions for vertical vessels:
A50: Required height of vessel | B50: height | C50: =bed_depth*(1+bed_expansion)+free_board -> 9.075 | D50: feet
A51: Required vessel diameter (circular vessels) | B51: diameter | C51: =(SA*4/PI())^0.5+(2*Vessel_thickness) -> 18.66092928 | D51: feet
A52: Minimum commercial height given diameter | B52: min_comm_height | C52: =VLOOKUP(comm_diam,vessel_size_table_cl,2) -> 6 | D52: feet
A53: Maximum commercial height given diameter | B53: max_comm_height | C53: =VLOOKUP(comm_diam,vessel_size_table_cl,3) -> 24 | D53: feet
A55: Void space required for horizontal vessels:
A56: For freeboard | B56: freeboard_horiz_void | C56: =comm_height_length*(comm_diam*comm_diam/2*ASIN(SQRT(free_board/comm_diam))-(comm_diam/2-free_board)*SQRT((comm_diam-free_board)*free_board)) -> 42.80956006 | D56: cubic feet | E56: Volume of a horizontal slice taken out of a cylinder
A57: For underdrain | B57: underdrain_horiz_void | C57: =comm_height_length*(comm_diam*comm_diam/2*ASIN(SQRT(horiz_underdrain/comm_diam))-(comm_diam/2-horiz_underdrain)*SQRT((comm_diam-horiz_underdrain)*horiz_underdrain)) -> 216.8782655 | D57: cubic feet
A58: Total | B58: horiz_void | C58: =freeboard_horiz_void+underdrain_horiz_void -> 259.6878255 | D58: cubic feet
A60: Volume available for media and expansion:
A61: Vertical vessel | B61: vert_vol_available | C61: =(comm_height_length-free_board)*PI()*comm_diam^2/4 -> 3129.320807 | D61: cubic feet
A62: Horizontal vessel | B62: horiz_vol_available | C62: =comm_vol-horiz_void -> 2930.992213 | D62: cubic feet
A63: For selected vessel geometry | B63: input_vol_vess | C63: =CHOOSE(tank_geom,vert_vol_available,horiz_vol_available) -> 2930.992213 | D63: cubic feet | E63: To be compared to vol_vessel, to determine whether vessel is oversized.
A65: Tolerance for oversized vessels | B65: vol_tol | C65: =CHOOSE(tank_geom,IF(ss_cat2=1,vol_tol_vert_small,vol_tol_vert_med),vol_tol_horiz) -> 0.4 | E65: Tolerance added to vol_vessel in checking for oversized vessels.

Sheet Regen Backwash
A1: Backwash and Regeneration Calculations
A3: Calculation | B3: Range Name | C3: Value | D3: Units | E3: Guidance
A4: From Inputs
A5: Useable exchange capacity | B5: useable_capacity | C5: =IF(regen_calc_type="manual entry","NA",bv_regen_I) -> 27 | D5: kilograins as CaCO3/cubic foot
A6: Salt regenerant dose level | B6: salt_dose | C6: =salt_dose_I -> 15 | D6: lb/cubic ft
A8: Resin Regeneration
A9: Hardness removed per line per day | B9: CaCO3_removed | C9: =CaCO3_in*(average_flow/num_treat_lines)*3.7854 -> 2185.981145 | D9: kg
A10: Hardness capacity per vessel | B10: reg_capacity | C10: =IF(useable_capacity="NA","NA",resin_volume*useable_capacity/15.432) -> 2497.057477 | D10: kg
A11: Bed volumes per regeneration | B11: BV_regen | C11: =IF(regen_calc_type="manual entry",bv_regen_I,10^6*average_flow*reg_capacity/CaCO3_removed/(num_treat_lines*resin_volume_gal)) -> 308.9570987 | D11: BV
A13: Total resin volume | B13: resin_volume_total | C13: =final_num_tanks*resin_volume -> 24262.52025 | D13: cubic feet
A14: Salt needed per vessel | B14: salt_regen | C14: =resin_volume*salt_dose -> 21408.1061 | D14: lbs
A15: Volume of saturated brine per vessel | B15: vol_brine_sat | C15: =salt_regen/brine_conc_sat -> 6905.840678 | D15: gallons
A16: Volume of dilute brine needed per vessel | B16: vol_brine | C16: =salt_regen/brine_conc -> 23786.78456 | D16: gallons | E16: Slow rinse water serves to dilute the brine (Lowry anion exchange Peer Review comments)
A17: Time for regeneration | B17: time_regen | C17: =salt_dose/brine_conc/regen_rate -> 41.66666667 | D17: minutes | E17: Calculated based on salt input and regen_rate
A18: Dilute brine flow rate (gpm) | B18: brine_gpm | C18: =vol_brine/time_regen -> 570.8828294 | D18: gpm
A19: Regeneration per vessel frequency | B19: regen_days | C19: =BV_regen*num_treat_lines*resin_volume_gal/(average_flow*10^6) -> 1.142305131 | D19: days
A20: Number of regeneration washes per month | B20: regen_month | C20: =30/regen_days -> 26.26268516 | D20: washes/vessel/month
A21: Salt needed in storage | B21: salt_store | C21: =(regen_month*cstore_days/30)*salt_regen*num_treat_lines/(regen_reuse+1) -> 7309046.555 | D21: lbs
A23: Salt Purchasing
A24: Quantity required for large quantity purchase | C24: =VLOOKUP("Sodium Chloride - Large Qty",chem_break_table_cl,2,FALSE) -> 3500 | D24: lbs | E24: #N/A indicates that price data do not depend on volume purchased.
A25: Quantity required for mid quantity purchase | C25: =VLOOKUP("Sodium Chloride - Mid Qty",chem_break_table_cl,2,FALSE) -> 3500 | D25: lbs | E25: #N/A indicates that price data do not depend on volume purchased.
A26: Quantity required for small quantity purchase | C26: =VLOOKUP("Sodium Chloride - Small Qty",chem_break_table_cl,2,FALSE) -> 0 | D26: lbs | E26: #N/A indicates that price data do not depend on volume purchased.
A27: Purchase Type | B27: salt_purchase | C27: =IF(AND(ISNA(C24),ISNA(C25),ISNA(C26)),"",IF(salt_store>=C24," - Large Qty",IF(salt_store>=C25," - Mid Qty"," - Small Qty"))) -> - Large Qty | E27: Returns descriptive term based on volume of each purchase for use in determining pricing. Blank indicates that price data do not depend on volume purchased.
A29: Brine Mixing Tanks
A30: Maximum brine mixing tank size | B30: max_chem_tank_size | C30: =MAX(VLOOKUP(10^6,pl_cst_cost_cl,1)-1,VLOOKUP(10^6,fg_cst_cost_cl,1)-1,VLOOKUP(10^6,ss_cst_cost_cl,1)-1) -> 30000 | D30: gallons | E30: The largest size for which costs are available.
A31: Brine tanks | B31: brine_tanks | C31: =IF(brine_method=2,0,IF(vol_brine_sat>max_chem_tank_size,ROUNDUP(vol_brine_sat/max_chem_tank_size,0)*regen_redun,regen_redun)) -> 1 | D31: units
A32: Brine tank volume | B32: brine_tank_vol | C32: =IF(brine_method=2,0,vol_brine_sat*regen_redun/brine_tanks) -> 6905.840678 | D32: gallons
A33: Number of mixers | B33: mixers | C33: =brine_tanks -> 1 | D33: units
A35: Salt Saturators
A36: Smallest size of salt saturator | B36: min_saltbox | C36: =MIN(VLOOKUP(0.001,fg_saltbox_cost_cl,2),VLOOKUP(0.001,pl_saltbox_cost_cl,2)) -> 5 | D36: tons | E36: The smallest size for which costs are available. Used to determine whether a system will store 1 month, 1 week, or 1 day of salt in the saturators.
A37: Maximum size of salt saturator | B37: max_saltbox | C37: =MAX(VLOOKUP(10^6,fg_saltbox_cost_cl,1)-1,VLOOKUP(10^6,pl_saltbox_cost_cl,1)-1) -> 79.1 | D37: tons | E37: The largest size for which costs are available.
A38: Salt saturator size needed | B38: salt_box_need | C38: =IF(salt_store/cstore_days/2000>=min_saltbox,salt_store/cstore_days/2000,IF(salt_store/(cstore_days/7)/2000>=min_saltbox,salt_store/(cstore_days/7)/2000,salt_store/(cstore_days/30)/2000)) -> 121.8174426 | D38: tons | E38: Provides one day, one week, or one month of storage, depending on quantity needed
A39: Days of storage provided by salt saturator | B39: salt_box_days | C39: =IF(salt_store/cstore_days/2000>=min_saltbox,1,IF(salt_store/(cstore_days/7)/2000>=min_saltbox,7,30)) -> 1 | D39: days
A40: Additional salt storage needed | B40: add_salt_store | C40: =IF(cstore_days-salt_box_days>0,cstore_days-salt_box_days,0) -> 29 | D40: days | E40: Additonal storage to total at least as many days supply onsite as specified in CDAs
A41: Number of salt saturators | B41: num_salt_box | C41: =ROUNDUP(salt_box_need/max_saltbox,0) -> 2 | D41: units
A42: Salt saturator size | B42: salt_box_size | C42: =ROUNDUP(salt_box_need/num_salt_box,0) -> 61 | D42: tons
A43: Number of eductors | B43: eductors | C43: =IF(brine_method=1,brine_tanks,num_salt_box) -> 1 | D43: units
A45: Backwash
A46: No backwash | B46: no_backwash | C46: =IF(no_backwash_I="existing pumps",1,IF(no_backwash_I="new pumps","",IF(ss_cat2=1,1,""))) ->  | D46: <-- 1 = backwash using existing supply or treated water pumps, blank = include backwash pumps in costs
A47: No backwash tanks | B47: no_back_tank | C47: =IF(no_back_tank_I="existing storage",1,IF(no_back_tank_I="new storage","",IF(ss_cat2=2,"",1))) -> 1 | D47: <-- 1 = backwash from existing storage or supply, blank = include backwash tanks in costs
A48: Water flush rate (gpm) | B48: water_flush | C48: =ROUND(h2oflush_backwash_rate*comm_SA,0) -> 1950 | D48: gpm
A49: Total water flush | B49: waterflush_vol | C49: =water_flush*backwash_time -> 29250 | D49: gallons
A50: Slow rinse volume | B50: s_rinse_vol | C50: =MAX(resin_volume_gal*s_rinse_bv,vol_brine-vol_brine_sat) -> 21351.01782 | D50: gallons
A51: Slow rinse rate (gpm) | B51: s_rinse_gpm | C51: =(vol_brine-vol_brine_sat)/time_regen -> 405.1426531 | D51: gpm | E51: To deliver dilution water during brining
A52: Slow rinse time | B52: s_rinse_time | C52: =s_rinse_vol/s_rinse_gpm -> 52.7 | D52: minutes | E52: Time to deliver total slow rinse water, overlaps with brine delivery time
A53: Fast rinse volume | B53: f_rinse_vol | C53: =resin_volume_gal*f_rinse_bv -> 106755.0891 | D53: gallons
A54: Fast final rinse time | B54: f_rinse_time | C54: =f_rinse_vol/(f_rinse_rate*comm_SA) -> 54.74619954 | D54: minutes
A55: Fast rinse rate (gpm) | B55: f_rinse_gpm | C55: =f_rinse_vol/f_rinse_time -> 1950 | D55: gpm
A56: Total backwash volume | B56: total_backwash | C56: =waterflush_vol+s_rinse_vol+f_rinse_vol -> 157356.1069 | D56: gal
A57: Maximum backwash tank size | B57: max_back_tank_size | C57: =MAX(VLOOKUP(10^6,st_bwt_cost_cl,1)-1,VLOOKUP(10^6,fg_bwt_cost_cl,1)-1,VLOOKUP(10^6,hdpe_bwt_cost_cl,1)-1) -> 282094 | D57: gallons | E57: The largest size for which costs are available.
A58: Backwash tanks | B58: back_tanks | C58: =IF(no_back_tank=1,0, IF(design_flow>no_back_tank,0,ROUNDUP(total_backwash/max_back_tank_size,0))) -> 0 | D58: units
A59: Backwash tank volume | B59: back_tank_vol | C59: =IF(no_back_tank=1,0,IF(design_flow>no_back_tank,0,total_backwash/back_tanks)) -> 0 | D59: gal
A60: Backwashes per year per vessel | C60: =365/regen_days+IF(add_backwash_freq=0,0,365/add_backwash_freq) -> 319.5293361 | D60: backwash per year
A61: Total number of backwashes per year (all vessels) | B61: backwash_yr | C61: =C60*op_num_tanks -> 4153.881369 | D61: backwash per year | E61: Number of backwash events per year for all vessels includes redundancy
A63: Regeneration downtime | B63: regeneration_downtime | C63: =backwash_time+s_rinse_time+f_rinse_time -> 122.4461995 | D63: minutes
A64: Total days for full regeneration | B64: total_downtime | C64: =regeneration_downtime*op_num_tanks/(24*60) -> 1.105417079 | D64: days
A65: Number of vessels regenerated at a time | B65: regen_redun | C65: =ROUNDUP(C64/regen_days,0) -> 1

Sheet Pumps Pipe Structure
A1: Pumps, Piping, and Structure Calculations
A3: Calculation | B3: Range Name | C3: Value | D3: Units | E3: Guidance
A4: Pump Design
A5: Maximum pump size | B5: max_pump_size | C5: =MAX(VLOOKUP(10^6,pump_cost_cl,1)-1,VLOOKUP(10^6,back_pump_cost_cl,1)-1) -> 10000 | D5: gpm | E5: The largest pump size for which costs are available
A6: Booster pump rating | B6: pump_rating | C6: =IF(lines_pump_I="",IF(ss_cat2=1,0,MIN(MAX(average_flow_rate+bp_flow_rate*average_flow_rate/design_flow_rate,(design_flow_rate+bp_flow_rate)/2)*(1+pump_safety_factor),max_pump_size)),IF(lines_pump_I=0,0,(design_flow_rate+bp_flow_rate)*(1+pump_safety_factor)/lines_pump_I)) -> 10000 | D6: gpm | E6: Includes safety factor
A7: Number of booster pumps | B7: booster_pumps | C7: =IF(pump_rating=0,0,ROUNDUP((design_flow_rate+bp_flow_rate)*(1+pump_safety_factor)/pump_rating,0)) -> 7 | D7: units
A9: Total booster pumps | B9: total_booster_pumps | C9: =IF(booster_pumps=0,0,booster_pumps+NRD_pumps) -> 7 | D9: units | E9: Includes redundancy
A11: Number of backwash pumps | B11: backwash_pumps | C11: =IF(no_backwash=1,0, ROUNDUP(water_flush*(1+pump_safety_factor)/max_pump_size,0)+NRD_back_pumps) -> 2 | D11: pumps | E11: Includes redundancy
A12: Backwash pump rating | B12: back_pump_rating | C12: =water_flush*(1+pump_safety_factor) -> 2437.5 | D12: gpm | E12: Includes safety factor
A14: Piping Design
A15: Inlet and outlet pipe length | B15: in_out_pipe_length | C15: =2*facil_length -> 320 | D15: linear feet
A16: Process piping length | B16: proc_pipe_length | C16: =2*facil_length -> 320 | D16: linear feet
A17: Backwash piping length | B17: back_pipe_length | C17: =2.5*facil_length -> 400 | D17: linear feet
A18: Bypass piping length | B18: bp_pipe_length | C18: =IF(bp_pct>0,back_pipe_length,0) -> 0 | D18: linear feet
A19: Brine/regeneration piping length | B19: brine_pipe_length | C19: =facil_length -> 160 | D19: linear feet
A20: Polymer addition pipe length | B20: polymer_pipe_length | C20: =IF(polymer_day=0,0,facil_length) -> 0 | D20: linear feet
A21: Inlet and outlet pipe flow | B21: in_out_pipe_flow | C21: =design_flow_rate+bp_flow_rate -> 52133.33333 | D21: gpm
A22: Inlet piping diameter | B22: in_out_pipe_diam | C22: =VLOOKUP(in_out_pipe_flow,pipe_size_table_cl,2) -> 36 | D22: inches
A23: Process pipe flow | B23: proc_pipe_flow | C23: =flow_per_vessel -> 4270.203564 | D23: gpm
A24: Process pipe diameter | B24: proc_pipe_diam | C24: =VLOOKUP(proc_pipe_flow,pipe_size_table_cl,2) -> 14 | D24: inches
A25: Backwash pipe flow | B25: back_pipe_flow | C25: =brine_gpm -> 570.8828294 | D25: gpm
A26: Backwash pipe diameter | B26: back_pipe_diam | C26: =VLOOKUP(back_pipe_flow,pipe_size_table_cl,2) -> 6 | D26: inches
A27: Brine pipe flow | B27: brine_pipe_flow | C27: =MAX(regen_rate*comm_SA,s_rinse_gpm) -> 405.1426531 | D27: gpm
A28: Brine pipe diameter | B28: brine_pipe_diam | C28: =VLOOKUP(brine_pipe_flow,pipe_size_table_cl,2) -> 6 | D28: inches
A29: Bypass pipe flow | B29: bp_pipe_flow | C29: =bp_flow_rate -> 0 | D29: gpm
A30: Bypass pipe diameter | B30: bp_pipe_diam | C30: =IF(bp_pct>0,VLOOKUP(bp_pipe_flow,pipe_size_table_cl,2),0) -> 0 | D30: inches
A31: Polymer pipe flow | B31: polymer_pipe_flow | C31: =polymer_rate/60 -> 0 | D31: gpm
A32: Polymer pipe diameter | B32: polymer_pipe_diam | C32: =IF(polymer_day=0,0,VLOOKUP(polymer_pipe_flow,pipe_size_table_cl,2)) -> 0 | D32: inches
A34: Building Structure
A35: Backwash tank diameter | B35: bt_diam | C35: =ROUNDUP(2*(MAX((2*back_tank_vol/7.48/PI())^(1/3),(4*back_tank_vol/7.48/PI()/(Building_height-ceiling_clearance))^(1/2))),0)/2 -> 0 | D35: feet
A36: Brine tank diameter | B36: st_diam | C36: =ROUNDUP(2*(MAX((2*brine_tank_vol/7.48/PI())^(1/3),(4*brine_tank_vol/7.48/PI()/(Building_height-ceiling_clearance))^(1/2))),0)/2 -> 9 | D36: feet
A37: Salt saturator diameter | B37: ss_diam | C37: =ROUNDUP(VLOOKUP(salt_box_size,saltbox_dim_table_cl,3),0) -> 12 | D37: feet
A38: Residuals holding tank diameter | B38: ht_diam | C38: =ROUNDUP(2*(MAX((2*htank_vol/7.48/PI())^(1/3),(4*htank_vol/7.48/PI()/(Building_height-ceiling_clearance))^(1/2))),0)/2 -> 0 | D38: feet
A39: Polymer storage tank diameter | B39: polymer_st_diam | C39: =ROUNDUP((2*(polymer_tank_vol/7.48)/PI())^(1/3),0) -> 0 | D39: feet
A40: Maximum access space per vessel or tank | B40: max_space_vessels | C40: =IF(ss_cat2=1,max_space_vessels_pre,max_space_vessels_cust) -> 6 | D40: feet
A41: Access space per vessel | B41: space_vessels | C41: =IF(tank_geom=2,max_space_vessels,IF(comm_diam>max_space_vessels,max_space_vessels,comm_diam)) -> 6 | D41: feet
A42: Access space per backwash tank | B42: space_bt | C42: =IF(bt_diam>max_space_vessels,max_space_vessels,bt_diam) -> 0 | D42: feet
A43: Access space per brine tank | B43: space_st | C43: =IF(st_diam>max_space_vessels,max_space_vessels,st_diam) -> 6 | D43: feet
A44: Access space per salt saturator | B44: space_ss | C44: =IF(ss_diam>max_space_vessels,max_space_vessels,ss_diam) -> 6 | D44: feet
A45: Access space per residuals holding tank | B45: space_ht | C45: =IF(ht_diam>max_space_vessels,max_space_vessels,ht_diam) -> 0 | D45: feet
A46: Access space per polymer holding tank | B46: space_polymer_st | C46: =IF(polymer_st_diam>max_space_vessels,max_space_vessels,polymer_st_diam) -> 0 | D46: feet
A47: Access space per pump | B47: space_pumps | C47: =IF(ss_cat2=1,space_pumps_pre,space_pumps_cust) -> 4 | D47: feet
A48: Footprint for vessels (large system assumptions) | C48: =IF(tank_geom=1,ROUNDUP(((comm_diam+2*space_vessels)^2+(final_num_tanks-1)*(comm_diam+2*space_vessels)*(comm_diam+space_vessels)),0),IF(tank_geom=2,ROUNDUP((comm_diam+2*space_vessels)*(comm_height_length+2*space_vessels)+(final_num_tanks-1)*(comm_height_length+2*space_vessels)*(comm_diam+space_vessels),0))) -> 12179 | D48: square feet
A49: Footprint for vessels (skid mounted small system) | C49: =IF(tank_geom=1,ROUNDUP(((comm_diam+2*space_vessels)^2+(final_num_tanks-1)*(comm_diam+2*space_vessels)*(comm_diam+space_vessels/2)),0),IF(tank_geom=2,ROUNDUP((comm_diam+2*space_vessels)*(comm_height_length+2*space_vessels)+(final_num_tanks-1)*(comm_height_length+2*space_vessels)*(comm_diam+space_vessels/2),0))) -> 10355 | D49: square feet | E49: Space between skid mounted vessels is reduced, outside access space remains the same
A50: Footprints for vessels | B50: vessel_fp | C50: =IF(ss_cat2=1,C49,C48) -> 12179 | D50: square feet
A51: Footprint for backwash tank | B51: back_tank_fp | C51: =IF(back_tanks=0,0,ROUNDUP((bt_diam+2*space_bt)^2+(back_tanks-1)*(bt_diam+2*space_bt)*(bt_diam+space_bt),0)) -> 0 | D51: square feet
A52: Booster pump footprint | C52: =IF(total_booster_pumps=0,0,ROUNDUP((VLOOKUP(pump_rating,pump_dim_table_cl,3)+space_pumps)*(VLOOKUP(pump_rating,pump_dim_table_cl,4)+2*space_pumps)+(total_booster_pumps-1)*(VLOOKUP(pump_rating,pump_dim_table_cl,3)+space_pumps)*(VLOOKUP(pump_rating,pump_dim_table_cl,4)+space_pumps),0)) -> 905 | D52: square feet
A53: Backwash pump footprint | C53: =IF(backwash_pumps=0,0,ROUNDUP((VLOOKUP(back_pump_rating,pump_dim_table_cl,3)+space_pumps)*(VLOOKUP(back_pump_rating,pump_dim_table_cl,4)+2*space_pumps)+(backwash_pumps-1)*(VLOOKUP(back_pump_rating,pump_dim_table_cl,3)+space_pumps)*(VLOOKUP(back_pump_rating,pump_dim_table_cl,4)+space_pumps),0)) -> 198 | D53: square feet
A54: Residuals pump footprint | C54: =IF(res_pumps=0,0,ROUNDUP((VLOOKUP(res_pump_rating,pump_dim_table_cl,3)+space_pumps)*(VLOOKUP(res_pump_rating,pump_dim_table_cl,4)+2*space_pumps)+(res_pumps-1)*(VLOOKUP(res_pump_rating,pump_dim_table_cl,3)+space_pumps)*(VLOOKUP(res_pump_rating,pump_dim_table_cl,4)+space_pumps),0)) -> 0 | D54: square feet
A55: Residual solids transfer equipment footprint | C55: =IF(res_transfer_method=1,ROUNDUP(IF(res_transfer_rate<40000,99.152*res_transfer_rate^0.0434,0.8761*res_transfer_rate^0.49),0),0) -> 0 | D55: square feet | E55: If slurry pumps are used
A56: Footprint for pumps | B56: pump_fp | C56: =C53+C52+C54+C55 -> 1103 | D56: square feet
A57: Footprint for chemical storage | B57: brine_store_fp | C57: =IF(brine_method=1,ROUNDUP(salt_store/salt_density/storage_height,0),ROUNDUP((salt_store*add_salt_store/cstore_days)/salt_density/storage_height,0))+ROUNDUP(coag_store/coag_density/storage_height,0) -> 9137 | D57: square feet | E57: Includes coagulant for holding tanks if used
A58: Footprint for brine tank/salt saturator | B58: brine_fp | C58: =IF(brine_method=1,ROUNDUP((st_diam+2*space_st)^2+(brine_tanks-1)*(st_diam+2*space_st)*(st_diam+space_st),0),ROUNDUP((VLOOKUP(salt_box_size,saltbox_dim_table_cl,3)+2*space_ss)^2+(num_salt_box-1)*(VLOOKUP(salt_box_size,saltbox_dim_table_cl,3)+2*space_ss)*(VLOOKUP(salt_box_size,saltbox_dim_table_cl,3)+space_ss),0)) -> 441 | D58: square feet
A59: Residuals holding tank footprint | B59: htank_fp | C59: =IF(OR(res_holding<>"tanks",htanks=0),0,ROUNDUP((ht_diam+2*space_ht)^2+(htanks-1)*(ht_diam+2*space_ht)*(ht_diam+space_ht),0)) -> 0 | D59: square feet
A60: Residuals holding basin footprint | B60: hbasin_fp | C60: =IF(res_holding<>"basins",0,ROUNDUP(hbasins*hbasin_length*hbasin_width*2,0)) -> 0 | D60: square feet
A61: Polymer storage tank footprint | B61: polymer_fp | C61: =IF(polymer_tanks=0,0,ROUNDUP((polymer_st_diam+2*space_polymer_st)^2+(polymer_tanks-1)*(polymer_st_diam+2*space_polymer_st)*(polymer_st_diam+space_polymer_st),0)) -> 0 | D61: square feet
A62: Office space | B62: office_fp | C62: =VLOOKUP(design_flow,labor_table_cl,3)*IF(ss_cat2=1,space_office_small,space_office) -> 780 | D62: square feet
A63: Exact building footprint required | B63: fp_required | C63: =pump_fp+brine_store_fp+vessel_fp+back_tank_fp+brine_fp+office_fp+htank_fp+hbasin_fp+polymer_fp -> 23640 | D63: square feet
A64: Footprint of building 1 | B64: build1_fp | C64: =ROUNDUP(IF(fp_required<add_2nd_building,fp_required,vessel_fp),-1) -> 12180 | D64: square feet | E64: If total footprint is large, building 1 contains vessels only. If total footprint is small, building 1 contains all equipment.
A65: Footprint of building 2 | B65: build2_fp | C65: =ROUNDUP(IF(fp_required<add_2nd_building,0,back_tank_fp+pump_fp+brine_store_fp+office_fp+brine_fp+htank_fp+hbasin_fp+polymer_fp),-1) -> 11470 | D65: square feet | E65: If total footprint is large, a second building is used for pumps, backwash, and chemical storage
A66: Total footprint | B66: total_fp | C66: =build1_fp+build2_fp -> 23650 | D66: square feet
A67: Concrete Class A for vessel and pumps padding | B67: concrete | C67: =ROUNDUP((fp_required-office_fp)*IF(ss_cat2=1,pad_thick_small,pad_thick)/27,0) -> 424 | D67: cubic yards
A68: Facility dimension assumed square | B68: facil_length | C68: =ROUNDUP(total_fp^0.5,-1) -> 160 | D68: feet
A69: Additional footprint for evaporation pond | B69: ep_fp | C69: =IF(ep_cells=0,0,ROUNDUP((ep_cell_side+2*non_fire_buffer)^2+(ep_cells-1)*(ep_cell_side+2*non_fire_buffer)*(ep_cell_side+non_fire_buffer),0)) -> 0 | D69: square feet
A70: Land acquisition required | B70: land_required | C70: =ROUNDUP(((build1_fp)^0.5+(2*non_fire_buffer))*((build1_fp)^0.5+(non_fire_buffer+fire_buffer))+IF(build2_fp=0,0,((build2_fp)^0.5+(2*non_fire_buffer))*((build2_fp)^0.5+(non_fire_buffer+fire_buffer)))+ep_fp+sept_fp+solids_pad_area,-2)/43560 -> 0.9389348026 | D70: acres
A72: Land acquisition cost | B72: land_cost | C72: =VLOOKUP(design_flow,land_cost_cl,3) -> 109103.2886 | D72: /acre

Sheet Instrumentation and Control
A1: Instrumentation and Control Calculations
A3: Calculation | B3: Range Name | C3: Value | D3: Units | E3: Guidance
A4: From Inputs
A5: Component level | B5: component_level | C5: =IF(component_level_I="high cost",2,IF(component_level_I="mid cost",1,"")) ->  | D5: blank = low cost, 1 = mid cost, 2 = high cost
A6: Manual system controls | B6: manual | C6: =IF(manual_I="manual",1,IF(manual_I="semi-automated",2,IF(manual_I="fully automated",3,IF(component_level="",1,IF(component_level=2,3,CHOOSE(ss_cat2,3,3,3)))))) -> 1 | D6: 1 = fully manual system, 2 = semi-automated system, blank = fully automated system. | E6: Based on system size and component level (see cell comment), unless user overrides on input sheet
A8: Control Valves and Instrumentation
A9: Size of valves for inlet and outlet lines | B9: in_valve_size | C9: =in_out_pipe_diam -> 36 | D9: inches
A10: Size of valves for vessel pipe line | B10: tank_valve_size | C10: =proc_pipe_diam -> 14 | D10: inches
A11: Size of valves for backwash pipe line | B11: back_valve_size | C11: =back_pipe_diam -> 6 | D11: inches
A12: Size of valves for brine pipe line | B12: brine_valve_size | C12: =brine_pipe_diam -> 6 | D12: inches
A13: Size of valves for bypass pipe line | B13: bypass_valve_size | C13: =bp_pipe_diam -> 0 | D13: inches
A14: Size of valves for polymer line | B14: polymer_valve_size | C14: =polymer_pipe_diam -> 0 | D14: inches
A16: Number of MOVs on process line per vessel | B16: proc_MOV_vessel | C16: =VLOOKUP(IF(Num_tanks=1,"proc_mov_vessel_par","proc_mov_vessel_ser"),valve_table,manual+1,FALSE) -> 0 | D16: valves/vessel | E16: Depends on whether system is operated in parallel or series (lead/lag)
A17: Number of MOVs for process line | B17: tot_proc_MOVs | C17: =final_num_tanks*proc_MOV_vessel+total_booster_pumps*VLOOKUP("proc_MOV_pump",valve_table,manual+1,FALSE) -> 0 | D17: valves
A18: Number of MOVs for backwash line | B18: tot_back_MOVs | C18: =final_num_tanks*VLOOKUP("back_MOV_vessel",valve_table,manual+1,FALSE)+backwash_pumps*VLOOKUP("back_MOV_pump",valve_table,manual+1,FALSE)+back_tanks*VLOOKUP("back_MOV_tank",valve_table,manual+1,FALSE)+IF(brine_method=1,brine_tanks,num_salt_box)*VLOOKUP("back_MOV_brine",valve_table,manual+1,FALSE)+VLOOKUP("back_MOV_add",valve_table,manual+1,FALSE)+eductors*VLOOKUP("back_MOV_eductor",valve_table,manual+1,FALSE) -> 0 | D18: valves
A19: Number of MOVs for brine line | B19: tot_brine_MOVs | C19: =IF(brine_method=1,brine_tanks,num_salt_box)*VLOOKUP("brine_MOV_tank",valve_table,manual+1,FALSE)+final_num_tanks*VLOOKUP("brine_MOV_vessel",valve_table,manual+1,FALSE) -> 0 | D19: valves
A20: Number of MOVs for bypass line | B20: tot_bp_MOVs | C20: =IF(bp_pct=0,0,VLOOKUP("tot_bp_movs",valve_table,manual+1,FALSE)) -> 0 | D20: valves
A21: Number of MOVs for polymer addition line | B21: tot_polymer_MOVs | C21: =IF(polymer_day=0,0,(cm_pumps_polymer)*VLOOKUP("chem_MOV_pump",valve_table,manual+1,FALSE)) -> 0 | D21: valves
A22: Total number of MOVs | B22: tot_MOVs | C22: =SUM(C17:C21)+total_res_MOVs -> 0 | D22: valves
A23: Number of manual valves on process line per vessel | B23: proc_man_vessel_cont | C23: =VLOOKUP(IF(Num_tanks=1,"proc_man_vessel_par","proc_man_vessel_ser"),valve_table,manual+1,FALSE) -> 2 | D23: valves/vessel | E23: Depends on whether system is operated in parallel or series (lead/lag)
A24: Number of manual valves for process line | B24: tot_proc_man | C24: =(proc_man_vessel_cont+proc_man_vessel)*final_num_tanks+total_booster_pumps*VLOOKUP("proc_man_pump",valve_table,manual+1,FALSE) -> 65 | D24: valves
A25: Number of manual valves for backwash line | B25: tot_back_man | C25: =final_num_tanks*VLOOKUP("back_man_vessel",valve_table,manual+1,FALSE)+backwash_pumps*VLOOKUP("back_man_pump",valve_table,manual+1,FALSE)+back_tanks*VLOOKUP("back_man_tank",valve_table,manual+1,FALSE)+IF(brine_method=1,brine_tanks,num_salt_box)*VLOOKUP("back_man_brine",valve_table,manual+1,FALSE)+VLOOKUP("back_man_add",valve_table,manual+1,FALSE)+eductors*VLOOKUP("back_man_eductor",valve_table,manual+1,FALSE) -> 41 | D25: valves
A26: Number of manual valves for brine line | B26: tot_brine_man | C26: =IF(brine_method=1,brine_tanks,num_salt_box)*VLOOKUP("brine_man_tank",valve_table,manual+1,FALSE)+final_num_tanks*VLOOKUP("brine_man_vessel",valve_table,manual+1,FALSE) -> 35 | D26: valves
A27: Number of manual valves for bypass line | B27: tot_bp_man | C27: =IF(bp_pct=0,0,VLOOKUP("tot_bp_man",valve_table,manual+1,FALSE)) -> 0 | D27: valves
A28: Number of manual valves for polymer addition line | B28: tot_polymer_man | C28: =IF(polymer_day=0,0,(cm_pumps_polymer)*VLOOKUP("chem_man_pump",valve_table,manual+1,FALSE)) -> 0 | D28: valves
A29: Number of check valves backwash line | B29: tot_back_chv | C29: =back_chv_pump*backwash_pumps+IF(no_backwash=1,back_chv_no_back,0) -> 2 | D29: valves
A30: Number of check valves polymer line | B30: tot_polymer_chv | C30: =polymer_chv_pump*cm_pumps_polymer -> 0 | D30: valves
A32: Size of flow meters for influent line | B32: in_meter_size | C32: =in_out_pipe_diam -> 36 | D32: inches
A33: Size of flow meters for process line | B33: proc_meter_size | C33: =proc_pipe_diam -> 14 | D33: inches
A34: Size of flow meters for backwash line | B34: back_meter_size | C34: =back_pipe_diam -> 6 | D34: inches
A35: Number of flow meters for process line | B35: tot_fm_proc | C35: =fm_proc*final_num_tanks -> 17 | D35: units
A37: Total level switch/alarms | B37: tot_level_switch | C37: =final_num_tanks*IF(ss_cat2=1,level_switch_small,level_switch) -> 0 | D37: units
A38: Total high/low alarms for backwash | B38: tot_back_alarm | C38: =back_tanks*alarm_back -> 0 | D38: units
A39: Total high/low alarms for brine | B39: tot_brine_alarm | C39: =alarm_brine*IF(brine_method=1,brine_tanks,0) -> 1 | D39: units
A40: Total turbidity meters | B40: tot_turb_meters | C40: =IF(ss_cat2=1,turb_tank_small*final_num_tanks+add_turb_small,turb_tank*final_num_tanks+add_turb) -> 1 | D40: units
A41: Total Temperature Meters | B41: tot_temp_meters | C41: =IF(ss_cat2=1,temp_meters_small,temp_meters) -> 2 | D41: units
A42: Total conductivity meters | B42: tot_cond_meters | C42: =cond_tank*final_num_tanks+add_cond -> 18 | D42: units
A43: Total head loss sensors | B43: tot_head_sens | C43: =IF(ss_cat2=1,head_tank_small,head_tank)*final_num_tanks -> 17 | D43: units
A44: Sampling ports | B44: ports | C44: =ports_tank*final_num_tanks+add_ports+IF(bp_pct>0,ports_bp,0) -> 54 | D44: units
A45: Total drive controllers | B45: tot_switches | C45: =IF(manual=2,0,S_booster_pump*total_booster_pumps+S_back_pump*backwash_pumps+S_res_pump*res_pumps+S_eductor*(eductors+res_eductors)+S_mixer*(mixers+hmixers)+IF(grav_feed_rate<>0,S_feeder*IF(res_holding="tanks",htanks,IF(res_holding="basins",hbasins,0)),0)) -> 11 | D45: units
A47: System Controls
A48: Flow meter lookup code - inlet/outlet | B48: fm_lkp_io | C48: =IF(OUTPUT!L177=1,"flow_op",IF(OUTPUT!L178=1,"flow_prop",IF(OUTPUT!L179=1,"flow_ven","flow_mag"))) -> flow_op | E48: These codes are used to look up SCADA requirements, which depend on the type of flow meter selected.
A49: Flow meter lookup code - process | B49: fm_lkp_proc | C49: =IF(OUTPUT!L182=1,"flow_op",IF(OUTPUT!L183=1,"flow_prop",IF(OUTPUT!L184=1,"flow_ven","flow_mag"))) -> flow_ven
A50: Flow meter lookup code - backwash | B50: fm_lkp_back | C50: =IF(OUTPUT!L187=1,"flow_op",IF(OUTPUT!L188=1,"flow_prop",IF(OUTPUT!L189=1,"flow_ven","flow_mag"))) -> flow_ven
A51: Flow meter lookup code - residuals | B51: fm_lkp_res | C51: =IF(OUTPUT!L192=1,"flow_op",IF(OUTPUT!L193=1,"flow_prop",IF(OUTPUT!L194=1,"flow_ven","flow_mag"))) -> flow_ven
A52: Total discrete inputs | B52: discrete_inputs | C52: =VLOOKUP(fm_lkp_io,port_table,2,FALSE)*tot_fm_in+VLOOKUP(fm_lkp_proc,port_table,2,FALSE)*tot_fm_proc+VLOOKUP(fm_lkp_back,port_table,2,FALSE)*tot_fm_back+VLOOKUP(fm_lkp_res,port_table,2,FALSE)*tot_fm_res+VLOOKUP("alarm",port_table,2,FALSE)*(tot_level_switch+tot_back_alarm+tot_brine_alarm+tot_res_alarm)+VLOOKUP("orp",port_table,2,FALSE)*ORP_sensor+VLOOKUP("ph",port_table,2,FALSE)*pH_controls+VLOOKUP("temp",port_table,2,FALSE)*tot_temp_meters+VLOOKUP("cond",port_table,2,FALSE)*tot_cond_meters+VLOOKUP("turb",port_table,2,FALSE)*tot_turb_meters+VLOOKUP("head",port_table,2,FALSE)*tot_head_sens+VLOOKUP("port",port_table,2,FALSE)*ports+VLOOKUP("switch",port_table,2,FALSE)*tot_switches+VLOOKUP("valve",port_table,2,FALSE)*tot_MOVs -> 105 | D52: units
A53: Total discrete outputs | B53: discrete_outputs | C53: =IF(manual=2,0,VLOOKUP(fm_lkp_io,port_table,3,FALSE)*tot_fm_in+VLOOKUP(fm_lkp_proc,port_table,3,FALSE)*tot_fm_proc+VLOOKUP(fm_lkp_back,port_table,3,FALSE)*tot_fm_back+VLOOKUP(fm_lkp_res,port_table,3,FALSE)*tot_fm_res+VLOOKUP("alarm",port_table,3,FALSE)*(tot_level_switch+tot_back_alarm+tot_brine_alarm+tot_res_alarm)+VLOOKUP("orp",port_table,3,FALSE)*ORP_sensor+VLOOKUP("ph",port_table,3,FALSE)*pH_controls+VLOOKUP("temp",port_table,3,FALSE)*tot_temp_meters+VLOOKUP("cond",port_table,3,FALSE)*tot_cond_meters+VLOOKUP("turb",port_table,3,FALSE)*tot_turb_meters+VLOOKUP("head",port_table,3,FALSE)*tot_head_sens+VLOOKUP("port",port_table,3,FALSE)*ports+VLOOKUP("switch",port_table,3,FALSE)*tot_switches+VLOOKUP("valve",port_table,3,FALSE)*tot_MOVs) -> 12 | D53: units
A54: Total analog inputs | B54: analog_inputs | C54: =VLOOKUP(fm_lkp_io,port_table,4,FALSE)*tot_fm_in+VLOOKUP(fm_lkp_proc,port_table,4,FALSE)*tot_fm_proc+VLOOKUP(fm_lkp_back,port_table,4,FALSE)*tot_fm_back+VLOOKUP(fm_lkp_res,port_table,4,FALSE)*tot_fm_res+VLOOKUP("alarm",port_table,4,FALSE)*(tot_level_switch+tot_back_alarm+tot_brine_alarm+tot_res_alarm)+VLOOKUP("orp",port_table,4,FALSE)*ORP_sensor+VLOOKUP("ph",port_table,4,FALSE)*pH_controls+VLOOKUP("temp",port_table,4,FALSE)*tot_temp_meters+VLOOKUP("cond",port_table,4,FALSE)*tot_cond_meters+VLOOKUP("turb",port_table,4,FALSE)*tot_turb_meters+VLOOKUP("head",port_table,4,FALSE)*tot_head_sens+VLOOKUP("port",port_table,4,FALSE)*ports+VLOOKUP("switch",port_table,4,FALSE)*tot_switches+VLOOKUP("valve",port_table,4,FALSE)*tot_MOVs -> 63 | D54: units
A55: Total analog outputs | B55: analog_outputs | C55: =IF(manual=2,0,VLOOKUP(fm_lkp_io,port_table,5,FALSE)*tot_fm_in+VLOOKUP(fm_lkp_proc,port_table,5,FALSE)*tot_fm_proc+VLOOKUP(fm_lkp_back,port_table,5,FALSE)*tot_fm_back+VLOOKUP(fm_lkp_res,port_table,5,FALSE)*tot_fm_res+VLOOKUP("alarm",port_table,5,FALSE)*(tot_level_switch+tot_back_alarm+tot_brine_alarm+tot_res_alarm)+VLOOKUP("orp",port_table,5,FALSE)*ORP_sensor+VLOOKUP("ph",port_table,5,FALSE)*pH_controls+VLOOKUP("temp",port_table,5,FALSE)*tot_temp_meters+VLOOKUP("cond",port_table,5,FALSE)*tot_cond_meters+VLOOKUP("turb",port_table,5,FALSE)*tot_turb_meters+VLOOKUP("head",port_table,5,FALSE)*tot_head_sens+VLOOKUP("port",port_table,5,FALSE)*ports+VLOOKUP("switch",port_table,5,FALSE)*tot_switches+VLOOKUP("valve",port_table,5,FALSE)*tot_MOVs) -> 20 | D55: units
A56: Total I/O ports | B56: total_ioports | C56: =discrete_inputs+discrete_outputs+analog_inputs+analog_outputs -> 200 | D56: units
A57: I/O Discrete Output Modules | B57: plc_discrete_output | C57: =ROUNDUP(discrete_outputs/32,0) -> 1 | D57: units
A58: I/O Discrete Input Modules | B58: plc_discrete_input | C58: =ROUNDUP(discrete_inputs/32,0) -> 4 | D58: units
A59: I/O Combination Analog Modules | B59: plc_combination_analog | C59: =ROUNDUP((analog_inputs + analog_outputs)/12,0) -> 7 | D59: units
A60: Total number of PLC slots used | B60: plc_slots | C60: =plc_cpu + plc_ethernet + plc_discrete_input + plc_discrete_output + plc_combination_analog -> 16 | D60: units
A61: Expansions required | B61: plc_expansions | C61: =IF(plc_slots<=9,0,ROUNDUP((plc_slots-9)/8,0)) -> 1 | D61: units
A62: PLC Rack/Power Supplies | B62: plc_rack | C62: =1+plc_expansions -> 2 | D62: units
A63: Base Expansion Modules | B63: plc_base_expansion | C63: =plc_expansions -> 1 | D63: units
A64: Base Expansion Controller Modules | B64: plc_base_expansion_controller | C64: =plc_expansions -> 1 | D64: units
A65: Number of computer workstations | B65: workstations | C65: =ROUNDUP(Operator_LOE/2080/shifts_day/workstation_ratio,0) -> 3 | D65: units
A66: Number of printers | B66: printers | C66: =ROUNDUP(workstations/printer_ratio,0) -> 1 | D66: units

Sheet Residuals Management
A1: Residuals Management Calculations
A3: Calculation | B3: Range Name | C3: Value | D3: Units | E3: Guidance
A4: From Inputs
A5: Brine delivery method | B5: brine_method | C5: =IF(brine_method_I="brine mixing tanks",1,2) -> 1 | D5: <-- 1 for brine mixing tanks, 2 for salt saturator
A6: Discharge option for spent brine | B6: res_s2_opt | C6: =IF(res_s2_opt_I="surface water",1,IF(res_s2_opt_I="POTW",2,IF(res_s2_opt_I="evaporation pond",3,IF(res_s2_opt_I="septic system",4,5)))) -> 2 | D6: <-- 1 for direct discharge to surface water, 2 for discharge to POTW, 3 for evaporation pond, 4 for septic system. 5 for hazardous waste disposal
A7: Holding tank for spent brine | B7: res_s1_opt | C7: =IF(OR(res_s2_opt=3,res_s2_opt=4),2,IF(res_s2_opt=5,1,IF(res_s1_opt_I="holding tank",1,2))) -> 2 | D7: <-- 1 for holding tank, 2 for no holding tank (input ignored if continuous regeneration is required)
A8: Characteristics of spent resin | B8: media_haz | C8: =IF(media_haz_I="","",IF(media_haz_I="hazardous",2,IF(media_haz_I="radioactive",3,IF(media_haz_I="radioactive hazardous",4,1)))) -> 1 | D8: <-- 1 for non-hazardous, 2 for hazardous, 3 for radioactive, 4 for radioactive hazardous
A9: =IF(res_s2_opt=3,"Characteristics of evaporation pond solids",IF(res_s1_opt=1,"Characteristics of holding tank solids","")) ->  | B9: solids_haz | C9: =IF(res_s2_opt=4,1,IF(solids_haz_I="hazardous",2,IF(solids_haz_I="radioactive",3,IF(solids_haz_I="radioactive hazardous",4,1)))) -> 1 | D9: <-- 1 for non-hazardous, 2 for hazardous, 3 for radioactive, 4 for radioactive hazardous
A11: Spent Brine
A12: Single event volume | B12: res_vol | C12: =(total_backwash+vol_brine_sat/(regen_reuse+1)) -> 164261.9476 | D12: gal | E12: Regenerating one vessel
A13: Single out-of-cycle backwash event volume | B13: res_outcycle_vol | C13: =IF(add_backwash_freq=0,0,total_backwash) -> 0 | D13: gal | E13: Backwashing one vessel
A14: Time between events | B14: res_stagger_time | C14: =IF(regen_redun>1,"NA",regen_days*24*60/num_treat_lines) -> 126.5322606 | D14: minutes | E14: NA if continuous regeneration is required
A15: Time between out-of-cycle backwash events | B15: res_outcycle_stagger_time | C15: =add_backwash_freq*24*60/op_num_tanks -> 0 | D15: minutes | E15: Zero indicates no out-of-cycle backwash
A16: Actual residuals discharge flow rate | B16: res_flow_actual | C16: =IF(regen_redun>1,res_vol*regen_redun/regeneration_downtime,IF(AND(res_s1_opt=1,res_s2_opt<>3),res_vol/res_stagger_time,res_vol*regen_redun/regeneration_downtime)) -> 1341.503029 | D16: gpm | E16: Accounts for flow equalization if holding tanks used
A17: Actual out-of-cycle backwash discharge flow rate | B17: res_outcycle_flow_actual | C17: =IF(add_backwash_freq=0,0,IF(AND(res_s1_opt=1,res_s2_opt<>3),res_outcycle_vol/res_outcycle_stagger_time,total_backwash/backwash_time)) -> 0 | D17: gpm | E17: Accounts for flow equalization if holding tanks used
A18: Design residuals discharge flow rate | B18: res_flow | C18: =IF(regen_redun>1,res_flow_actual,IF(AND(res_s1_opt=1,res_s2_opt<>3),res_cap_factor*res_vol/res_stagger_time,res_flow_actual)) -> 1341.503029 | D18: gpm | E18: Accounts for less than perfect staggering if holding tanks are used
A19: Design out-of-cycle residuals discharge flow rate | B19: res_outcycle_flow | C19: =IF(add_backwash_freq=0,0,IF(AND(res_s1_opt=1,res_s2_opt<>3),res_cap_factor*res_outcycle_vol/res_outcycle_stagger_time,res_outcycle_flow_actual)) -> 0 | D19: gpm | E19: Accounts for less than perfect staggering if holding tanks are used
A20: Annual residuals dischage | B20: res_flow_annual | C20: =IF(regen_redun>1,res_flow*365*24*60,res_vol*op_num_tanks*(365/regen_days))+IF(add_backwash_freq=0,0,res_outcycle_vol*op_num_tanks*(365/add_backwash_freq)) -> 682324643.8 | D20: gal
A21: Brine portion of annual residuals discharge | B21: brine_flow_annual | C21: =IF(regen_redun>1,(vol_brine/(regen_reuse+1)*regen_redun/regeneration_downtime)*365*24*60,vol_brine/(regen_reuse+1)*op_num_tanks*(365/regen_days)) -> 98807481.21 | D21: gal
A23: Evaporation Pond or Holding Tank Solids
A24: TSS in residuals (influent TSS removal contribution) | C24: =IF(regen_redun=1,(influent_TSS-effluent_TSS)*average_flow*1000000*regen_days/(res_vol*op_num_tanks),influent_TSS*average_flow_rate/res_flow) -> 30.11903525 | D24: ppm
A25: TSS in residuals (media attrition contribution) | C25: =resin_loss_vol_annual*media_density*453590/(res_flow_annual*3.78) -> 7.341646583 | D25: ppm
A26: TSS in residuals | B26: TSS_residuals | C26: =SUM(C24:C25) -> 37.46068184 | D26: ppm
A27: Evaporation pond TSS accumulation | C27: =IF(res_s2_opt=3,TSS_residuals*res_flow_annual*3.785/1000/453.59/dredging_freq,0) -> 0 | D27: lbs
A28: Evaporation pond TDS (brine) accumulation | C28: =IF(res_s2_opt=3,brine_conc*brine_flow_annual/dredging_freq,0) -> 0 | D28: lbs
A29: Contaminant in residuals | B29: cont_conc_res | C29: =IF(regen_redun=1,CaCO3_in*average_flow*1000000*regen_days/(res_vol*op_num_tanks),CaCO3_in*average_flow_rate/res_flow) -> 4015.871367 | D29: ppm
A30: Evaporation pond contaminant accumulation | C30: =IF(res_s2_opt=3,cont_conc_res*res_flow_annual*3.785/1000/453.59/dredging_freq,0) -> 0 | D30: lbs
A31: Total evaporation pond solids accumulation | B31: ep_solids | C31: =C30+C28+C27 -> 0 | D31: lbs | E31: Conservative estimate assumes all TSS removed in regeneration, no brine loss during regeneration, 100% influent contaminant removal, and 100% removal of contaminant during regeneration.
A32: Holding/septic tank annual TSS accumulation | C32: =IF(OR(res_holding<>"none",num_sept_tanks<>0),TSS_residuals*IF(coag_res=1,coag_TSSrem,htank_TSSrem)*res_flow_annual*3.785/1000/453.59,0) -> 0 | D32: lbs/year
A33: Holding tank annual coagulant accumulation | C33: =IF(AND(res_holding<>"none",coag_res=1),IF(coag_type<>1,coag_dose*coag_spf*8.34*res_flow_annual/10^6,0)+IF(coag_type<>2,polymer_dose*polymer_spf*8.34*res_flow_annual/10^6,0),0) -> 0 | D33: lbs/year
A34: Holding tank annual TSS accumulation | B34: ht_solids | C34: =SUM(C32:C33) -> 0 | D34: lbs/year
A35: Holding tank cleaning frequency | B35: ht_clean_freq | C35: =IF(res_holding="none",0,ROUNDUP((ht_solids/ht_solids_density*7.48)/(IF(res_holding="tanks",htanks*htank_vol,hbasins*hbasin_vol)*htank_clean_pct),0)) -> 0 | D35: times per year
A36: Septic tank cleaning frequency | B36: septic_disp_freq | C36: =IF(num_sept_tanks=0,0,(ht_solids/ht_solids_density*7.48)/(num_sept_tanks*sept_tank_vol*htank_clean_pct)) -> 0 | D36: times per year
A37: Residual solids quantity (total per event) | B37: res_solids | C37: =IF(res_s2_opt=3,ep_solids,IF(ht_solids=0,0,IF(res_s2_opt=4,ht_solids/septic_disp_freq,ht_solids/ht_clean_freq)))/2000 -> 0 | D37: tons
A38: Residual solids disposal frequency | B38: sol_disp_freq | C38: =IF(res_s2_opt=3,dredging_freq,IF(res_s2_opt=4,septic_disp_freq,IF(res_s1_opt=1,ht_clean_freq,0))) -> 0 | D38: times per year
A40: Spent Media
A41: Replacement/disposal frequency | B41: disp_freq | C41: =1/resin_life -> 0.1428571429 | D41: times per year
A42: Spent resin quantity (total per event) | B42: spent_media | C42: =(total_resin-resin_loss_vol_annual*media_density)/2000 -> 585.6901028 | D42: tons | E42: Reduced by one year's resin loss, assuming disposal takes place before adding loss replacement for the year
A43: Spent resin quantity (average per year) | B43: spent_media_yr | C43: =spent_media*disp_freq -> 83.67001469 | D43: tons
A45: Capital Items
A46: Holding tanks (for flow equalization)
A47: Maximum holding tank size | B47: max_htank_size | C47: =MAX(VLOOKUP(10^6,st_bwt_cost_cl,1)-1,VLOOKUP(10^6,fg_bwt_cost_cl,1)-1,VLOOKUP(10^6,hdpe_bwt_cost_cl,1)-1) -> 282094 | D47: gal | E47: The largest size for which costs are available.
A48: Number of holding tanks | B48: htanks | C48: =IF(coag_res=1,0,IF(OR(regen_redun>1,res_s1_opt<>1),0,ROUNDUP(regen_redun*res_cap_factor*res_vol/max_htank_size,0))) -> 0 | D48: units | E48: Use basins, instead of tanks, when cogulant is added
A49: Holding tank volume | B49: htank_vol | C49: =IF(htanks=0,0,res_cap_factor*MAX(regen_redun*res_vol,res_outcycle_vol)/htanks) -> 0 | D49: gal
A51: Holding basins (for flow equalization)
A52: Holding basin redundancy factor | B52: hbasin_redun | C52: =IF(coag_res=1,ROUNDUP(res_coag_settle_time/res_stagger_time,0),1) -> 1 | E52: To account for minumum coagulation time, when concrete basins are used, rather than tanks
A53: Number of holding basins | B53: hbasins | C53: =IF(OR(res_s1_opt=1,res_s2_opt=3),hbasins_default*hbasin_redun,0) -> 0 | D53: units | E53: If concrete basins are used, rather than tanks
A54: Total residuals storage volume in cubic feet | B54: total_hvol_ft | C54: =IF(hbasins=0,0,res_cap_factor*res_vol*hbasin_redun/7.48) -> 0 | D54: cubic feet | E54: If concrete basins are used, rather than tanks
A55: Residuals storage volume per basin in cubic feet | B55: hvol_ft | C55: =IF(hbasins=0,0,total_hvol_ft/hbasins) -> 0 | D55: cubic feet | E55: If concrete basins are used, rather than tanks
A56: Residuals basin operating depth | B56: hbasin_op_depth | C56: =IF(hbasins=0,0,ROUNDUP(hvol_ft^(1/3)*holding_ratio,0)) -> 0 | D56: ft | E56: If concrete basins are used, rather than tanks
A57: Residuals basin width | B57: hbasin_width | C57: =IF(hbasins=0,0,ROUNDUP((hvol_ft/hbasin_op_depth)^0.5,0)) -> 0 | D57: ft | E57: If concrete basins are used, rather than tanks
A58: Residuals basin length | B58: hbasin_length | C58: =hbasin_width -> 0 | D58: ft | E58: If concrete basins are used, rather than tanks
A59: Residuals basin depth including freeboard | B59: hbasin_depth | C59: =IF(hbasins=0,0,hbasin_op_depth+holding_freeboard) -> 0 | D59: ft | E59: If concrete basins are used, rather than tanks
A60: Residuals basin volume | B60: hbasin_vol | C60: =ROUND(hbasin_width*hbasin_length*hbasin_depth*7.48,0) -> 0 | D60: gal | E60: If concrete basins are used, rather than tanks
A61: Concrete volume | B61: hconc_vol | C61: =(2*(hbasin_width*hbasins+conc_thick*(hbasins+1))*hbasin_depth*conc_thick+(hbasins+1)*hbasin_length*hbasin_depth*conc_thick+(hbasin_length+2*conc_thick)*(hbasin_width*hbasins+conc_thick*(hbasins+1))*conc_thick)/27 -> 0.07407407407 | D61: cubic yards | E61: If concrete basins are used, rather than tanks
A62: Excavation volume | B62: hexcavation_vol | C62: =IF(hbasins=0,0,((hbasins*hbasin_width+(hbasins+1)*conc_thick+overexcavate)*(hbasin_length+2*conc_thick+overexcavate)*(hbasin_depth+conc_thick+overexcavate)+0.5*(3*(hbasin_depth+conc_thick+overexcavate)*(hbasin_depth+conc_thick+overexcavate)*(hbasin_length+2*conc_thick+overexcavate)))/27) -> 0 | D62: cubic yards | E62: If concrete basins are used, rather than tanks
A63: Backfill volume | B63: hbackfill_vol | C63: =IF(hbasins=0,0,hexcavation_vol-(hbasins*hbasin_width+(hbasins+1)*conc_thick)*(hbasin_length+2*conc_thick)*(hbasin_depth+conc_thick)/27) -> 0 | D63: cubic yards | E63: If concrete basins are used, rather than tanks
A64: Railing length | B64: hrailing | C64: =IF(hbasins=0,0,2*(hbasins*hbasin_width+2*conc_thick/2+(hbasins-1)*conc_thick)+2*(hbasin_length+2*conc_thick/2)) -> 0 | D64: lf | E64: If concrete basins are used, rather than tanks
A66: Residuals holding type selected | B66: res_holding | C66: =IF(AND(hbasins<>0,coag_res=1),"basins",IF(OUTPUT!L46=1,"basins",IF(OR(OUTPUT!L47=1,OUTPUT!L48=1,OUTPUT!L49=1),"tanks","none"))) -> none | D66: units | E66: Basins when coagulant is added; otherwise based on priority lookups on the output sheet
A68: Ferric Chloride Addition
A69: Gravimetric dry feeder rating | B69: grav_feed_rate | C69: =IF(AND(res_holding<>"none",coag_res=1,coag_type<>1),coag_dose*8.34*res_vol/10^6/regeneration_downtime/IF(res_holding="tanks",htanks,hbasins),0) -> 0 | D69: lbs/min
A70: Volumetric dry feeder rating | B70: vol_feed_rate | C70: =grav_feed_rate/coag_density -> 0 | D70: cfm
A71: Max holding tank mixer horsepower | B71: hmix_hp_max | C71: =VLOOKUP(10^6,imp_mix_cost_cl,1)-0.1 -> 20 | D71: hp | E71: The largest impeller mixer size available
A72: Mixers per tank | B72: hmix_per_tank | C72: =IF(AND(res_holding<>"none",coag_res=1,coag_type<>1),ROUNDUP(IF(res_holding="tanks",htank_vol,hbasin_vol)/1000*hmix_hp_per/hmix_hp_max,0),0) -> 0 | D72: units
A73: Number of mixers | B73: hmixers | C73: =IF(AND(res_holding<>"none",coag_res=1,coag_type<>1),IF(res_holding="tanks",htanks,hbasins)*hmix_per_tank,0) -> 0 | D73: units
A74: Mixer size for holding tanks (if coagulant is used) | B74: hmix_size | C74: =IF(AND(res_holding<>"none",coag_res=1,coag_type<>1),IF(res_holding="tanks",htank_vol,hbasin_vol)/1000*hmix_hp_per/hmix_per_tank,0) -> 0 | D74: hp
A75: Coagulant in storage | B75: coag_store | C75: =IF(AND(res_holding<>"none",coag_res=1,coag_type<>1),coag_dose*8.34*res_flow_annual/10^6/365*cstore_days,0) -> 0 | D75: lbs
A77: Polymer Addition
A78: Polymer needed per event | B78: polymer_day | C78: =IF(AND(res_holding<>"none",coag_res=1,coag_type<>2),polymer_dose*8.34*MAX(res_vol,res_outcycle_vol)/10^6/polymer_density,0) -> 0 | D78: gal
A79: Polymer storage in gallons | B79: polymer_storage | C79: =IF(AND(res_holding<>"none",coag_res=1,coag_type<>2),polymer_dose*8.34*res_flow_annual/10^6/polymer_density/365*cstore_days,0) -> 0 | D79: gal
A80: Polymer storage in pounds | B80: polymer_storage_lbs | C80: =polymer_storage*polymer_density -> 0 | D80: lbs
A81: Number of chemical storage tanks | B81: polymer_tanks | C81: =ROUNDUP(polymer_storage/max_chem_tank_size,0) -> 0 | D81: units
A82: Chemical storage tank size | B82: polymer_tank_vol | C82: =IF(polymer_tanks>0,polymer_storage/polymer_tanks,0) -> 0 | D82: gal
A83: Maximum chemical tank mixer horsepower | B83: cmix_hp_max | C83: =MAX(VLOOKUP(10^6,port_mix_cost_cl,1)-0.1,VLOOKUP(10^6,mount_mix_cost_cl,1)-0.1,VLOOKUP(10^6,imp_mix_cost_cl,1)-0.1) -> 20 | D83: hp
A84: Mixers per storage tank | B84: polymer_cmix_per_tank | C84: =IF(polymer_tanks<>0,ROUNDUP(polymer_tank_vol/1000*cmix_hp_per/cmix_hp_max,0),0) -> 0 | D84: units
A85: Number of storage tank mixers | B85: polymer_cmixers | C85: =IF(AND(res_holding<>"none",coag_res=1,coag_type<>2),polymer_tanks*polymer_cmix_per_tank,0) -> 0 | D85: units
A86: Mixer size for storage tanks | B86: polymer_cmix_size | C86: =IF(polymer_tanks<>0,polymer_tank_vol/1000*cmix_hp_per/polymer_cmix_per_tank,0) -> 0 | D86: hp
A87: Solution feed rate | B87: polymer_rate | C87: =IF(polymer_day=0,0,polymer_dose*8.34*MAX(res_vol/regeneration_downtime,res_outcycle_vol/backwash_time)/10^6/polymer_density) -> 0 | D87: gph
A88: Maximum chemical metering pump size | B88: max_cm_pump_size | C88: =MAX(VLOOKUP(10^6,ss_mmpump_cost_cl,1)-0.01,VLOOKUP(10^6,pvc_mmpump_cost_cl,1)-0.1) -> 360 | D88: gph | E88: The largest size for which costs are available.
A89: Number of chemical metering pumps | B89: cm_pumps_polymer | C89: =IF(polymer_day=0,0,ROUNDUP(polymer_rate/max_cm_pump_size,0)+NRD_cm_pump) -> 0 | D89: units
A90: Chemical metering pump rating | B90: cm_pump_rating_polymer | C90: =IF(polymer_day=0,0,polymer_rate*(1+pump_safety_factor)/(cm_pumps_polymer-NRD_cm_pump)) -> 0 | D90: gph
A92: Pumps
A93: Number of pumps | B93: res_pumps | C93: =IF(res_holding<>"none",ROUNDUP(MAX(res_flow,res_outcycle_flow)*(1+pump_safety_factor)/max_pump_size,0)+NRD_res_pump,0) -> 0 | D93: units
A94: Pump design rating | B94: res_pump_rating | C94: =IF(res_holding<>"none",MAX(res_flow,res_outcycle_flow)*(1+pump_safety_factor)/(res_pumps-NRD_res_pump),0) -> 0 | D94: gpm
A96: Solids transfer for holding tanks
A97: Transfer rate required | B97: res_transfer_rate | C97: =res_solids*2000/transfer_time -> 0 | D97: lbs/hr
A98: Transfer rate in gallons | B98: res_transfer_rate_gal | C98: =res_transfer_rate/(ht_solids_density/7.48*60) -> 0 | D98: gpm
A99: Number of slurry pump systems | B99: res_slurry_pumps | C99: =IF(res_transfer_method=1,1,0) -> 0 | D99: units
A100: Maximum eductor size | B100: max_eductor_size | C100: =VLOOKUP(10^6,eductor_size_table_cl,1) -> 53.5 | D100: gpm | E100: The largest size for which costs are available.
A101: Number of eductors | B101: res_eductors | C101: =IF(res_transfer_method<>2,0,ROUNDUP(res_transfer_rate_gal/max_eductor_size,0)) -> 0 | D101: units
A102: Effective transfer rate | B102: res_eff_transfer_rate | C102: =IF(res_eductors=0,0,res_transfer_rate_gal/res_eductors) -> 0 | D102: gpm
A103: Eductor size | B103: res_eductor_size | C103: =IF(res_transfer_method=2,VLOOKUP(res_eff_transfer_rate,eductor_size_table_cl,2),"NA") -> NA | D103: inches
A105: Solids drying pad
A106: Area required | B106: solids_pad_area | C106: =IF(res_s2_opt=4,0,ROUNDUP(res_solids*2000/ht_solids_density/solids_storage_height,-1)) -> 0 | D106: square ft
A107: Concrete | B107: solids_pad_concrete | C107: =ROUNDUP(solids_pad_area*IF(ss_cat2=1,pad_thick_small,pad_thick)/27,0) -> 0 | D107: cubic yds
A109: Evaporation Ponds
A110: Total open surface area required | B110: ep_total_sa | C110: =IF(res_s2_opt=3,(res_flow_annual/7.48)*ep_safety_factor/((pan_evap*evap_ratio-precip)*0.0328),0) -> 0 | D110: square feet
A111: Required depth for solids accumulation | B111: ep_solids_depth | C111: =IF(res_s2_opt=3,ep_solids/ep_solids_density/ep_total_sa,0) -> 0 | D111: feet
A112: Required depth for liquid accumulation | B112: ep_water_depth | C112: =IF(res_s2_opt=3,(res_flow_annual/7.48)*winter_days/365/ep_total_sa,0) -> 0 | D112: feet
A113: Total excavated depth | B113: ep_depth | C113: =IF(res_s2_opt=3,ep_solids_depth+ep_water_depth+ep_freeboard,0) -> 0 | D113: feet | E113: Additional freeboard provided above grade by dike
A114: Number of cells | B114: ep_cells | C114: =IF(res_s2_opt=3,IF(ROUNDUP(ep_total_sa/(max_ep_cell_area*43560),0)<min_ep_cells,min_ep_cells,ROUNDUP(ep_total_sa/(max_ep_cell_area*43560),0)),0) -> 0 | D114: cells
A115: Cell side length | B115: ep_cell_side | C115: =IF(res_s2_opt=3,SQRT(ep_total_sa/ep_cells),0) -> 0 | D115: feet
A116: Total excavation volume | B116: ep_excavation_vol | C116: =IF(res_s2_opt=3,ROUNDUP(((ep_cell_side+ep_overexcavate)^2*(ep_depth+ep_overexcavate)+0.5*(3*(ep_depth+ep_overexcavate)*(ep_cell_side+ep_overexcavate)*(ep_depth+ep_overexcavate)))*ep_cells/27,0),0) -> 0 | D116: cubic yards
A117: Total backfill volume | B117: ep_backfill_vol | C117: =IF(res_s2_opt=3,ROUNDUP(ep_excavation_vol-(ep_cell_side^2*ep_depth*ep_cells)/27,0),0) -> 0 | D117: cubic yards
A118: Dike volume | B118: dike_volume | C118: =IF(res_s2_opt=3,ep_cells*ep_cell_side*4*dike_xsection/27,0) -> 0 | D118: cubic yards
A119: Liner area | B119: liner_area | C119: =(ep_cell_side^2+ep_cell_side*(ep_depth+2)*4)*ep_cells -> 0 | D119: square feet | E119: Assumes liner extends 2 feet up dike side slope
A121: Piping
A122: Pipe length | B122: res_pipe_length | C122: =facil_length+add_res_pipe_length -> 200 | D122: ft
A123: Pipe diameter | B123: res_pipe_diam | C123: =MAX(min_res_pipe_size, VLOOKUP(MAX(res_flow,res_outcycle_flow),pipe_size_table_cl,2)) -> 8 | D123: inches
A124: Buried pipe length | B124: buried_res_pipe_length | C124: =IF(res_s2_opt=5,0,add_res_pipe_length) -> 40 | D124: ft
A125: Trench depth to top of pipe | B125: res_trn_depth | C125: =MAX(frost,min_trench_depth) -> 38 | D125: in. diam
A126: Thrust force | B126: res_thrust_force | C126: =VLOOKUP(res_pipe_diam,thrust_block_table_cl,2)*2.2 -> 10979.63675 | D126: inches
A127: Bearing Area (L x H) | B127: res_bearing_area | C127: =1.5*res_thrust_force/(soil_dens*(res_trn_depth/12+res_pipe_diam/12)*Coeff_Kp*Reduction) -> 31.61497014 | D127: lbs
A128: L | C128: =res_bearing_area/C129 -> 7.951725617 | D128: square ft
A129: H | C129: =(res_bearing_area/2)^0.5 -> 3.975862808 | D129: ft
A130: F | C130: =MAX(0.5,res_pipe_diam/12) -> 0.6666666667 | D130: ft
A131: T | C131: =C128/2 -> 3.975862808 | D131: ft
A132: Thrust block volume | B132: res_block_vol | C132: =IF(OR(buried_res_pipe_length=0,res_pipe_diam=0),0,(C131+(C124/12)/2)*(C128+C130)/2*C129/27) -> 3.580450918 | D132: cy
A133: Trench cross-section area | B133: res_trench_area | C133: =IF(res_pipe_diam=0,0,(res_pipe_diam/12+2)*(bedding_depth/12+res_pipe_diam/12+res_trn_depth/12)+(bedding_depth/12+res_pipe_diam/12+res_trn_depth/12)^2*TAN(trench_angle)) -> 30.33333333 | D133: cy
A134: Trench volume to discharge point | C134: =res_trench_area*buried_res_pipe_length/27 -> 44.9382716 | D134: square ft
A135: Trench volume total | B135: res_trench_vol | C135: =IF(OR(buried_res_pipe_length=0,res_pipe_diam=0),0,C134+res_block_vol) -> 48.51872252 | D135: cy
A136: Bedding cross sectional surface area | C136: =IF(res_pipe_diam=0,0,(res_pipe_diam/12+2)*(bedding_depth/12+res_pipe_diam/12*bedding_pct)+(bedding_depth/12+res_pipe_diam/12*bedding_pct)^2*TAN(trench_angle)-((res_pipe_diam/12/2)^2*ACOS((res_pipe_diam/12/2-bedding_pct*res_pipe_diam/12)/(res_pipe_diam/12/2))-(res_pipe_diam/12/2-res_pipe_diam/12*bedding_pct)*((2*res_pipe_diam/12/2*res_pipe_diam/12*bedding_pct-(res_pipe_diam/12*bedding_pct)^2)^0.5))) -> 2.153979461 | D136: square ft
A137: Bedding volume | B137: res_pipe_bedding_vol | C137: =C136*buried_res_pipe_length/2/27 -> 1.595540342 | D137: cy
A139: Valves and instrumentation
A140: Residuals valve size | B140: res_valve_size | C140: =res_pipe_diam -> 8 | D140: inches
A141: Number of MOVs for residuals line | B141: total_res_MOVs | C141: =VLOOKUP("res_MOV_pump",valve_table,manual+1,FALSE)*res_pumps+VLOOKUP("res_MOV_tank",valve_table,manual+1,FALSE)*IF(res_holding="tanks",htanks,IF(res_holding="basins",hbasins,0))+VLOOKUP("res_MOV_ep",valve_table,manual+1,FALSE)*ep_cells -> 0 | D141: valves
A142: Number of manual valves for residuals line | B142: total_res_man | C142: =VLOOKUP("res_man_pump",valve_table,manual+1,FALSE)*res_pumps+VLOOKUP("res_man_tank",valve_table,manual+1,FALSE)*IF(res_holding="tanks",htanks,IF(res_holding="basins",hbasins,0))+VLOOKUP("res_man_ep",valve_table,manual+1,FALSE)*ep_cells -> 0 | D142: valves
A143: Number of check valves for residuals line | B143: tot_res_chv | C143: =res_chv_pump*res_pumps+IF(res_pumps=0,res_chv_no_pump,0) -> 1 | D143: valves
A144: Total high/low alarms | B144: tot_res_alarm | C144: =IF(res_holding="tanks",htanks,IF(res_holding="basins",hbasins,0))*alarm_res -> 0 | D144: units
A145: Residuals flow meter size | B145: res_meter_size | C145: =res_pipe_diam -> 8 | D145: inches
A147: Septic System
A148: Maximum septic tank volume | B148: max_sept_tank_vol | C148: =VLOOKUP(10^6,septic_tank_cost_cl,1)-1 -> 100000 | D148: gal | E148: The largest size for which costs are available
A149: Number of septic tanks | B149: num_sept_tanks | C149: =IF(res_s2_opt<>4,0,ROUNDUP(res_vol*sept_tank_sf/max_sept_tank_vol,0)) -> 0 | D149: units
A150: Septic tank volume | B150: sept_tank_vol | C150: =IF(num_sept_tanks=0,0,MAX(res_vol*sept_tank_sf,min_sept_tank_vol)/num_sept_tanks) -> 0 | D150: gal
A151: Septic discharge design flow | B151: sept_design_flow | C151: =IF(num_sept_tanks=0,0,IF(regen_redun>1,res_flow_actual*60*24,res_vol*sept_tank_sf/MIN(min_sept_disch_time,res_stagger_time/(24*60)))) -> 0 | D151: gpd
A152: Inflitration area required | B152: sept_infil_area | C152: =sept_design_flow/sept_LTAR -> 0 | D152: sq ft
A153: Trench bottom area required | B153: sept_trench_bot_area | C153: =sept_infil_area*sept_trench_w/(sept_trench_w+2*sept_gravel_d_below) -> 0 | D153: sq ft | E153: Typical state/local regulations allow trench sides below pipe to be counted as part of infiltration area
A154: Number of trenches required | B154: sept_trenches | C154: =IF(num_sept_tanks=0,0,MAX(sept_min_trenches,ROUNDUP(sept_trench_bot_area/(sept_trench_w*sept_max_trench_l),0))) -> 0
A155: Trench length | B155: sept_trench_l | C155: =IF(num_sept_tanks=0,0,sept_trench_bot_area/(sept_trenches*sept_trench_w)) -> 0 | D155: feet
A156: Drain field gravel required | B156: sept_gravel_vol | C156: =sept_trench_l*sept_trenches*sept_trench_w*sept_gravel_d/27 -> 0 | D156: cu yd
A157: Trench excavation required | B157: sept_trench_excav_vol | C157: =sept_trench_l*sept_trenches*sept_trench_d*sept_trench_w/27 -> 0 | D157: cu yd
A158: Septic tank side length | B158: sept_tank_side | C158: =(sept_tank_vol/7.48)^(1/3) -> 0 | D158: feet | E158: Assumes cube shape for simplicity
A159: Tank excavation required | B159: sept_tank_exav_vol | C159: =num_sept_tanks*(sept_tank_vol/7.48+(sept_tank_side+sept_overexcav*2)^2*sept_overexcav+(sept_tank_side+sept_overexcav*2)*sept_tank_side*2*sept_overexcav+sept_tank_side^2*2*sept_overexcav)/27 -> 0 | D159: cu yd
A160: Number of distribution boxes | B160: sept_dist_boxes | C160: =ROUNDUP(sept_trenches/sept_dist_connections,0) -> 0
A161: Septic distribution pipe length | B161: sept_pipe_length | C161: =sept_trenches*sept_trench_l -> 0 | D161: feet | E161: Assumes piping to septic tank and laterals between trenches are accounted for by existing residuals piping cost
A162: Drain field land area required | B162: sept_fp | C162: =IF(num_sept_tanks=0,0,((sept_trench_l+sept_buffer*2)*(sept_trenches*sept_trench_w+(sept_trenches-1)*sept_trench_dist+sept_buffer*2))+sept_tank_side^2) -> 0 | D162: sq ft
A164: O&M Items
A165: Pumps
A166: Pump operating horsepower | C166: =IF(res_pumps=0,0,MAX(res_flow_actual,res_outcycle_flow_actual)*res_pump_psi/(res_pumps-NRD_res_pump)/booster_pump_efficiency/14.7*33.9*8.34/550/60) -> 0 | D166: hp
A167: Energy per pump | C167: =C166*0.7457/1000*24*365 -> 0 | D167: MWh/yr
A168: Energy for all active pumps | B168: res_pump_energy | C168: =C167*(res_pumps-NRD_res_pump) -> 0 | D168: MWh/yr
A169: Residuals pump material cost | B169: res_pump_mtl | C169: =OUTPUT!J155*booster_pump_maintenance -> 0 | D169: /yr
A171: Coagulant Use
A172: Annual ferric chloride use | B172: coag_yr | C172: =IF(AND(res_holding<>"none",coag_res=1,coag_type<>1),coag_dose*8.34*res_flow_annual/10^6,0) -> 0 | D172: lbs
A173: Annual polymer use | B173: polymer_yr | C173: =IF(AND(res_holding<>"none",coag_res=1, coag_type<>2),polymer_dose*8.34*res_flow_annual/10^6,0) -> 0 | D173: lbs
A175: Ferric Chloride Purchasing
A176: Quantity required for large quantity purchase | C176: =VLOOKUP("Ferric Chloride - Large Qty",chem_break_table_cl,2,FALSE) -> 31500 | D176: lbs | E176: #N/A indicates that price data do not depend on volume purchased.
A177: Quantity required for mid quantity purchase | C177: =VLOOKUP("Ferric Chloride - Mid Qty",chem_break_table_cl,2,FALSE) -> 2772 | D177: lbs | E177: #N/A indicates that price data do not depend on volume purchased.
A178: Quantity required for small quantity purchase | C178: =VLOOKUP("Ferric Chloride - Small Qty",chem_break_table_cl,2,FALSE) -> 0 | D178: lbs | E178: #N/A indicates that price data do not depend on volume purchased.
A179: Purchase Type | B179: coag_purchase | C179: =IF(AND(ISNA(C176),ISNA(C177),ISNA(C178)),"",IF(coag_store>=C176," - Large Qty",IF(coag_store>=C177," - Mid Qty"," - Small Qty"))) -> - Small Qty | E179: Returns descriptive term based on volume of each purchase for use in determining pricing. Blank indicates that price data do not depend on volume purchased.
A181: Polymer Purchasing
A182: Quantity required for large quantity purchase | C182: =VLOOKUP("Polymers - Large Qty",chem_break_table_cl,2,FALSE) -> 450 | D182: lbs | E182: #N/A indicates that price data do not depend on volume purchased.
A183: Quantity required for mid quantity purchase | C183: =VLOOKUP("Polymers - Mid Qty",chem_break_table_cl,2,FALSE) -> 450 | D183: lbs | E183: #N/A indicates that price data do not depend on volume purchased.
A184: Quantity required for small quantity purchase | C184: =VLOOKUP("Polymers - Small Qty",chem_break_table_cl,2,FALSE) -> 0 | D184: lbs | E184: #N/A indicates that price data do not depend on volume purchased.
A185: Purchase Type | B185: polymer_purchase | C185: =IF(AND(ISNA(C182),ISNA(C183),ISNA(C184)),"",IF(polymer_storage_lbs>=C182," - Large Qty",IF(polymer_storage_lbs>=C183," - Mid Qty"," - Small Qty"))) -> - Small Qty | E185: Returns descriptive term based on volume of each purchase for use in determining pricing. Blank indicates that price data do not depend on volume purchased.
A187: POTW Discharge Fees
A188: TSS in discharged residuals | B188: TSS_residuals_dis | C188: =IF(res_holding<>"none",TSS_residuals*(1-IF(coag_res=1,coag_TSSrem,htank_TSSrem)),TSS_residuals) -> 37.46068184 | D188: ppm
A189: Total TSS in excess of POTW limit (if applicable) | B189: ex_TSS_total | C189: =IF((TSS_residuals_dis-POTW_TSS_limit)*res_flow_annual*3.785/1000/453.59>0,(TSS_residuals_dis-POTW_TSS_limit)*res_flow_annual*3.785/1000/453.59,0) -> 0 | D189: lbs/year
A190: Annual POTW base fee | C190: =IF(POTW_rate_type=1,POTW_base_cost_avg_cl,IF(POTW_base_fee=1,POTW_base_cost_typ_cl,0))*12 -> 184.0109833 | D190: $/year
A191: Annual POTW volume fee | C191: =IF(POTW_rate_type=1,POTW_vol_cost_avg_cl,IF(POTW_volume_fee=1,POTW_vol_cost_typ_cl,0))*res_flow_annual/1000 -> 2952120.607 | D191: $/year
A192: Annual POTW TSS fee | C192: =IF(POTW_rate_type=1,POTW_TSS_cost_avg_cl,IF(POTW_TSS_fee=1,POTW_TSS_cost_typ_cl,0))*ex_TSS_total -> 0 | D192: $/year
A193: Total annual POTW discharge fee | B193: POTW_fee | C193: =SUM(C190:C192) -> 2952304.618 | D193: $/year
A195: Liquid Hazardous Waste Disposal
A196: Disposal | C196: =IF(res_s2_opt=5,lhaz_disposal_cost_cl*res_flow_annual,0) -> 0 | D196: $/year
A197: Disposal frequency | C197: =IF(res_s2_opt=5,365*24*60/res_stagger_time,0) -> 0 | D197: times per year
A198: Out of cycle backwash disposal frequency | C198: =IF(res_outcycle_stagger_time=0,0,365*24*60/res_outcycle_stagger_time) -> 0 | D198: times per year
A199: Shipments per year | C199: =IF(res_vol>max_lhaz_ship,ROUNDUP(res_vol/max_lhaz_ship,0)*C197,C197)+IF(res_outcycle_vol>max_lhaz_ship,ROUNDUP(res_outcycle_vol/max_lhaz_ship,0)*C198,C198) -> 0
A200: Transportation | C200: =IF(res_s2_opt=5,MAX(C160*lhaz_trans_min_cost_cl,res_flow_annual*haz_miles*lhaz_transportation_cost_cl),0) -> 0 | D200: $/year
A201: Total annual liquid hazardous waste disposal fee | B201: lhaz_fee | C201: =C200+C196 -> 0 | D201: $/year
A203: Spent Media Disposal Fees
A204: Disposal | C204: =spent_media*disp_freq*CHOOSE(media_haz,nonhaz_disposal_cost_cl,haz_disposal_cost_cl,rad_disposal_cost_cl,hazrad_disposal_cost_cl) -> 5706.580897 | D204: $/year
A205: Shipments per year | B205: disposal_shipments | C205: =CHOOSE(media_haz,disp_freq,IF(spent_media>max_haz_ship,ROUNDUP(spent_media/max_haz_ship,0)*disp_freq,disp_freq),IF(spent_media>max_rad_ship,ROUNDUP(spent_media/max_rad_ship,0)*disp_freq,disp_freq),IF(spent_media>max_hazrad_ship,ROUNDUP(spent_media/max_hazrad_ship,0)*disp_freq,disp_freq)) -> 0.1428571429
A206: Transportation unit cost | C206: =CHOOSE(media_haz,nonhaz_transportation_cost_cl,haz_transportation_cost_cl,rad_transportation_cost_cl,hazrad_transportation_cost_cl) -> 0.5149151715 | D206: $/ton-mile
A207: Transportation minimum charge per shipment | C207: =CHOOSE(media_haz,0,haz_trans_min_cost_cl,rad_trans_min_cost_cl,hazrad_trans_min_cost_cl) -> 0 | D207: $/shipment
A208: Transportation mileage | B208: disposal_miles | C208: =CHOOSE(media_haz,non_haz_miles,haz_miles,rad_miles,hazrad_miles) -> 10 | D208: miles
A209: Transportation | C209: =MAX(C207*C205,C205*C206*C208*spent_media) -> 430.8295996 | D209: $/year
A210: Total annual spent media diposal fee | B210: disposal_fee | C210: =C209+C204+CHOOSE(media_haz,0,0,rad_annual_fee_cl,hazrad_annual_fee_cl) -> 6137.410497 | D210: $/year
A212: Evaporation Pond/Holding Tank Solids Disposal Fees
A213: Disposal | C213: =res_solids*sol_disp_freq*CHOOSE(solids_haz,nonhaz_disposal_cost_cl,haz_disposal_cost_cl,rad_disposal_cost_cl,hazrad_disposal_cost_cl) -> 0 | D213: $/year
A214: Shipments per year | B214: sol_disposal_shipments | C214: =CHOOSE(solids_haz,sol_disp_freq,IF(res_solids>max_haz_ship,ROUNDUP(res_solids/max_haz_ship,0)*sol_disp_freq,sol_disp_freq),IF(res_solids>max_rad_ship,ROUNDUP(res_solids/max_rad_ship,0)*sol_disp_freq,sol_disp_freq),IF(res_solids>max_hazrad_ship,ROUNDUP(res_solids/max_hazrad_ship,0)*sol_disp_freq,sol_disp_freq)) -> 0
A215: Transportation unit cost | C215: =CHOOSE(solids_haz,nonhaz_transportation_cost_cl,haz_transportation_cost_cl,rad_transportation_cost_cl,hazrad_transportation_cost_cl) -> 0.5149151715 | D215: $/ton-mile
A216: Transportation minimum charge per shipment | C216: =CHOOSE(solids_haz,0,haz_trans_min_cost_cl,rad_trans_min_cost_cl,hazrad_trans_min_cost_cl) -> 0 | D216: $/shipment
A217: Transportation mileage | B217: sol_disposal_miles | C217: =CHOOSE(solids_haz,non_haz_miles,haz_miles,rad_miles,hazrad_miles) -> 10 | D217: miles
A218: Transportation | C218: =MAX(C216*C214,C214*C215*C217*res_solids) -> 0 | D218: $/year
A219: Total annual pond/tank solids diposal fee | B219: sol_disposal_fee | C219: =IF(AND(solids_haz=1,solids_method=2),0,C218+C213+CHOOSE(solids_haz,0,0,rad_annual_fee_cl,hazrad_annual_fee_cl)) -> 0 | D219: $/year
A221: Septic Tank Solids Disposal Fees
A222: Total settled solids diposal fee | B222: septic_disposal_fee | C222: =num_sept_tanks*sept_tank_vol*septic_disp_freq*septic_disposal_cost_cl -> 0 | D222: $/year

Sheet O&M
A1: Operation and Maintenance Calculations
A3: Calculation | B3: Range Name | C3: Value | D3: Units | E3: Guidance
A4: Materials
A5: Booster pump materials | B5: pump_mtl | C5: =OUTPUT!J153*booster_pump_maintenance -> 5660.801573 | D5: /yr
A6: Backwash pump materials | B6: back_pump_mtl | C6: =IF(regen_yr>=52,IF(ISNUMBER(OUTPUT!J154),booster_pump_maintenance*OUTPUT!J154,0),0) -> 667.6633119 | D6: /yr
A8: Chemicals and Resin
A9: Salt needed per year | B9: salt_year | C9: =365*salt_store/cstore_days -> 88926733.09 | D9: lbs
A10: Resin loss replacement | B10: resin_loss_vol_annual | C10: =media_volume*op_num_tanks*resin_loss_annual -> 834.916138 | D10: cf
A11: Complete bed replacement (averaged over resin life) | B11: resin_yr | C11: =(total_resin/media_density-resin_loss_vol_annual)/resin_life -> 3346.800587 | D11: cf | E11: Reduced by one year's attrition loss to avoid double counting (no attrition replacement needed in the year you completely replace the bed)
A13: Labor
A14: General Labor
A15: Number of process instruments for operation | B15: tot_inst | C15: =tot_fm_in+tot_fm_proc+tot_level_switch+tot_turb_meters+tot_head_sens+pH_controls+tot_temp_meters+ORP_sensor+tot_cond_meters -> 58 | E15: Instruments requiring daily observation
A16: Total number of instruments for maintenance | B16: tot_inst_maint | C16: =tot_fm_in+tot_fm_proc+tot_level_switch+tot_turb_meters+tot_head_sens+pH_controls+tot_temp_meters+ORP_sensor+tot_cond_meters+tot_fm_back+tot_fm_res -> 60 | E16: All instruments for preventative maintenance
A17: Number of process pumps for operation | B17: tot_pumps | C17: =booster_pumps -> 7 | E17: Pumps requiring daily observation/adjustment
A18: Total number of pumps for maintenance | B18: tot_pumps_maint | C18: =booster_pumps+res_pumps+IF(regen_yr>=52,backwash_pumps) -> 9 | E18: Large, frequently operated pumps require preventative maintenance
A19: Number of process valves | B19: tot_valves | C19: =tot_proc_MOVs+tot_proc_man+tot_bp_MOVs+tot_bp_man -> 66 | E19: Main process valves require frequent operation and preventative maintenance
A20: Number of chemical supplies | B20: tot_chem | C20: =brine_tanks+num_salt_box+polymer_tanks -> 3
A21: Regenerations per year | B21: regen_yr | C21: =365/regen_days*num_treat_lines -> 4153.881369
A22: Additional out-of-cycle backwashes per year | B22: add_backwash_yr | C22: =IF(add_backwash_freq<>0,365/add_backwash_freq*final_num_tanks,0) -> 0
A23: Quantity of resin handled per year | B23: media_changes_cf | C23: =spent_media_yr*2000/media_density+resin_loss_vol_annual+resin_yr -> 7528.517313 | D23: cf | E23: Incorporates both removal and refill
A25: Record system operating parameters (includes routine sampling) | C25: =IF(manual=1,tot_inst*uloe_inst*365/60,uloe_inst_auto*365/60) -> 1764.166667 | D25: hr/yr
A26: Preventative maintenance and calibration of instruments | C26: =tot_inst_maint*uloe_inst_maint*12/60 -> 120 | D26: hr/yr
A27: Verify/adjust pump operating parameters | C27: =IF(OR(manual=1,manual=2),tot_pumps*uloe_pump*365/60,0) -> 212.9166667 | D27: hr/yr
A28: Preventative maintenance of pumps | C28: =tot_pumps_maint*uloe_pump_maint -> 272.25 | D28: hr/yr
A29: Verify/adjust valve positions | C29: =IF(OR(manual=1,manual=2),tot_valves*uloe_valve*52/60,0) -> 286 | D29: hr/yr
A30: Preventative maintenance and inspection of valves | C30: =tot_valves*uloe_valve_maint/60 -> 5.5 | D30: hr/yr
A31: Visual inspection of facility | C31: =total_fp/100*uloe_fp*365/60 -> 1438.708333 | D31: hr/yr
A32: Maintain/inspect chemical supply | C32: =tot_chem*uloe_chem_maint*12/60 -> 36 | D32: hr/yr
A33: General Operator Labor | B33: General_Oper_Labor | C33: =SUM(C25:C32) -> 4135.541667 | D33: hr/yr
A35: Technology-specific Labor
A36: Managing regeneration | C36: =IF(OR(manual=1,manual=2),regen_yr*regeneration_downtime/60+add_backwash_yr*backwash_time/60,(regen_yr+add_backwash_yr)*uloe_autoregen/60) -> 8477.11645 | D36: hr/yr
A37: Managing resin changeouts | C37: =media_changes_cf*uloe_throwaway -> 111.5335898 | D37: hr/yr
A38: Managing residual solids | C38: =IF(OR(res_s2_opt=3,res_transfer_method=3),res_solids*2000/ht_solids_density*sol_disp_freq*uloe_throwaway,sol_disp_freq*transfer_time) -> 0 | D38: hr/yr
A40: Annual Operator LOE | B40: Operator_LOE | C40: =General_Oper_Labor+SUM(C36:C38) -> 12724.19171 | D40: hr/yr
A41: Annual Manager LOE | B41: Manager_LOE | C41: =Operator_LOE*Manager_percent -> 1272.419171 | D41: hr/yr | E41: Based on general operator labor and percentages in critical design assumptions
A42: Annual Administrative LOE | B42: Clerical_LOE | C42: =Operator_LOE*Clerical_percent -> 1272.419171 | D42: hr/yr | E42: Based on general operator labor and percentages in critical design assumptions
A44: Building Maintenance
A45: Cost for all buildings, excluding heating and cooling | C45: =building_matl_rate_cl*total_fp -> 133466.1847 | D45: /yr | E45: Labor and materials; includes routine in-house maintenance and major repairs
A46: Cost to maintain heating system, building 1 | C46: =build1_need_heat*heating_matl_rate_cl*build1_fp -> 1576.247367 | D46: /yr
A47: Cost to maintain cooling system, building 1 | C47: =build1_need_cool*cooling_matl_rate_cl*build1_fp -> 873.6892281 | D47: /yr
A48: Cost to maintain heating system, building 2 | C48: =build2_need_heat*heating_matl_rate_cl*build2_fp -> 1484.36431 | D48: /yr
A49: Cost to maintain cooling system, building 2 | C49: =build2_need_cool*cooling_matl_rate_cl*build2_fp -> 822.7598889 | D49: /yr
A50: Annual maintenance for all buildings | B50: bldg_maint_cost | C50: =SUM(C45:C49) -> 138223.2455 | E50: Includes labor and materials
A52: Energy
A53: Booster Pumps
A54: Booster pump operating horsepower | B54: pump_hp | C54: =IF(booster_pumps=0,0,(average_flow_rate/IF(bp_pct>0,bp_pct,1))*booster_pump_head/booster_pumps/booster_pump_efficiency/14.7*33.9*8.34/550/60) -> 72.34369349 | D54: hp
A55: Energy per booster pump | C55: =pump_hp*0.7457/1000*24*365 -> 472.573024 | D55: MWh/yr
A56: Energy for all active booster pumps | B56: pump_energy | C56: =C55*booster_pumps -> 3308.011168 | D56: MWh/yr
A58: Backwash Pumps
A59: Backwash pump operating horsepower (all pumps) | B59: back_pump_hp | C59: =water_flush*backwash_pump_head/booster_pump_efficiency/14.7*33.9*8.34/550/60 -> 22.27538182 | D59: hp
A60: Backwash pumping time | B60: back_hrs_yr | C60: =backwash_yr*backwash_time/60 -> 1038.470342 | D60: hours/yr
A61: Energy for all active backwash pumps | B61: back_pump_energy | C61: =back_pump_hp*0.7457/1000*back_hrs_yr -> 17.24977355 | D61: MWh/yr
A63: Building Lighting
A64: Lighting power per sf, building 1 | B64: lighting_energy_1 | C64: =IF(OR(build1_fp<500,component_level=""),lighting_power_low,CHOOSE(component_level,lighting_power_mid,lighting_power_high))*24*365/1000 -> 8.76 | D64: kWh/sf/yr
A65: Lighting power per sf, building 2 | B65: lighting_energy_2 | C65: =IF(OR(build2_fp<500,component_level=""),lighting_power_low,CHOOSE(component_level,lighting_power_mid,lighting_power_high))*24*365/1000 -> 8.76 | D65: kWh/sf/yr
A66: Lighting | B66: lighting | C66: =MIN(1,Operator_LOE/(24*365))*(build1_fp*lighting_energy_1+build2_fp*lighting_energy_2)/1000 -> 207.174 | D66: MWh/yr
A68: HVAC
A69: Heating energy usage for:
A70: Electric resistance | B70: heating | C70: =IF(build1_heat=A70,VLOOKUP(A70,build1_heat_options, 7,FALSE),0)+IF(build2_heat=A70,VLOOKUP(A70,build2_heat_options, 7,FALSE),0) -> 0 | D70: MWh/yr
A71: Natural gas non-condensing furnace | B71: heating_gas_non | C71: 0 | D71: therms/yr
A72: Natural gas condensing furnace | B72: heating_gas | C72: 32018.03111 | D72: therms/yr
A73: Standard efficiency oil furnace | B73: heating_diesel_non | C73: 0 | D73: gal/yr
A74: Mid-efficiency oil furnace | B74: heating_diesel | C74: 0 | D74: gal/yr
A75: Heat pump | B75: heating_hp | C75: 0 | D75: MWh/yr
A77: Cooling energy usage for:
A78: Air conditioner | B78: cooling | C78: =IF(build1_cool=A78,VLOOKUP(A78,build1_cool_options, 7,FALSE),0)+IF(build2_cool=A78,VLOOKUP(A78,build2_cool_options, 7,FALSE),0) -> 343.8858782 | D78: MWh/yr
A79: Heat pump | B79: cooling_hp | C79: =IF(build1_cool=A79,VLOOKUP(A79,build1_cool_options, 7,FALSE),0)+IF(build2_cool=A79,VLOOKUP(A79,build2_cool_options, 7,FALSE),0) -> 0 | D79: MWh/yr

Sheet HVAC
A1: Building Heating, Ventilating, and Air Conditioning Calculations
A3: Calculation | B3: Range Name | C3: Value | D3: Units | E3: Guidance
A4: General information | E4: ss_cat2 is used to select ventilation requirements and building type
A5: System size | B5: ss_cat2 | C5: =IF(design_flow<1,1,IF(design_flow<10,2,3)) -> 3 | D5: 1 indicates small system, 2 indicates medium, 3 indicates large
A6: Building height | B6: Building_height | C6: =IF(tank_geom=1,comm_height_length,comm_diam)+Top_bottom_Vessel_space -> 18.5 | D6: ft
A7: Buiding 1 length and width | B7: build1_side | C7: =build1_fp^0.5 -> 110.3630373 | D7: ft
A8: Building 2 length and width | B8: build2_side | C8: =build2_fp^0.5 -> 107.0980859 | D8: ft
A10: Ventilation
A11: Building 1 weighted average air changes | B11: air_changes_build1 | C11: =IF(build2_fp=0,(Air_changes_contactor*(vessel_fp+back_tank_fp+htank_fp+hbasin_fp)+Air_changes_pump*pump_fp+Air_changes_chem_storage*(brine_store_fp+brine_fp+polymer_fp)+Air_changes_office*office_fp)/build1_fp,Air_changes_contactor) -> 1 | D11: air changes/hr
A12: Building 2 weighted average air changes | B12: air_changes_build2 | C12: =IF(build2_fp=0,0,(Air_changes_contactor*(back_tank_fp+htank_fp+hbasin_fp)+Air_changes_pump*pump_fp+Air_changes_chem_storage*(brine_store_fp+brine_fp+polymer_fp)+Air_changes_office*office_fp)/build2_fp) -> 3.668526591 | D12: air changes/hr
A13: Building 1 ventilation | C13: =CHOOSE(ss_cat2,fan_days_build1_small,fan_days_build1_medium,fan_days_build1_large)*24*0.746*Fan_pressure_drop*build1_fp*Building_height*air_changes_build1/33000 -> 5654.144236 | D13: kWh/yr
A14: Building 2 ventilation | C14: =CHOOSE(ss_cat2,fan_days_build2_small,fan_days_build2_medium,fan_days_build2_large)*24*0.746*Fan_pressure_drop*build2_fp*Building_height*air_changes_build2/33000 -> 19533.2579 | D14: kWh/yr
A15: Total ventilation | B15: ventilation | C15: =SUM(C13:C14)/1000 -> 25.18740213 | D15: MWh/yr
A17: Building 1 air exchange rate | B17: build1_cfm | C17: =build1_fp*Building_height*air_changes_build1/60 -> 3755.5 | D17: cfm
A18: Building 2 air exchange rate | B18: build2_cfm | C18: =build2_fp*Building_height*air_changes_build2/60 -> 12974.05 | D18: cfm
A20: Heating and Cooling
A21: Include heating for building 1 | B21: build1_need_heat | C21: =VLOOKUP(IF(component_level_I="","low cost",component_level_I),IF(build1_fp<500,heating_table_shed,heating_table),ss_cat2+2,FALSE) -> 1 | D21: 1 for yes, 0 for no | E21: Based on system size, building floorplan, and component level input.
A22: Include cooling for building 1 | B22: build1_need_cool | C22: =VLOOKUP(IF(component_level_I="","low cost",component_level_I),IF(build1_fp<500,cooling_table_shed,cooling_table),ss_cat2+2,FALSE) -> 1 | D22: 1 for yes, 0 for no
A23: Include heating for building 2 | B23: build2_need_heat | C23: =IF(build2_fp=0,0,VLOOKUP(IF(component_level_I="","low cost",component_level_I),IF(build2_fp<500,heating_table_shed,heating_table),ss_cat2+2,FALSE)) -> 1 | D23: 1 for yes, 0 for no
A24: Include cooling for building 2 | B24: build2_need_cool | C24: =IF(build2_fp=0,0,VLOOKUP(IF(component_level_I="","low cost",component_level_I),IF(build2_fp<500,cooling_table_shed,cooling_table),ss_cat2+2,FALSE)) -> 1 | D24: 1 for yes, 0 for no
A26: Heating Requirements
A27: Building 1 side conductance heat loss | C27: =4*build1_side*Building_height*heat_DD*24/R_wall -> 74225492.7 | D27: BTU/yr
A28: Buiding 1 ceiling conductance heat loss | C28: =build1_fp*heat_DD*24/R_ceiling -> 37870825.26 | D28: BTU/yr
A29: Building 1 air exchange heat loss | C29: =build1_cfm*heat_viload -> 633473984.5 | D29: BTU/yr
A30: Building 1 total annual heat loss | B30: build1_heat_loss_yr | C30: =SUM(C27:C29) -> 745570302.5 | D30: BTU/yr
A31: Building 1 heating requirement in thousand BTU/hr | B31: build1_heat_mbh | C31: =build1_heat_loss_yr/365.25/24/1000 -> 85.05250998 | D31: MBH | E31: thousands of BTU per hour
A32: Building 1 number of heating zones | B32: build1_heat_zones | C32: =ROUNDUP(build1_heat_mbh/max_heat_cl,0) -> 1
A34: Building 2 side conductance heat loss | C34: =4*build2_side*Building_height*heat_DD*24/R_wall -> 72029625.02 | D34: BTU/yr
A35: Buiding 2 ceiling conductance heat loss | C35: =build2_fp*heat_DD*24/R_ceiling -> 35663248.42 | D35: BTU/yr
A36: Building 2 air exchange heat loss | C36: =build2_cfm*heat_viload -> 2188449780 | D36: BTU/yr
A37: Building 2 total annual heat loss | B37: build2_heat_loss_yr | C37: =SUM(C34:C36) -> 2296142653 | D37: BTU/yr
A38: Building 2 heating requirement in thousand BTU/hr | B38: build2_heat_mbh | C38: =build2_heat_loss_yr/365.25/24/1000 -> 261.9373321 | D38: MBH
A39: Building 2 number of heating zones | B39: build2_heat_zones | C39: =ROUNDUP(build2_heat_mbh/max_heat_cl,0) -> 1
A41: Cooling Requirements
A42: Power lost: booster pumps | B42: eloss_pumps | C42: =booster_pumps*pump_hp*(1-booster_pump_efficiency)*0.7457 -> 94.40671142 | D42: kW
A43: Waste heat: booster pumps | B43: waste_heat_pumps | C43: =eloss_pumps*3415 -> 322398.9195 | D43: BTU/hr
A44: Power lost: backwash pumps | B44: eloss_bw_pumps | C44: =back_pump_hp*(1-booster_pump_efficiency)*0.7457 -> 4.152688055 | D44: kW
A45: Waste heat: backwash pumps | B45: waste_heat_bw_pumps | C45: =eloss_bw_pumps*3415 -> 14181.42971 | D45: BTU/hr
A47: Building 1 side conductance cooling loss | C47: =4*build1_side*Building_height*cool_DD*24/R_wall -> 25586159.07 | D47: BTU/yr
A48: Buiding 1 ceiling conductance cooling loss | C48: =build1_fp*cool_DD*24/R_ceiling -> 13054395.79 | D48: BTU/yr
A49: Building 1 air exchange cooling loss | C49: =build1_cfm*cool_viload -> 194425990.5 | D49: BTU/yr
A50: Building 1 total annual cooling loss | B50: build1_cooling_loss_yr | C50: =SUM(C47:C49) -> 233066545.4 | D50: BTU/yr
A51: Building 1 cooling loss per hour | B51: build1_cooling_loss_hr | C51: =build1_cooling_loss_yr/365.25/24 -> 26587.55936 | D51: BTU/hr
A53: Building 1 total cooling requirement | B53: build1_cooling_req | C53: =build1_cooling_loss_hr+IF(fp_required<add_2nd_building,waste_heat_pumps+waste_heat_bw_pumps,0) -> 26587.55936 | D53: BTU/hr
A54: Building 1 annual cooling requirement | B54: build1_cooling_yr | C54: =build1_cooling_loss_hr*365.25*24+IF(fp_required<add_2nd_building,waste_heat_pumps*365.25*24+waste_heat_bw_pumps*back_hrs_yr,0) -> 233066545.4 | D54: BTU/yr
A55: Building 1 total cooling requirement in tons | B55: build1_cooling_tons | C55: =build1_cooling_req/12000 -> 2.215629947 | D55: tons | E55: 1 ton cooling = 12,000 BTU/hr
A56: Building 1 number of cooling zones | B56: build1_cool_zones | C56: =ROUNDUP(build1_cooling_tons/max_cool_cl,0) -> 1
A58: Building 2 side conductance cooling loss | C58: =4*build2_side*Building_height*cool_DD*24/R_wall -> 24829224.79 | D58: BTU/yr
A59: Buiding 2 ceiling conductance cooling loss | C59: =build2_fp*cool_DD*24/R_ceiling -> 12293425.26 | D59: BTU/yr
A60: Building 2 air exchange cooling loss | C60: =build2_cfm*cool_viload -> 671679542.5 | D60: BTU/yr
A61: Building 2 total annual cooling loss | B61: build2_cooling_loss_yr | C61: =SUM(C58:C60) -> 708802192.6 | D61: BTU/yr
A62: Building 2 cooling loss per hour | B62: build2_cooling_loss_hr | C62: =build2_cooling_loss_yr/365.25/24 -> 80858.11004 | D62: BTU/hr
A64: Building 2 total cooling requirement | B64: build2_cooling_req | C64: =build2_cooling_loss_hr+IF(fp_required<add_2nd_building,0,waste_heat_pumps+waste_heat_bw_pumps) -> 417438.4592 | D64: BTU/hr
A65: Building 2 annual cooling requirement | B65: build2_cooling_yr | C65: =build2_cooling_loss_hr*365.25*24+IF(fp_required<add_2nd_building,0,waste_heat_pumps*365.25*24+waste_heat_bw_pumps*back_hrs_yr) -> 3549678115 | D65: BTU/yr
A66: Building 2 total cooling requirement in tons | B66: build2_cooling_tons | C66: =build2_cooling_req/12000 -> 34.78653827 | D66: tons | E66: 1 ton cooling = 12,000 BTU/hr
A67: Building 2 number of cooling zones | B67: build2_cool_zones | C67: =ROUNDUP(build2_cooling_tons/max_cool_cl,0) -> 1
A69: Heating Options
A71: Building 1 number of HVAC zones | B71: build1_zones | C71: =MAX(build1_heat_zones, build1_cool_zones) -> 1
A72: Building 2 number of HVAC zones | B72: build2_zones | C72: =MAX(build2_heat_zones, build2_cool_zones) -> 1
A74: Heat pump OK for building 1? | B74: hp_ok_1 | C74: =AND(build1_heat_mbh<=hp_max_heat_cl,build1_cooling_tons<=hp_max_cool_cl) -> TRUE | E74: For heat pumps, we check both heating and cooling capacities.
A75: Heat pump OK for building 2? | B75: hp_ok_2 | C75: =AND(build2_heat_mbh<=hp_max_heat_cl,build2_cooling_tons<=hp_max_cool_cl) -> FALSE
A77: Building 1 | B77: build1_heat_options
A78: Option | B78: Size needed per zone (MBH) | C78: Size selected (MBH) | D78: Direct Cost Per Zone | E78: Useful Life (yrs) | F78: Annualized Capital Cost, All Zones | G78: Energy/Yr | I78: Energy Unit Cost | K78: Annual Energy Cost | L78: Total Annual Cost
A79: Electric resistance | B79: =build1_heat_mbh/build1_zones -> 85.05250998 | C79: =IF(curve=1,B79,VLOOKUP(B79,hvac_elec_cost_cl,2)) -> 85.05250998 | D79: =IF(curve=1,hvac_elec_eq_1,VLOOKUP(B79,hvac_elec_cost_cl,3)) -> 39617.38934 | E79: =VLOOKUP(B79,hvac_elec_cost_cl,IF(ss_cat="large",4,5)) -> 25 | F79: =IF(D79="contact vendor","n/a",-PMT(Discount_rate,E79,D79)*build1_zones) -> 3399.58867 | G79: =build1_heat_loss_yr/3412000/resist_eff -> 222.9736292 | H79: MWh/yr | I79: =energy_cost_cl -> 0.1076152672 | J79: /kwh | K79: =I79*G79*1000 -> 23995.36668 | L79: =IF(OR(F79="n/a",K79="n/a"),"n/a",F79+K79) -> 27394.95535
A80: Heat pump | B80: capital costs are in the cooling table | F80: n/a | G80: =IF(hp_ok_1,build1_heat_loss_yr/3412000/COP,"n/a") -> 68.28567395 | H80: MWh/yr | I80: =energy_cost_cl -> 0.1076152672 | J80: /kwh | K80: =IF(G80="n/a","n/a",I80*G80*1000) -> 7348.581046 | L80: n/a
A81: Natural gas non-condensing furnace | B81: =build1_heat_mbh/build1_zones -> 85.05250998 | C81: =IF(curve=1,B81,VLOOKUP(B81,hvac_gas_non_cost_cl,2)) -> 85.05250998 | D81: =IF(curve=1,hvac_gas_non_eq_1,VLOOKUP(B81,hvac_gas_non_cost_cl,3)) -> 24838.90266 | E81: =VLOOKUP(B81,hvac_gas_non_cost_cl,IF(ss_cat="large",4,5)) -> 25 | F81: =IF(D81="contact vendor","n/a",-PMT(Discount_rate,E81,D81)*build1_zones) -> 2131.439084 | G81: =build1_heat_loss_yr/100000/gas_non_eff -> 9319.628781 | H81: therms/yr | I81: =gas_cost_cl -> 0.6435404387 | J81: /therm | K81: =I81*G81 -> 5997.557994 | L81: 8128.997078
A82: Natural gas condensing furnace | B82: =build1_heat_mbh/build1_zones -> 85.05250998 | C82: =IF(curve=1,B82,VLOOKUP(B82,hvac_gas_cost_cl,2)) -> 85.05250998 | D82: =IF(curve=1,hvac_gas_eq_1,VLOOKUP(B82,hvac_gas_cost_cl,3)) -> 24838.90266 | E82: =VLOOKUP(B82,hvac_gas_cost_cl,IF(ss_cat="large",4,5)) -> 25 | F82: =IF(D82="contact vendor","n/a",-PMT(Discount_rate,E82,D82)*build1_zones) -> 2131.439084 | G82: =build1_heat_loss_yr/100000/gas_eff -> 7848.108447 | H82: therms/yr | I82: =gas_cost_cl -> 0.6435404387 | J82: /therm | K82: =I82*G82 -> 5050.575153 | L82: 7182.014237
A83: Standard efficiency oil furnace | B83: =build1_heat_mbh/build1_zones -> 85.05250998 | C83: =IF(curve=1,B83,VLOOKUP(B83,hvac_oil_std_cost_cl,2)) -> 85.05250998 | D83: =IF(curve=1,hvac_oil_std_eq_1,VLOOKUP(B83,hvac_oil_std_cost_cl,3)) -> 27137.58325 | E83: =VLOOKUP(B83,hvac_oil_std_cost_cl,IF(ss_cat="large",4,5)) -> 25 | F83: =IF(D83="contact vendor","n/a",-PMT(Discount_rate,E83,D83)*build1_zones) -> 2328.690055 | G83: =build1_heat_loss_yr/diesel_heat_content/diesel_non_eff -> 6876.686058 | H83: gal/yr | I83: =diesel_cost_cl -> 1.940023187 | J83: /gal | K83: =I83*G83 -> 13340.93041 | L83: 15669.62046
A84: Mid-efficiency oil furnace | B84: =build1_heat_mbh/build1_zones -> 85.05250998 | C84: =IF(curve=1,B84,VLOOKUP(B84,hvac_oil_mid_cost_cl,2)) -> 85.05250998 | D84: =IF(curve=1,hvac_oil_mid_eq_1,VLOOKUP(B84,hvac_oil_mid_cost_cl,3)) -> 27137.58325 | E84: =VLOOKUP(B84,hvac_oil_mid_cost_cl,IF(ss_cat="large",4,5)) -> 25 | F84: =IF(D84="contact vendor","n/a",-PMT(Discount_rate,E84,D84)*build1_zones) -> 2328.690055 | G84: =build1_heat_loss_yr/diesel_heat_content/diesel_eff -> 6310.370736 | H84: gal/yr | I84: =diesel_cost_cl -> 1.940023187 | J84: /gal | K84: =I84*G84 -> 12242.26555 | L84: 14570.9556
A86: Building 2 | B86: build2_heat_options
A87: Option | B87: Size needed per zone (MBH) | C87: Size selected (MBH) | D87: Direct Cost Per Zone | E87: Useful Life (yrs) | F87: Annualized Capital Cost, All Zones | G87: Energy/Yr | I87: Energy Unit Cost | K87: Annual Energy Cost | L87: Total Annual Cost
A88: Electric resistance | B88: =build2_heat_mbh/build2_zones -> 261.9373321 | C88: =IF(curve=1,B88,VLOOKUP(B88,hvac_elec_cost_cl,2)) -> 261.9373321 | D88: =IF(curve=1,hvac_elec_eq_2,VLOOKUP(B88,hvac_elec_cost_cl,3)) -> 92359.8439 | E88: =VLOOKUP(B88,hvac_elec_cost_cl,IF(ss_cat="large",4,5)) -> 25 | F88: =IF(D88="contact vendor","n/a",-PMT(Discount_rate,E88,D88)*build2_zones) -> 7925.445976 | G88: =build2_heat_loss_yr/3412000/resist_eff -> 686.6948146 | H88: MWh/yr | I88: =energy_cost_cl -> 0.1076152672 | J88: /kwh | K88: =I88*G88*1000 -> 73898.84595 | L88: =IF(F88="n/a","n/a",F88+K88) -> 81824.29192
A89: Heat pump | B89: capital costs are in the cooling table | F89: n/a | G89: =IF(hp_ok_2,build2_heat_loss_yr/3412000/COP,"n/a") -> n/a | H89: MWh/yr | I89: =energy_cost_cl -> 0.1076152672 | J89: /kwh | K89: =IF(G89="n/a","n/a",I89*G89*1000) -> n/a | L89: =IF(OR(F89="n/a",K89="n/a"),"n/a",F89+K89) -> n/a
A90: Natural gas non-condensing furnace | B90: =build2_heat_mbh/build2_zones -> 261.9373321 | C90: =IF(curve=1,B90,VLOOKUP(B90,hvac_gas_non_cost_cl,2)) -> 261.9373321 | D90: =IF(curve=1,hvac_gas_non_eq_2,VLOOKUP(B90,hvac_gas_non_cost_cl,3)) -> 59647.06806 | E90: =VLOOKUP(B90,hvac_gas_non_cost_cl,IF(ss_cat="large",4,5)) -> 25 | F90: =IF(D90="contact vendor","n/a",-PMT(Discount_rate,E90,D90)*build2_zones) -> 5118.345761 | G90: =build2_heat_loss_yr/100000/gas_non_eff -> 28701.78317 | H90: therms/yr | I90: =gas_cost_cl -> 0.6435404387 | J90: /therm | K90: =I90*G90 -> 18470.75813 | L90: =IF(F90="n/a","n/a",F90+K90) -> 23589.10389
A91: Natural gas condensing furnace | B91: =build2_heat_mbh/build2_zones -> 261.9373321 | C91: =IF(curve=1,B91,VLOOKUP(B91,hvac_gas_cost_cl,2)) -> 261.9373321 | D91: =IF(curve=1,hvac_gas_eq_2,VLOOKUP(B91,hvac_gas_cost_cl,3)) -> 59647.06806 | E91: =VLOOKUP(B91,hvac_gas_cost_cl,IF(ss_cat="large",4,5)) -> 25 | F91: =IF(D91="contact vendor","n/a",-PMT(Discount_rate,E91,D91)*build2_zones) -> 5118.345761 | G91: =build2_heat_loss_yr/100000/gas_eff -> 24169.92267 | H91: therms/yr | I91: =gas_cost_cl -> 0.6435404387 | J91: /therm | K91: =I91*G91 -> 15554.32264 | L91: =IF(F91="n/a","n/a",F91+K91) -> 20672.6684
A92: Standard efficiency oil furnace | B92: =build2_heat_mbh/build2_zones -> 261.9373321 | C92: =IF(curve=1,B92,VLOOKUP(B92,hvac_oil_std_cost_cl,2)) -> 261.9373321 | D92: =IF(curve=1,hvac_oil_std_eq_2,VLOOKUP(B92,hvac_oil_std_cost_cl,3)) -> 63727.35957 | E92: =VLOOKUP(B92,hvac_oil_std_cost_cl,IF(ss_cat="large",4,5)) -> 25 | F92: =IF(D92="contact vendor","n/a",-PMT(Discount_rate,E92,D92)*build2_zones) -> 5468.477686 | G92: =build2_heat_loss_yr/diesel_heat_content/diesel_non_eff -> 21178.22038 | H92: gal/yr | I92: =diesel_cost_cl -> 1.940023187 | J92: /gal | K92: =I92*G92 -> 41086.2386 | L92: =IF(F92="n/a","n/a",F92+K92) -> 46554.71629
A93: Mid-efficiency oil furnace | B93: =build2_heat_mbh/build2_zones -> 261.9373321 | C93: =IF(curve=1,B93,VLOOKUP(B93,hvac_oil_mid_cost_cl,2)) -> 261.9373321 | D93: =IF(curve=1,hvac_oil_mid_eq_2,VLOOKUP(B93,hvac_oil_mid_cost_cl,3)) -> 63727.35957 | E93: =VLOOKUP(B93,hvac_oil_mid_cost_cl,IF(ss_cat="large",4,5)) -> 25 | F93: =IF(D93="contact vendor","n/a",-PMT(Discount_rate,E93,D93)*build2_zones) -> 5468.477686 | G93: =build2_heat_loss_yr/diesel_heat_content/diesel_eff -> 19434.13164 | H93: gal/yr | I93: =diesel_cost_cl -> 1.940023187 | J93: /gal | K93: =I93*G93 -> 37702.66601 | L93: =IF(F93="n/a","n/a",F93+K93) -> 43171.1437
A95: Cooling Options
A96: Building 1 | B96: build1_cool_options
A97: Option | B97: Size needed per zone (tons) | C97: Size selected (tons) | D97: Direct Cost Per Zone | E97: Useful Life (yrs) | F97: Annualized Capital Cost, All Zones | G97: Energy/Yr | I97: Energy Unit Cost | K97: Annual Energy Cost | L97: Total Annual Cost
A98: Air conditioner | B98: =build1_cooling_tons/build1_zones -> 2.215629947 | C98: =IF(curve=1,B98,VLOOKUP(B98,hvac_ac_cost_cl,2)) -> 2.215629947 | D98: =IF(curve=1,hvac_ac_eq_1,VLOOKUP(B98,hvac_ac_cost_cl,3)) -> 6378.394833 | E98: =VLOOKUP(B98,hvac_ac_cost_cl,IF(ss_cat="large",4,5)) -> 25 | F98: =IF(D98="contact vendor","n/a",-PMT(Discount_rate,E98,D98)*build1_zones) -> 547.3333596 | G98: =build1_cooling_yr/EER/10^6 -> 21.18786776 | H98: MWh/yr | I98: =energy_cost_cl -> 0.1076152672 | J98: /kwh | K98: =I98*G98*1000 -> 2280.13805 | L98: =IF(F98="n/a","n/a",F98+K98) -> 2827.471409
A99: Heat pump | B99: =build1_cooling_tons/build1_zones -> 2.215629947 | C99: =IF(hp_ok_1,IF(curve=1,B99,VLOOKUP(B99,hvac_hp_cost_cl,2)),"n/a") -> 2.215629947 | D99: =IF(C99="n/a","n/a",IF(curve=1,hvac_hp_eq_1,VLOOKUP(B99,hvac_hp_cost_cl,3))) -> 4413.190938 | E99: =IF(C99="n/a","n/a",VLOOKUP(B99,hvac_hp_cost_cl,IF(ss_cat="large",4,5))) -> 25 | F99: =IF(OR(D99="contact vendor",D99="n/a"),"n/a",-PMT(Discount_rate,E99,D99)*build1_zones) -> 378.698197 | G99: =IF(C99="n/a","n/a",build1_cooling_yr/hp_EER/10^6) -> 23.07589558 | H99: MWh/yr | I99: =energy_cost_cl -> 0.1076152672 | J99: /kwh | K99: =IF(C99="n/a","n/a",I99*G99*1000) -> 2483.318668 | L99: =IF(F99="n/a","n/a",F99+K99) -> 2862.016865
A101: Building 2 | B101: build2_cool_options
A102: Option | B102: Size needed per zone (tons) | C102: Size selected (tons) | D102: Direct Cost Per Zone | E102: Useful Life (yrs) | F102: Annualized Capital Cost, All Zones | G102: Energy/Yr | I102: Energy Unit Cost | K102: Annual Energy Cost | L102: Total Annual Cost
A103: Air conditioner | B103: =build2_cooling_tons/build2_zones -> 34.78653827 | C103: =IF(curve=1,B103,VLOOKUP(B103,hvac_ac_cost_cl,2)) -> 34.78653827 | D103: =IF(curve=1,hvac_ac_eq_2,VLOOKUP(B103,hvac_ac_cost_cl,3)) -> 159408.3573 | E103: =VLOOKUP(B103,hvac_ac_cost_cl,IF(ss_cat="large",4,5)) -> 25 | F103: =IF(D103="contact vendor","n/a",-PMT(Discount_rate,E103,D103)*build2_zones) -> 13678.91359 | G103: =build2_cooling_yr/EER/10^6 -> 322.6980105 | H103: MWh/yr | I103: =energy_cost_cl -> 0.1076152672 | J103: /kwh | K103: =I103*G103*1000 -> 34727.23261 | L103: =IF(F103="n/a","n/a",F103+K103) -> 48406.1462
A104: Heat pump | B104: =build2_cooling_tons/build2_zones -> 34.78653827 | C104: =IF(hp_ok_2,IF(curve=1,B104,VLOOKUP(B104,hvac_hp_cost_cl,2)),"n/a") -> n/a | D104: =IF(C104="n/a","n/a",IF(curve=1,hvac_hp_eq_2,VLOOKUP(B104,hvac_hp_cost_cl,3))) -> n/a | E104: =IF(C104="n/a","n/a",VLOOKUP(B104,hvac_hp_cost_cl,IF(ss_cat="large",4,5))) -> n/a | F104: =IF(OR(D104="contact vendor",D104="n/a"),"n/a",-PMT(Discount_rate,E104,D104)*build2_zones) -> n/a | G104: =IF(C104="n/a","n/a",build2_cooling_yr/hp_EER/10^6) -> n/a | H104: MWh/yr | I104: =energy_cost_cl -> 0.1076152672 | J104: /kwh | K104: =IF(C104="n/a","n/a",I104*G104*1000) -> n/a | L104: =IF(F104="n/a","n/a",F104+K104) -> n/a
A107: Heating and Cooling Selection | E107: We will select the option with the lowest annual cost for each building.
A109: Building 1 Selection
A110: Heating option | B110: Annual cost | C110: Cooling option | D110: Annual cost | E110: Total annual cost
A111: Electric resistance | B111: =IF(build1_need_heat,VLOOKUP(A111,build1_heat_options,12,FALSE),0) -> 27394.95535 | C111: Air conditioner | D111: =IF(build1_need_cool,VLOOKUP(C111,build1_cool_options,12,FALSE),0) -> 2827.471409 | E111: =IF(OR(B111="n/a",D111="n/a"),"n/a",ROUND(B111+D111,0)) -> 30222
A112: Natural gas non-condensing furnace | B112: =IF(build1_need_heat,VLOOKUP(A112,build1_heat_options,12,FALSE),0) -> 8128.997078 | C112: Air conditioner | D112: =IF(build1_need_cool,VLOOKUP(C112,build1_cool_options,12,FALSE),0) -> 2827.471409 | E112: 10956
A113: Natural gas condensing furnace | B113: =IF(build1_need_heat,VLOOKUP(A113,build1_heat_options,12,FALSE),0) -> 7182.014237 | C113: Air conditioner | D113: =IF(build1_need_cool,VLOOKUP(C113,build1_cool_options,12,FALSE),0) -> 2827.471409 | E113: 10009
A114: Standard efficiency oil furnace | B114: =IF(build1_need_heat,VLOOKUP(A114,build1_heat_options,12,FALSE),0) -> 15669.62046 | C114: Air conditioner | D114: =IF(build1_need_cool,VLOOKUP(C114,build1_cool_options,12,FALSE),0) -> 2827.471409 | E114: 18497
A115: Mid-efficiency oil furnace | B115: =IF(build1_need_heat,VLOOKUP(A115,build1_heat_options,12,FALSE),0) -> 14570.9556 | C115: Air conditioner | D115: =IF(build1_need_cool,VLOOKUP(C115,build1_cool_options,12,FALSE),0) -> 2827.471409 | E115: 17398
A116: Heat pump | B116: =IF(AND(build1_need_heat, build1_need_cool),K80,"n/a") -> 7348.581046 | C116: Heat pump | D116: =IF(AND(build1_need_heat,build1_need_cool),VLOOKUP(C116,build1_cool_options,12,FALSE),0) -> 2862.016865 | E116: 10211
A118: Row selected | B118: build1_row | C118: =MATCH(MIN(E111:E116),E111:E116,0) -> 3
A119: Building 1 heating selection | B119: build1_heat | C119: =IF(build1_need_heat,INDEX(A111:A116,build1_row),"n/a") -> Natural gas condensing furnace
A120: Building 1 cooling selection | B120: build1_cool | C120: =IF(build1_need_cool,INDEX(C111:C116,build1_row),"n/a") -> Air conditioner
A123: Building 2 Selection
A124: Heating option | B124: Annual cost | C124: Cooling option | D124: Annual cost | E124: Total annual cost
A125: Electric resistance | B125: =IF(build2_need_heat,VLOOKUP(A125,build2_heat_options,12,FALSE),0) -> 81824.29192 | C125: Air conditioner | D125: =IF(build2_need_cool,VLOOKUP(C125,build2_cool_options,12,FALSE),0) -> 48406.1462 | E125: =IF(OR(B125="n/a",D125="n/a"),"n/a",ROUND(B125+D125,0)) -> 130230
A126: Natural gas non-condensing furnace | B126: =IF(build2_need_heat,VLOOKUP(A126,build2_heat_options,12,FALSE),0) -> 23589.10389 | C126: Air conditioner | D126: =IF(build2_need_cool,VLOOKUP(C126,build2_cool_options,12,FALSE),0) -> 48406.1462 | E126: 71995
A127: Natural gas condensing furnace | B127: =IF(build2_need_heat,VLOOKUP(A127,build2_heat_options,12,FALSE),0) -> 20672.6684 | C127: Air conditioner | D127: =IF(build2_need_cool,VLOOKUP(C127,build2_cool_options,12,FALSE),0) -> 48406.1462 | E127: 69079
A128: Standard efficiency oil furnace | B128: =IF(build2_need_heat,VLOOKUP(A128,build2_heat_options,12,FALSE),0) -> 46554.71629 | C128: Air conditioner | D128: =IF(build2_need_cool,VLOOKUP(C128,build2_cool_options,12,FALSE),0) -> 48406.1462 | E128: 94961
A129: Mid-efficiency oil furnace | B129: =IF(build2_need_heat,VLOOKUP(A129,build2_heat_options,12,FALSE),0) -> 43171.1437 | C129: Air conditioner | D129: =IF(build2_need_cool,VLOOKUP(C129,build2_cool_options,12,FALSE),0) -> 48406.1462 | E129: 91577
A130: Heat pump | B130: =IF(AND(build2_need_heat, build2_need_cool),K89,"n/a") -> n/a | C130: Heat pump | D130: =IF(AND(build1_need_heat,build2_need_cool),VLOOKUP(C130,build2_cool_options,12,FALSE),0) -> n/a | E130: n/a
A132: Row selected | B132: build2_row | C132: =MATCH(MIN(E125:E130),E125:E130,0) -> 3
A133: Building 2 heating selection | B133: build2_heat | C133: =IF(build2_need_heat,INDEX(A125:A130,build2_row),"n/a") -> Natural gas condensing furnace
A134: Building 2 cooling selection | B134: build2_cool | C134: =IF(build2_need_cool,INDEX(C125:C130,build2_row),"n/a") -> Air conditioner

Sheet Indirect
A1: Indirect and Add-on Cost Calculations
A3: Calculation | B3: Range Name | C3: Value | D3: Units | E3: Guidance
A4: Standby Power
A5: Booster pumps | C5: =pump_energy*design_flow/average_flow/365/24*1000 -> 755.2536913 | D5: kW
A6: Lighting | C6: =(build1_fp*lighting_energy_1+build2_fp*lighting_energy_2)/365/24 -> 23.65 | D6: kW
A7: Building 1 ventilation | C7: =0.746*Fan_pressure_drop*build1_fp*Building_height*air_changes_build1/33000 -> 1.273455909 | D7: kW
A8: Building 2 ventilation | C8: =0.746*Fan_pressure_drop*build2_fp*Building_height*air_changes_build2/33000 -> 4.399382409 | D8: kW
A9: Total base standby power requirement | B9: std_base | C9: =SUM(C5:C8) -> 784.5765297 | D9: kW
A11: Electric heating for Building 1? | B11: build1_elec_heat | C11: =IF(build1_need_heat=1,VLOOKUP(build1_heat,build1_heat_options,8,FALSE)="MWh/yr",FALSE) -> FALSE
A12: Power to heat Building 1 | B12: build1_elec_heat_power | C12: =IF(build1_elec_heat,VLOOKUP(build1_heat,build1_heat_options,7,FALSE),0)*365.25*24/1000 -> 0 | D12: kW
A13: Electric heating for Building 2? | B13: build2_elec_heat | C13: =IF(build2_need_heat,(VLOOKUP(build2_heat,build2_heat_options,8,FALSE)="MWh/yr"),FALSE) -> FALSE
A14: Power to heat Building 2 | B14: build2_elec_heat_power | C14: =IF(build2_elec_heat,VLOOKUP(build2_heat,build2_heat_options,7,FALSE),0)*365.25*24/1000 -> 0 | D14: kW
A15: Standby power for heating | B15: std_heat | C15: =build1_elec_heat_power+build2_elec_heat_power -> 0 | D15: kW
A17: Electric cooling for Building 1? | B17: build1_elec_cool | C17: =IF(build1_need_cool,(VLOOKUP(build1_cool,build1_cool_options,8,FALSE)="MWh/yr"),FALSE) -> TRUE
A18: Power to cool Building 1 | B18: build1_elec_cool_power | C18: =IF(build1_elec_cool,VLOOKUP(build1_cool,build1_cool_options,7,FALSE),0)*365.25*24/1000 -> 185.7328488 | D18: kW
A19: Electric cooling for Building 2? | B19: build2_elec_cool | C19: =IF(build2_need_cool,(VLOOKUP(build2_cool,build2_cool_options,8,FALSE)="MWh/yr"),FALSE) -> TRUE
A20: Power to cool Building 2 | B20: build2_elec_cool_power | C20: =IF(build2_elec_cool,VLOOKUP(build2_cool,build2_cool_options,7,FALSE),0)*365.25*24/1000 -> 2828.77076 | D20: kW
A21: Standby power for cooling | B21: std_cool | C21: =build1_elec_cool_power+build2_elec_cool_power -> 3014.503608 | D21: kW
A23: Total standby power requirements | B23: std_power | C23: =ROUNDUP(2*MAX(min_standby,(IF(AND(need_heat=1,need_cool=1),MAX(std_heat,std_cool),need_heat*std_heat+need_cool*std_cool)+std_base)*(1+std_safety_factor)),0)/2 -> 785 | D23: kW
A24: Total standby power cost | B24: std_power_cost | C24: =VLOOKUP(std_power,std_gen_cost_cl,3)*std_power -> 164068.2647
A26: Geotechnical & Sitework
A27: Total technology footprint | B27: tech_fp | C27: =total_fp+ep_fp+sept_fp+solids_pad_area -> 23650 | D27: square feet
A28: Maximum basin excavation depth | B28: max_excav_depth | C28: =IF(res_holding="basins",hbasin_depth,0) -> 0 | D28: feet
A29: Borehole depth | B29: bore_depth | C29: =IF(max_excav_depth=0,bore_depth_nobasin,IF(max_excav_depth>deep_bore_need,bore_depth_max,bore_depth_min)) -> 10 | D29: feet
A30: Number of test pits | B30: num_pits | C30: =IF(OR(max_excav_depth>0,tech_fp>bore_need),0,ROUNDUP(tech_fp/hole_per_sf,0)) -> 0
A31: Number of boreholes | B31: num_holes | C31: =IF(AND(max_excav_depth=0,tech_fp<bore_need),0,IF(ROUNDUP(tech_fp/hole_per_sf,0)<min_holes,min_holes,ROUNDUP(tech_fp/hole_per_sf,0))) -> 24
A33: Costs
A34: Borings, initial field stake out & determination of elevations | C34: =IF(num_pits>0,1,ROUNDUP(num_holes/hole_per_job,0))*VLOOKUP(0,stake_out_cost_cl,3) -> 1380.637897
A35: Borings, drawings showing boring details | C35: =ROUNDUP(num_holes/hole_per_job,0)*VLOOKUP(0,bore_draw_cost_cl,3) -> 460.2126322
A36: Borings, report and recommendations from P.E. | C36: =IF(num_pits>0,1,ROUNDUP(num_holes/hole_per_job,0))*VLOOKUP(0,bore_report_cost_cl,3) -> 1050.367655
A37: Borings, mobilization and demobilization, minimum | C37: =IF(num_pits>0,0,1)*VLOOKUP(0,bore_mob_cost_cl,3) -> 725.5116791
A38: Borings, drill rig and crew with truck mounted auger | C38: =ROUNDUP(bore_depth*num_holes/hole_per_day,0)*VLOOKUP(0,bore_rig_cost_cl,3) -> 14483.16225
A39: Borings, cased borings in earth, w/samples, 2.5" dia | C39: =num_holes*bore_depth*VLOOKUP(0,bore_cost_cl,3) -> 18711.7042
A40: Test pits | C40: =pit_width*pit_length*pit_depth/27*num_pits*VLOOKUP(0,pit_cost_cl,3) -> 0
A41: Total geotechnical cost | B41: geotech_cost | C41: =SUM(C34:C40) -> 36811.59631
A43: Total sitework cost | B43: sitework_cost | C43: =(tech_fp-ep_fp)*sitework_sf_cl -> 293415.9341
A45: Yard Piping
A46: Actual yard piping diameter | B46: yard_pipe_diam | C46: =SUMPRODUCT(OUTPUT!G77:G81,OUTPUT!L77:L81) -> 36 | D46: in. diam | E46: Based on output sheet selection for inlet and outlet pipe
A47: Trench depth to top of pipe | B47: trench_depth | C47: =MAX(frost,min_trench_depth) -> 38 | D47: inches
A48: Thrust force | B48: thrust_force | C48: =VLOOKUP(yard_pipe_diam,thrust_block_table_cl,2)*2.2 -> 274490.9187 | D48: lbs
A49: Bearing Area (L x H) | B49: bearing_area | C49: =1.5*thrust_force/(soil_dens*(trench_depth/12+yard_pipe_diam/12)*Coeff_Kp*Reduction) -> 491.3137252 | D49: square ft
A50: L | C50: =bearing_area/C51 -> 31.34688901 | D50: ft
A51: H | C51: =(bearing_area/2)^0.5 -> 15.6734445 | D51: ft
A52: F | C52: =MAX(0.5,yard_pipe_diam/12) -> 3 | D52: ft | E52: Pipe diameter with a minimum of 6 inches
A53: T | C53: =C50/2 -> 15.6734445 | D53: ft
A54: Thrust block volume | B54: block_vol | C54: =(C53+(yard_pipe_diam/12)/2)*(C50+C52)/2*C51/27 -> 171.2046311 | D54: cy
A55: Trench Cross-section Area | B55: trench_area | C55: =(yard_pipe_diam/12+2)*(bedding_depth/12+yard_pipe_diam/12+trench_depth/12)+(bedding_depth/12+yard_pipe_diam/12+trench_depth/12)^2*TAN(trench_angle) -> 77.77777778 | D55: square ft
A56: Trench Volume Source Water | C56: =trench_area*yard_in/27 -> 0 | D56: cy
A57: Trench Volume Inlet & Outlet | C57: =((2*non_fire_buffer)+2*(build1_fp^0.5)/4)*trench_area/27 -> 216.5722759 | D57: cy
A58: Trench Volume Between Buildings | C58: =IF(build2_fp=0,0,((2*non_fire_buffer)+2*(build2_fp^0.5)/4)*trench_area/27) -> 211.869671 | D58: cy
A59: Trench Volume to Distribution Network | C59: =trench_area*yard_out/27 -> 0 | D59: cy
A60: Trench Volume total | B60: trench_vol | C60: =SUM(C56:C59)+block_vol -> 599.6465781 | D60: cy
A61: Equivalent pipe length | B61: yard_pipe_length | C61: =yard_in+yard_out+2*((2*non_fire_buffer)+2*(build1_fp^0.5)/4+IF(build2_fp=0,0,((2*non_fire_buffer)+2*(build2_fp^0.5)/4))+2*(trench_depth+yard_pipe_diam)/12) -> 322.1277898 | D61: lf
A62: Bedding cross sectional surface area | C62: =(yard_pipe_diam/12+2)*(bedding_depth/12+yard_pipe_diam/12*bedding_pct)+(bedding_depth/12+yard_pipe_diam/12*bedding_pct)^2*TAN(trench_angle)-((yard_pipe_diam/12/2)^2*ACOS((yard_pipe_diam/12/2-bedding_pct*yard_pipe_diam/12)/(yard_pipe_diam/12/2))-(yard_pipe_diam/12/2-yard_pipe_diam/12*bedding_pct)*((2*yard_pipe_diam/12/2*yard_pipe_diam/12*bedding_pct-(yard_pipe_diam/12*bedding_pct)^2)^0.5)) -> 6.430584089 | D62: square ft
A63: Bedding volume | B63: bedding_vol | C63: =C62*yard_pipe_length/2/27 -> 38.36055259 | D63: cy
A65: Costs
A66: Bedding cost | C66: =VLOOKUP(0,bedding_cost_cl,3)*bedding_vol -> 2068.634687
A67: Excavation cost | C67: =trench_vol*VLOOKUP(0,excavate_cost_cl,3) -> 18039.357
A68: Backfill cost | C68: =trench_vol*VLOOKUP(0,backfill_cost_cl,3) -> 8363.104269
A69: Thrust block cost | C69: =block_vol*VLOOKUP(0,conc_basin_cost_cl,3) -> 99655.76373
A70: Pipe cost | C70: =yard_pipe_length*SUMPRODUCT(OUTPUT!I77:I81,OUTPUT!L77:L81) -> 46768.72516 | E70: Based on output sheet selection for inlet and outlet pipe
A71: Total yard piping cost | B71: yard_cost | C71: =SUM(C66:C70) -> 174895.5849
A73: Permits
A74: Building #1 value | C74: =SUMPRODUCT(OUTPUT!J234:J246,OUTPUT!L234:L246) -> 767563.7253 | D74: Determined using Use? Column of output sheet
A75: Building #2 value | C75: =SUMPRODUCT(OUTPUT!J248:J261,OUTPUT!L248:L261) -> 1182504.153 | D75: Determined using Use? Column of output sheet
A76: Building permit cost | C76: =BPCost_UBC97(C74)+BPCost_UBC97(C75) -> 10783.45 | D76: Uses custom function to apply formulae developed in SAIC Permit Report 2004
A77: NPDES permit cost | C77: =IF(res_s2_opt=1,VLOOKUP(res_flow_annual/365,NPDES_permit_cost_cl,2),0) -> 0 | D77: Included only if direct discharge to surface water is the management option chosen on the input sheet
A78: Storm water permit cost | C78: =VLOOKUP(land_required,SW_permit_cost_cl,2) -> 0 | D78: Applies to systems requiring 1 acre of land or greater
A79: Risk management plan | C79: 0 | D79: Not applicable for this technology
A80: NEPA compliance | C80: =IF(include_NEPA=2,0,IF(OR(component_level=2,include_NEPA=1),VLOOKUP(land_required,NEPA_cost_cl,2),0)) -> 0 | D80: Included only for high cost estimates, unless assumption "include_NEPA" is changed on CDA sheet
A81: Total permit cost | B81: permit_cost | C81: =SUM(C76:C80) -> 10783.45
A83: Construction Management and General Contractor Job Overhead
A84: Builder's risk insurance percentage | C84: =br_ins_pct*direct_cost -> 35744.61948
A85: Performance bond cost | C85: =include_bond*(VLOOKUP(direct_cost,performance_bond_table_cl,3)+VLOOKUP(direct_cost,performance_bond_table_cl,4)*(direct_cost-VLOOKUP(direct_cost,performance_bond_table_cl,5))) -> 82828.74026 | E85: Bracket determined from direct capital cost
A86: Construction management percentage | C86: =VLOOKUP(direct_cost,construction_mgt_table_cl,3) -> 0.032 | E86: Looked up from direct capital cost
A87: Construction management fee | C87: =IF(ss_cat2=1,include_cm_pre,include_cm)*C86*direct_cost -> 336419.9481
A88: Total construction management/job overhead cost | B88: cm_cost | C88: =SUM(C84:C85,C87) -> 454993.3078

Sheet Reference Data
A1: Reference Data for Influent Hardness and Regenerant Dose
A2: This Sheet presents data that can be used to select alternate inputs that may vary based on resin type and water quality
A4: Guidance on influent CaCO3
A5: Water Hardness | B5: Grains per Gallon | C5: mg/L
A6: Soft | B6: 0 to 3 | C6: 0 to 60
A7: Moderate | B7: 3 to 7 | C7: 60 to 120
A8: Hard | B8: 7 to 10 | C8: 120 to 180
A9: Very Hard | B9: more than 10 | C9: more than 180
A11: Guidance on regenerant dose level and resin useable capacity
A12: Regenerant dose level (lbs/cubic foot) | B12: Resin useable capacity (kilograins/cubic foot)
A13: From Clifford, D.A. 1999. “Ion Exchange and Inorganic Adsorption.” Water Quality and Treatment. Chapter 9. New York: American Water Works Association-McGraw Hill. Table 9.6
A14: 4 | B14: 17
A15: 6 | B15: 20
A16: 8 | B16: 22
A17: 10 | B17: 25
A18: 15 | B18: 27
A19: 20 | B19: 29
A20: From Gottlieb Peer Review Comments, 2006
A21: 5 | B21: 20

Sheet Standard Inputs
A1: Standard Designs
A2: Default inputs represent typical options used to generate national average compliance costs.
B5: System Size | F5: Regeneration | K5: System Configuration and Vessel Design | Q5: Residuals | V5: Optional
A6: Design # | B6: Design flow | C6: Design Flow Units | D6: Average Flow | E6: Average flow units | F6: Influent Hardness | G6: Resin Type | H6: Regen Calculation Type | I6: Resin Capacity or Bed Volumes | J6: Regenerant dose level | K6: Number of Tanks | L6: EBCT | M6: Bed Depth | N6: Vessel Geometry | O6: Height or Length | P6: Diameter | Q6: Brine Delivery | R6: Discharge option for spent brine | S6: Holding tank for spent brine | T6: Characteristics of spent resin | U6: Characteristics of evaporation pond or holding tank solids | V6: BoosterPump | W6: # Redundant Units | X6: Backwash pumps? | Y6: Backwash storage? | Z6: Component level | AA6: System Automation | AB6: Internal Use
B7: design_flow_I | C7: df_units | D7: average_flow_I | E7: af_units | F7: CaCO3_in | G7: resin_type_I | H7: regen_calc_type | I7: BV_regen_I | J7: salt_dose_I | K7: num_tanks_I | L7: EBCT_I | M7: bed_depth | N7: tank_geom_I | O7: comm_height_length | P7: comm_diam | Q7: brine_method_I | R7: res_s2_opt_I | S7: res_s1_opt_I | T7: media_haz_I | U7: solids_haz_I | V7: lines_pump_I | W7: NRD_I | X7: no_backwash_I | Y7: no_back_tank_I | Z7: component_level_I | AA7: manual_I
A8: 1 | B8: 0.03 | C8: MGD | D8: 0.007 | E8: MGD | F8: 200 | G8: Strong acid polystyrenic macroporous | H8: calculate based on hardenss and resin capacity | I8: 27 | J8: 15 | K8: 1 | L8: 2.5 | M8: 2.5 | N8: upright | O8: 5 | P8: 1.5 | Q8: brine mixing tanks | R8: POTW | S8: holding tank | T8: non-hazardous | U8: non-hazardous | AC8: =AND(B8:AA8=inp_used) -> FALSE | AD8: =AND(B8:E8=inp_used_minimal) -> FALSE
A9: 2 | B9: 0.124 | C9: MGD | D9: 0.035 | E9: MGD | F9: 200 | G9: Strong acid polystyrenic macroporous | H9: calculate based on hardenss and resin capacity | I9: 27 | J9: 15 | K9: 1 | L9: 2.5 | M9: 3 | N9: upright | O9: 6 | P9: 2.5 | Q9: brine mixing tanks | R9: POTW | S9: holding tank | T9: non-hazardous | U9: non-hazardous | AC9: =AND(B9:AA9=inp_used) -> FALSE | AD9: =AND(B9:E9=inp_used_minimal) -> FALSE
A10: 3 | B10: 0.305 | C10: MGD | D10: 0.094 | E10: MGD | F10: 200 | G10: Strong acid polystyrenic macroporous | H10: calculate based on hardenss and resin capacity | I10: 27 | J10: 15 | K10: 1 | L10: 2.5 | M10: 2.9 | N10: upright | O10: 6 | P10: 4 | Q10: brine mixing tanks | R10: POTW | S10: holding tank | T10: non-hazardous | U10: non-hazardous | AC10: =AND(B10:AA10=inp_used) -> FALSE | AD10: =AND(B10:E10=inp_used_minimal) -> FALSE
A11: 4 | B11: 0.74 | C11: MGD | D11: 0.251 | E11: MGD | F11: 200 | G11: Strong acid polystyrenic macroporous | H11: calculate based on hardenss and resin capacity | I11: 27 | J11: 15 | K11: 1 | L11: 2.5 | M11: 3.1 | N11: upright | O11: 6 | P11: 6 | Q11: brine mixing tanks | R11: POTW | S11: holding tank | T11: non-hazardous | U11: non-hazardous | AC11: =AND(B11:AA11=inp_used) -> FALSE | AD11: =AND(B11:E11=inp_used_minimal) -> FALSE
A12: 5 | B12: 2.152 | C12: MGD | D12: 0.819 | E12: MGD | F12: 200 | G12: Strong acid polystyrenic macroporous | H12: calculate based on hardenss and resin capacity | I12: 27 | J12: 15 | K12: 1 | L12: 2.5 | M12: 3.8 | N12: upright | O12: 7.5 | P12: 6.5 | Q12: brine mixing tanks | R12: POTW | S12: holding tank | T12: non-hazardous | U12: non-hazardous | AC12: =AND(B12:AA12=inp_used) -> FALSE | AD12: =AND(B12:E12=inp_used_minimal) -> FALSE
A13: 6 | B13: 7.365 | C13: MGD | D13: 3.2 | E13: MGD | F13: 200 | G13: Strong acid polystyrenic macroporous | H13: calculate based on hardenss and resin capacity | I13: 27 | J13: 15 | K13: 1 | L13: 2.5 | M13: 3.8 | N13: upright | O13: 7.5 | P13: 12 | Q13: brine mixing tanks | R13: POTW | S13: holding tank | T13: non-hazardous | U13: non-hazardous | AC13: =AND(B13:AA13=inp_used) -> FALSE | AD13: =AND(B13:E13=inp_used_minimal) -> FALSE
A14: 7 | B14: 22.614 | C14: MGD | D14: 11.066 | E14: MGD | F14: 200 | G14: Strong acid polystyrenic macroporous | H14: calculate based on hardenss and resin capacity | I14: 27 | J14: 15 | K14: 1 | L14: 2.5 | M14: 4 | N14: upright | O14: 7.5 | P14: 13 | Q14: brine mixing tanks | R14: POTW | S14: holding tank | T14: non-hazardous | U14: non-hazardous | AC14: =AND(B14:AA14=inp_used) -> FALSE | AD14: =AND(B14:E14=inp_used_minimal) -> FALSE
A15: 8 | B15: 75.072 | C15: MGD | D15: 37.536 | E15: MGD | F15: 200 | G15: Strong acid polystyrenic macroporous | H15: calculate based on hardenss and resin capacity | I15: 27 | J15: 15 | K15: 1 | L15: 2.5 | M15: 4.9 | N15: horizontal | O15: 26 | P15: 12.5 | Q15: brine mixing tanks | R15: POTW | S15: no holding tank | T15: non-hazardous | U15: non-hazardous | AC15: =AND(B15:AA15=inp_used) -> TRUE | AD15: =AND(B15:E15=inp_used_minimal) -> TRUE
B17: =IF(LEN(design_flow_I)=0,"",design_flow_I) -> 75.072 | C17: =IF(LEN(df_units)=0,"",df_units) -> MGD | D17: =IF(LEN(average_flow_I)=0,"",average_flow_I) -> 37.536 | E17: =IF(LEN(af_units)=0,"",af_units) -> MGD | F17: =IF(LEN(CaCO3_in)=0,"",CaCO3_in) -> 200 | G17: =IF(LEN(resin_type_I)=0,"",resin_type_I) -> Strong acid polystyrenic macroporous | H17: =IF(LEN(regen_calc_type)=0,"",regen_calc_type) -> calculate based on hardenss and resin capacity | I17: =IF(LEN(bv_regen_I)=0,"",bv_regen_I) -> 27 | J17: =IF(LEN(salt_dose_I)=0,"",salt_dose_I) -> 15 | K17: =IF(LEN(num_tanks_I)=0,"",num_tanks_I) -> 1 | L17: =IF(LEN(ebct_I)=0,"",ebct_I) -> 2.5 | M17: =IF(LEN(bed_depth)=0,"",bed_depth) -> 4.9 | N17: =IF(LEN(tank_geom_I)=0,"",tank_geom_I) -> horizontal | O17: =IF(LEN(comm_height_length)=0,"",comm_height_length) -> 26 | P17: =IF(LEN(comm_diam)=0,"",comm_diam) -> 12.5 | Q17: =IF(LEN(brine_method_I)=0,"",brine_method_I) -> brine mixing tanks | R17: =IF(LEN(res_s2_opt_I)=0,"",res_s2_opt_I) -> POTW | S17: =IF(LEN(res_s1_opt_I)=0,"",res_s1_opt_I) -> no holding tank | T17: =IF(LEN(media_haz_I)=0,"",media_haz_I) -> non-hazardous | U17: =IF(LEN(solids_haz_I)=0,"",solids_haz_I) -> non-hazardous | V17: =IF(LEN(lines_pump_I)=0,"",lines_pump_I) ->  | W17: =IF(LEN(NRD_I)=0,"",NRD_I) ->  | X17: =IF(LEN(no_backwash_I)=0,"",no_backwash_I) ->  | Y17: =IF(LEN(no_back_tank_I)=0,"",no_back_tank_I) ->  | Z17: =IF(LEN(component_level_I)=0,"",component_level_I) ->  | AA17: =IF(LEN(manual_I)=0,"",manual_I) ->  | AB17: <--current inputs
B18: 75.072 | C18: MGD | D18: 37.536 | E18: MGD | F18: 200 | G18: Strong acid polystyrenic macroporous | H18: calculate based on hardenss and resin capacity | I18: 27 | J18: 15 | K18: 1 | L18: 2.5 | M18: 4.9 | N18: horizontal | O18: 26 | P18: 12.5 | Q18: brine mixing tanks | R18: POTW | S18: no holding tank | T18: non-hazardous | U18: non-hazardous | AB18: <--inputs used at last "Generate Results" | AC18: =AND(B18:AA18=inp_used) -> TRUE

Sheet AutoSize
A1: Autosize
A2: This sheet is used internally by the Auto Size macro to iteratively select the lowest capital cost design meeting engineering constraints.
A3: This sheet is used only if the Auto Size button is clicked. Advanced users may adjust the automated sizing procedure following the guidance below.
A4: Bold blue cells are copied to the input sheet
A5: Bold gold cells are inputs to the sizing procedure
A7: Input Parameters
A8: design flow rate | C8: =design_flow_rate -> 52133.33333 | D8: gpm
A9: vessels per line | C9: =Num_tanks -> 1
A10: EBCT per line | C10: =EBCT -> 2.5 | D10: min
A11: EBCT per vessel | C11: =EBCT_tank -> 2.5 | D11: min
A12: Total Vessel Media Volume | B12: comp_vol_required_stg1 | C12: =design_flow_rate*EBCT_tank/7.48 -> 17424.24242 | D12: ft^3 | E12: volume of media in first-stage vessels
A13: Round surface area? | B13: comp_round_sa | C13: 0 | E13: <--Enter 1 to design for rounding on vessel design sheet, 0 otherwise
A14: minimum surface area | B14: comp_sa_min | C14: =design_flow_rate/load_max -> 3475.555556 | D14: ft^2 | E14: to reach maximum loading rate | I14: =ROUND(IF(design_flow_rate<13000,0.5487*design_flow_rate^0.2414,design_flow_rate/3279+0.6896),0) -> 17 | J14: =ROUND(IF(design_flow_rate<5000,0.3991*design_flow_rate^0.2735,IF(design_flow_rate<15000,4,design_flow_rate/3651-0.3611)),0) -> 14
A15: maximum surface area | B15: comp_sa_max | C15: =design_flow_rate/load_min -> 10426.66667 | D15: ft^2 | E15: to reach minimum loading rate
A16: required dry volume | B16: comp_vol_required | C16: =design_flow_rate*EBCT/7.481 -> 17421.91329 | D16: ft^3 | E16: volume of media in all vessels
A18: Vertical design search
